{"text_format":"1","workbook":"xlsx","n_sheets":10,"sheets":["Instructions","Checklist","Cover","Event Info","Scores","Pro.Payouts","Am.Jr.Payouts","Finance","$10 Fees","SupportData"],"not_rendered":{"charts":0,"images":2,"macros":1,"external_links":2,"defined_names":54,"comments":3,"pivot_tables":0},"unopened":[],"bounds":{"document_bytes":16777216,"sheet_cells":100000,"rows_first":2000,"rows_last":500,"rows_between":2000,"halvings":0,"cell_chars":16384,"cell_head_chars":4096},"cells_cut":0,"cells_raw":0,"read":"whole","date_system":"1900"}

{"sheet":"Instructions","index":0,"n_rows":88,"n_cols":3,"rows_kept":88,"cut":false,"hidden":false,"merged":[[62,2,64,2],[5,2,9,2],[12,2,17,2],[19,2,22,2],[30,2,35,2],[37,2,50,2]]}
[]
[null,null,"Guide to the PDGA Tour Event Report - Canada Version - Excel"]
[null,null,{"$f":"CONCATENATE(\"Version \",Cover!A1)","v":"Version 17.1d"}]
[null,null,"Dear PDGA Tournament Director,"]
[]
[null,null,"Thank you for directing a PDGA Tour Event! The TD report serves as key input to the PDGA's information system. All TDs use this spreadsheet and return their completed event report to the PDGA Canda Manager by email as soon as possible. This will speed the processing of your event including the posting of official results at www.pdga.com, and the calculation of player statistics including points, pro cash won and player ratings. A new Checklist tab has been added to help you check off each important report item when you complete it and sign your report when it's ready to submit to the PDGA."]
[]
[]
[]
[]
[null,null,"The Open Office version of this report can be downloaded from the PDGA site here: www.pdga.com/tdinfo/resources "]
[]
[null,"Instructions:","The 2017 report is similar to previous years. And the new Checklist tab can help guide you so you don't miss entering important items. The different worksheets can be accessed by clicking on the tabs at the bottom of your screen. Many TDs start by jumping to the Scores tab and entering Player Names, Division Codes and PDGA#s. This will activate player counts and Division codes in the Cover and Event Info sheets. Throughout the spreadsheet, the yellow and orange cells indicate places where the TD should be entering information. Do not type in the green cells which include formulas where values will automatically appear once the proper info has been entered in the yellow cells. If your info does not fit in the space provided, please reduce the text font size."]
[]
[]
[]
[]
[]
[]
[null,null,"Please note that certain details are essential for accurate data entry and for determining course and player ratings. The new Checklist tab details the important inofrmation that must be completed before submitting your report. A quick reminder that all first place ties must be broken except in one-round flex start events when tied players may not be there at the same time. Only Pro payouts need to be shown on the Scores tab."]
[]
[]
[]
[null,"Summary of important information on each tab"]
[]
[null,"Cover:","Summarizes players, entry fees, prizes, and player fees and memberships collected for the PDGA."]
[]
[null,"Event Info:","2 pages providing general information on the event. Beyond courses played and highlights of the competition,"]
[null,null,"this worksheet is where any disqualifications and other problems should be outlined."]
[]
[null,"Scores:","Information on this page can be uploaded to the PDGA website before, during and after your event for posting pre-registrations, results and producing unofficial ratings. Reminder that all ties for 1st place must be broken, and that the PDGA does not recognize the breaking of ties for places below first place. Click on the Sort buttons as needed to organize players by division. When a player does not complete a round or does not even start a round, read the conditions for when to enter an 888 or 999 code for that DNF (Did Not Finish)."]
[]
[]
[]
[]
[]
[]
[null,"ProPayout","These sheets are provided to help TDs automatically calculate payouts. information is linked from the Cover sheet for each division being hosted. Note: Entry fee boxes must be filled in on the Cover sheet before going to the Pro.Payout & Am.Jr.Payout sheets. Then, just enter the amount of net cash added or subtracted (overhead allocation) for each division and the program will calculate both exact and rounded off payout values. The payout tables allow the TD to select 40%, 45%, or 50% payout for pro divisions (U.S. & Canada) and 45% or 50% for Ams. We encourage TDs to consider using 45% or 50% with added cash for pros. The Manual Adj. & Final Place columns let TDs adjust payouts to account for ties. For Am divisions, the dollar amounts and \"added cash\" for the payouts are based on retail merchandise values.\n\nPlayers who choose the Trophy Only option (when allowed by a TD) are not fully counted in the Field Size for either the Am or Pro payout calculations because they do not receive any payout. The spreadsheet adds one person to the Field Size for every three players who choose Trophy Only in a division. Their reduced entry fees are included in the division purse and is essentially the same as 'added cash'."]
[null,"AmJrPayout"]
[]
[]
[]
[]
[]
[]
[]
[]
[]
[]
[]
[]
[]
[null,"Finance:","Part 1 on Sponsors is requested of all TDs. The Income Statement that follows (Part 2) is provided as a "]
[null,null,"resource to assist your event management. You are not required to complete and submit this section."]
[]
[null,"Memberships:","Please type in the details on all PDGA memberships paid at the event and include with your electronic report."]
[]
[null,"$10 Fees:","Details on non-current players paying this fee. Print copies of this sheet and get the players to complete it !"]
[]
[null,"Forms:","For printing  PDGA membership and event evaluation forms in case the TD needs more than provided."]
[]
[]
[null,"TD Package:","In addition to this report TDs should receive the following items as part of their package: Rule books, stickers, brochures, member forms, \"Soft Cards\" (receipts for membership), Pay Tables, current member list tailored to your event (by email), and a list of approved discs and targets. "]
[]
[]
[]
[null,"Changes:","- Players may request to enter selected divisions at reduced entry fees to play for \"Trophy Only\""]
[null,null,"    This option is available if the TD allows it. The suggested entry fee is 1/3 to 1/2 of the regular entry fee."]
[null,null,"- Current membership is required in order to play in Major, SuperTour (A Tier) or National Tour events"]
[null,null,"- For B & C tier events the $10 fee for non-members and non-currents extends to ALL divisions except Juniors"]
[null,null,"- The per player fee extends to ALL divisions, per Tier these fees are A-$4 B-$3 & C-$2"]
[]
[]
[]
[null,"Remember:","- The expectations and requirements of Tour events are described in the Sanctioning Agreement/Tour Standards"]
[null,null,"- Please alert us if your mailing or email address has recently changed"]
[]
[null,"Report","Once completed please send your Tour Event Report as an email attachment to bdhflg@rogers.com "]
[null,"Submission:","TDs can either mail the player fees and membership fees collected to the PDGA Canada office at:"]
[null,null,"PDGA, 5 Dacotah Ave, Toronto ON M5J 2E4"]
[null,null,"or use PayPal or Interac-E-Transfer and send the funds to bdhflg@rogers.com "]
[]
[null,null,"Per the terms of the  PDGA Tour Sanctioning Agreement, SuperTour (A Tier) events must submit "]
[null,null,"TD reports by email within 48 hours after the event. B-tiers now have one week and C Tier have two weeks  "]
[null,null,"to submit this information. ALL events must submit any fees due within 30 day after the event."]
[]
[null,"Questions ? ","Contact the PDGA Canada Office at (416) 203-0912 or PDGA Headquarters at (706) 261-6342."]
[null,"tdr2017"]

{"sheet":"Checklist","index":1,"n_rows":44,"n_cols":8,"rows_kept":44,"cut":false,"hidden":false,"merged":[[45,0,45,9],[46,0,46,9],[47,0,47,9],[28,7,29,8],[36,0,36,9],[37,0,37,9],[38,0,38,9],[39,0,39,9],[44,0,44,9],[12,7,27,9],[0,7,1,9],[2,7,5,9],[6,7,6,9],[7,7,7,9],[9,8,9,9]]}
["EXCEL",null,null,null,null,null,null," TD Signature"]
["PAGE TAB",null,"Enter  Y  in each box when you have completed each item"]
["   v v v v",null,"v v v",null,"   Clicking on each line item below jumps to initial tab cell",null,null,"I hereby certify that the        information I have provided in this report is accurate to the best of my ability and knowledge."]
["Cover",null,null,null,"Enter Tournament Name, TD Name, Email, PDGA#, City, State"]
[null,null,null,null,"Enter Dates and Event Tier"]
[null,null,null,null,"Enter Gross Entry Fees and Other Fees for each Division playing"]
[]
["Event Info",null,null,null,"Enter Course Name as listed in PDGA Course Directory"]
[null,null,null,null,"Enter Specific Course Layouts, Number of Holes, Lengths",null,null,"Tournament Director"]
[null,null,null,null,"Enter Course Layout Codes played by each division, each round",null,null,"Date:"]
[]
["Scores",null,null,null,"Enter Divisions, Player Names and Trophy Only status if applicable"]
[null,null,null,null,"Enter Scores for each round including 888 or 999 where applicable",null,null,"     Upon completion of this Event Report please send a copy by email as an attached file to PDGA Canada at: bdhflg@rogers.com \n     Payments may be made online using PayPal or Interac-E-Transfer sent by mail. The PDGA Canada paypal account & Interac address is: bdhflg@rogers.com\n     Send cheques or money orders made payable to \"PDGA\" by mail:\nPDGA, 5 Dacotah Ave, Toronto ON M5J 2E4\n     Per the terms of PDGA Tour Sanctioning Agreement, all TD reports and fees are due no more than one month after an event. \n     Questions? Contact the Canada Manager at:  416-203-0912 or bdhflg@rogers.com or PDGA HQ     at tdreport@pdga.com or \n706-261-6392\nThanks for a job well done!"]
[null,null,null,null,"Calculate Am & Jr Division Merch Payouts if any"]
[null,null,null,null,"Calculate Pro Division Payouts if any"]
[null,null,null,null,"When submitting report, only show Payouts for Pro Players"]
[null,null,null,null,"Enter \"Yes\" for Ams who declined cash winnings in Pro divisions"]
[]
["Notes To ",null,"List Player Names > DNF 999 and 888"]
["Player"]
["Scores"]
[">> Important!",null,"List Ams Who Declined Cash Payouts"]
[]
[]
[null,null,"Enter First Place Ties Broken > DivCode and Player Names"]
[]
[]
["Scores",null,null,null,"Enter 1st, 2nd (and 3rd, etc) place only for first place tiebreaks"]
[null,null,null,null,"    No other finish ranks need to be entered in the Place column",null,null,"Optional"]
[]
["Cover",null,null,null,"Enter Pro and Am Payout, Packs and CTP info",null,null,"Enter Event Finances Here"]
[null,null,null,null,"Enter Non-Member Count",null,null,"Enter NonMember Info Here"]
[]
[]
[]
["Problems",null,"Please describe in detail any problems or disqualifications."]
[]
[]
[]
[]
[]
[]
["Comments",null,"Please provide us with your comments about how the PDGA Tour is working and any suggestions for its improvement."]
["to the PDGA",null,"Are there any other specific ways in which the PDGA can help you, your club, and your event ?"]

{"sheet":"Cover","index":2,"n_rows":53,"n_cols":26,"rows_kept":53,"cut":false,"hidden":false,"merged":[[2,25,2,27],[3,25,3,27],[19,7,19,12],[18,14,18,19],[10,25,10,27],[12,25,12,27],[13,25,13,27],[9,15,9,19],[4,25,4,27],[1,8,1,19],[14,15,14,19],[3,7,3,12],[3,15,3,16],[5,14,5,17],[3,18,3,19],[8,15,8,19],[52,11,52,17],[27,14,27,19],[6,16,6,18],[5,25,5,27],[7,25,7,27],[8,25,8,27],[9,25,9,27],[6,25,6,27],[11,25,11,27]]}
["17.1d"]
[null,null,null,null,null,"           Canada Tour Event Report",null,"Event: "]
[null,"Enter fees 'per player' in the yellow boxes. Green boxes are protected cells and only filled automatically.",null,null,null,null,null,null,null,null,null,null,null,null,null,null,null,null,null,null,null,null,null,null,null,"NOTE"]
[null,"Note new options for Other Fees",null,null,null,null,null,"Trophy Only - Ams pay entry discount",null,null,null,null,null,null,"Date(s): ",null,null,"to",null,null,null,null,null,null,null,"Type only in white"]
[null,"Gross","PDGA","Other","Net","# of","Total Net","Gross","PDGA","Other","Net","# of","Total Net",null,null,null,null,null,null,null,null,null,null,"Gross",null,"or yellow boxes"]
["PROS","Entry","Fee","Fees","Entry","Plyrs","Entry Fees","Entry","Fee","Fees","Entry","Plyrs","Entry Fees",null,null,null,null,null,null,null,null,null,null,"Entry Fees",null,"DO NOT TYPE IN"]
["Open",null,{"$f":"IF(AND(tier1<>\"\",F7>0),VLOOKUP(tier1,tierDB,3,FALSE),0)","v":0},null,{"$f":"B7-C7-D7","v":0},{"$f":"COUNTIF(Division,\"MPO\")-L7","v":0},{"$f":"F7*E7","v":0},null,{"$f":"IF(AND(tier1<>\"\",L7>0),VLOOKUP(tier1,tierDB,3,FALSE),0)","v":0},null,{"$f":"H7-I7-J7","v":0},{"$f":"COUNTIF(Scores!O$10:O$500,\"MPOY\")","v":0},{"$f":"L7*K7","v":0},null,null,"Tier: ","C or XC",null,null,null,null,null,"Pro",{"$f":"SUM(B7:B18*F7:F18)","v":0},null,"BLUE OR"]
["Master",null,0,null,0,{"$f":"COUNTIF(Division,\"MPM\")-L8","v":0},{"$f":"F8*E8","v":0},null,0,null,0,{"$f":"COUNTIF(Scores!O$10:O$500,\"MPMY\")","v":0},0,null,null,null,null,null,null,null,null,null,"Am",{"$f":"SUM(B21:B35*F21:F35)","v":0},null,"GREEN BOXES!"]
["Grandmaster",null,0,null,0,{"$f":"COUNTIF(Division,\"MPG\")-L9","v":0},0,null,0,null,0,{"$f":"COUNTIF(Scores!O$10:O$500,\"MPGY\")","v":0},0,null,"TD Name: ",null,null,null,null,null,null,null,"Jr",{"$f":"SUM(B39:B50*F39:F50)","v":0},null,"These all use"]
["Sr Grandmaster",null,0,null,0,{"$f":"COUNTIF(Division,\"MPS\")-L10","v":0},0,null,null,null,null,null,null,null,"Email Addr: ","@",null,null,null,null,null,null,null,{"$f":"SUM(X7:X9)","v":0},null,"automatic entries"]
["Legend 70+",null,0,null,0,{"$f":"COUNTIF(Division,\"MPL\")","v":0},0,null,null,null,null,null,null,null,"TD PDGA#: ",null,null,null,"State: ",null,null,null,null,null,null,"Do not insert or"]
["Sr Legend 75+",null,{"$f":"IF(AND(tier1<>\"\",F12>0),VLOOKUP(tier1,tierDB,3,FALSE),0)","v":0},null,{"$f":"B12-C12-D12","v":0},{"$f":"COUNTIF(Division,\"MPE\")","v":0},{"$f":"F12*E12","v":0},null,null,null,null,null,null,null,null,null,null,null,null,null,null,null,null,null,null,"delete rows. All "]
["Gr Legend 80+",null,{"$f":"IF(AND(tier1<>\"\",F13>0),VLOOKUP(tier1,tierDB,3,FALSE),0)","v":0},null,{"$f":"B13-C13-D13","v":0},{"$f":"COUNTIF(Division,\"MPR\")","v":0},{"$f":"F13*E13","v":0},null,null,null,null,null,null,null,null,null,null,null,null,null,null,null,null,null,null,"cells postitioned"]
["Open Women",null,0,null,0,{"$f":"COUNTIF(Division,\"FPO\")-L14","v":0},0,null,0,null,0,{"$f":"COUNTIF(Scores!O$10:O$500,\"FPOY\")","v":0},0,null,null,null,null,null,null,null,null,null,null,null,null,"for data importing"]
["Master Women",null,0,null,0,{"$f":"COUNTIF(Division,\"FPM\")-L15","v":0},0,null,0,null,0,{"$f":"COUNTIF(Scores!O$10:O$500,\"FPMY\")","v":0},0,null,"City: ",null,null,null,null,null,null,null,null,null,{"$f":"COUNTIF(I21:M34,#N/A)","v":0}]
["GM Women",null,0,null,0,{"$f":"COUNTIF(Division,\"FPG\")","v":0},0,"  Ams may enter a pro division for an entry"]
["Sr GM Women",null,0,null,0,{"$f":"COUNTIF(Division,\"FPS\")","v":0},0,"  fee 1/3 to 1/2 of full price if TD allows it",null,null,null,null,null,null,"Summary of Players, Entry Fees, & Payout"]
["Legend Women",null,0,null,0,{"$f":"COUNTIF(Division,\"FPL\")","v":0},0,"  and just compete for trophies only.",null,null,null,null,null,null,"Total Players",null,null,null,null,{"$f":"F19+F37+F51","v":0}]
["PRO Totals",null,null,null,null,{"$f":"SUM(F7:F18)+SUM(L7:L17)","v":0},{"$f":"SUM(G7:G18)+SUM(M7:M15)","v":0},null,null,null,null,null,null,null,"PROFESSIONALS"]
["AMATEURS",null,null,null,null,null,null,"Trophy Only- Ams/Pros- Entry discount",null,null,null,null,null,null,"Total Pro Cash Purse Paid Out"]
["Advanced",null,{"$f":"IF(AND(tier2<>0,F21>0),VLOOKUP(tier2,tierDB,3,FALSE),IF(AND(tier1<>\"\",F21>0),VLOOKUP(tier1,tierDB,3,FALSE),0))","v":0},null,{"$f":"B21-C21-D21","v":0},{"$f":"COUNTIF(Division,\"MA1\")-L21","v":0},{"$f":"F21*E21","v":0},null,{"$f":"IF(AND(tier2<>0,L21>0),VLOOKUP(tier2,tierDB,3,FALSE),IF(AND(tier1<>\"\",L21>0),VLOOKUP(tier1,tierDB,3,FALSE),0))","v":0},null,{"$f":"H21-I21-J21","v":0},{"$f":"COUNTIF(Scores!O$10:O$500,\"MA1Y\")","v":0},{"$f":"L21*K21","v":0},null,"Total Pro Net Entry Fees",null,null,null,null,{"$f":"G19","v":0},null,null,{"$f":"IF(T21>0,T20/T21,\"\")","v":""}]
["Intermediate",null,0,null,0,{"$f":"COUNTIF(Division,\"MA2\")-L22","v":0},0,null,0,null,0,{"$f":"COUNTIF(Scores!O$10:O$500,\"MA2Y\")","v":0},0,null,"Net Cash Added to Purse",null,null,null,null,{"$f":"T20-T21","v":0}]
["Recreational",null,0,null,0,{"$f":"COUNTIF(Division,\"MA3\")-L23","v":0},0,null,0,null,0,{"$f":"COUNTIF(Scores!O$10:O$500,\"MA3Y\")","v":0},0,null,"Pro Player Packs - $ Value"]
["Novice",null,{"$f":"IF(AND(tier2<>0,F24>0),VLOOKUP(tier2,tierDB,3,FALSE),IF(AND(tier1<>\"\",F24>0),VLOOKUP(tier1,tierDB,3,FALSE),0))","v":0},null,{"$f":"B24-C24-D24","v":0},{"$f":"COUNTIF(Division,\"MA4\")","v":0},{"$f":"F24*E24","v":0},null,null,null,null,null,null,null,"Pro Trophies - $ Value"]
["Adv Master",null,0,null,0,{"$f":"COUNTIF(Division,\"MM1\")-L25","v":0},0,null,0,null,0,{"$f":"COUNTIF(Scores!O$10:O$500,\"MM1Y\")","v":0},0,null,"Other Pro Prizes $ (CTPs etc)"]
["Adv GMaster",null,0,null,0,{"$f":"COUNTIF(Division,\"MG1\")","v":0},0,null,null,null,null,null,null,null,null,"Pro Event Value",null,null,null,{"$f":"SUM(T20,T23,T24,T25)","v":0},null,null,{"$f":"IF(T21>0,T26/T21,\"\")","v":""}]
["Adv Sr GM",null,0,null,0,{"$f":"COUNTIF(Division,\"MS1\")","v":0},0]
["Adv Legend",null,0,null,0,{"$f":"COUNTIF(Division,\"ML1\")","v":0},0,null,null,null,null,null,null,null,"AMATEURS & JUNIORS"]
["Adv W Master",null,0,null,0,{"$f":"COUNTIF(Division,\"FM1\")-L29","v":0},0,null,0,null,0,{"$f":"COUNTIF(Scores!O$10:O$500,\"FM1Y\")","v":0},0,null,"Total Am/Jr Net Entry Fees",null,null,null,null,{"$f":"G37+G51","v":0}]
["Adv W G.Master",null,{"$f":"IF(AND(tier2<>0,F30>0),VLOOKUP(tier2,tierDB,3,FALSE),IF(AND(tier1<>\"\",F30>0),VLOOKUP(tier1,tierDB,3,FALSE),0))","v":0},null,{"$f":"B30-C30-D30","v":0},{"$f":"COUNTIF(Division,\"FG1\")","v":0},{"$f":"F30*E30","v":0},null,null,null,null,null,null,null,"Am/Jr Prizes + Trophies - $ Value"]
["Adv W S.G.Mstr",null,{"$f":"IF(AND(tier2<>0,F31>0),VLOOKUP(tier2,tierDB,3,FALSE),IF(AND(tier1<>\"\",F31>0),VLOOKUP(tier1,tierDB,3,FALSE),0))","v":0},null,{"$f":"B31-C31-D31","v":0},{"$f":"COUNTIF(Division,\"FS1\")","v":0},{"$f":"F31*E31","v":0},null,null,null,null,null,null,null,"Am/Jr Player Packs - $ Value"]
["Adv W Legend",null,{"$f":"IF(AND(tier2<>0,F32>0),VLOOKUP(tier2,tierDB,3,FALSE),IF(AND(tier1<>\"\",F32>0),VLOOKUP(tier1,tierDB,3,FALSE),0))","v":0},null,{"$f":"B32-C32-D32","v":0},{"$f":"COUNTIF(Division,\"FL1\")","v":0},{"$f":"F32*E32","v":0},null,null,null,null,null,null,null,"Other Am/Jr Prizes $ (CTPs etc)"]
["Adv Women",null,0,null,0,{"$f":"COUNTIF(Division,\"FA1\")-L33","v":0},0,null,0,null,0,{"$f":"COUNTIF(Scores!O$10:O$500,\"FA1Y\")","v":0},0,null,null,"Am Event Value",null,null,null,{"$f":"SUM(T30:T32)","v":0}]
["Inter Women",null,0,null,0,{"$f":"COUNTIF(Division,\"FA2\")-L34","v":0},0,null,0,null,0,{"$f":"COUNTIF(Scores!O$10:O$500,\"FA2Y\")","v":0},0]
["Rec Women",null,0,null,0,{"$f":"COUNTIF(Division,\"FA3\")","v":0},0,"  Ams or Pros may enter an Am division for",null,null,null,null,null,null,null,null,null,null,null,null,null,null,{"$f":"IF(T29>0,T33/T29,\"\")","v":""}]
["Novice Women",null,{"$f":"IF(AND(tier2<>0,F36>0),VLOOKUP(tier2,tierDB,3,FALSE),IF(AND(tier1<>\"\",F36>0),VLOOKUP(tier1,tierDB,3,FALSE),0))","v":0},null,{"$f":"B36-C36-D36","v":0},{"$f":"COUNTIF(Division,\"FA4\")","v":0},{"$f":"F36*E36","v":0},"  1/3 to 1/2 of full entry fee if TD allows it"]
["AM Totals",null,null,null,null,{"$f":"SUM(F21:F36)+SUM(L21:L36)","v":0},{"$f":"SUM(G21:G36)+SUM(M21:M36)","v":0},"  and just compete for trophies only."]
["JUNIORS",null,null,null,null,null,null,null,null,null,null,null,null,null,null,"  Total Tour Event Value",null,null,null,{"$f":"SUM(T26,T33)","v":0}]
["Jr Boys <18",null,{"$f":"IF(AND(tier2<>0,F39>0),VLOOKUP(tier2,tierDB,3,FALSE),IF(AND(tier1<>\"\",F39>0),VLOOKUP(tier1,tierDB,3,FALSE),0))","v":0},null,{"$f":"B39-C39-D39","v":0},{"$f":"COUNTIF(Division,\"MJ1\")","v":0},{"$f":"F39*E39","v":0}]
["Jr Boys <15",null,0,null,0,{"$f":"COUNTIF(Division,\"MJ2\")","v":0},0,null,null,null,null,null,"Collected for the PDGA"]
["Jr Boys <12",null,0,null,0,{"$f":"COUNTIF(Division,\"MJ3\")","v":0},0,null,null,null,null,null,{"$f":"IF(tier1=\"\",\"\",tier1&\" tier\")","v":"C or XC tier"},null,"# Pro Players",{"$f":"F19","v":0},"x",{"$f":"IF(tier1=\"\",0,VLOOKUP(tier1,tierDB,3,FALSE))","v":2},"=",{"$f":"P41*R41","v":0}]
["Jr Boys <10",null,0,null,0,{"$f":"COUNTIF(Division,\"MJ4\")","v":0},0,null,null,null,null,null,{"$f":"IF(OR(tier2=0,tier2=\"\"),\"\",tier2&\" tier\")","v":""},null,"# Am/Jr Players",{"$f":"F37+F51","v":0},"x",{"$f":"IF(AND(tier2<>0,tier2<>\"\"),VLOOKUP(tier2,tierDB,3,FALSE),IF(tier1<>\"\",VLOOKUP(tier1,tierDB,3,FALSE),0))","v":2},"=",{"$f":"P42*R42","v":0}]
["Jr Boys <8",null,0,null,0,{"$f":"COUNTIF(Division,\"MJ5\")","v":0},0,null,null,null,null,null,{"$f":"IF(SupportData!D26=5,\"D-tier three-month members\",\"Non or Non-current Members\")","v":"Non or Non-current Members"},null,null,null,"x",10,"=",{"$f":"P43*R43","v":0}]
["Jr Boys <6",null,0,null,0,{"$f":"COUNTIF(Division,\"MJ6\")","v":0},0]
["Jr Girls <18",null,{"$f":"IF(AND(tier2<>0,F45>0),VLOOKUP(tier2,tierDB,3,FALSE),IF(AND(tier1<>\"\",F45>0),VLOOKUP(tier1,tierDB,3,FALSE),0))","v":0},null,{"$f":"B45-C45-D45","v":0},{"$f":"COUNTIF(Division,\"FJ1\")","v":0},{"$f":"F45*E45","v":0}]
["Jr Girls <15",null,0,null,0,{"$f":"COUNTIF(Division,\"FJ2\")","v":0},0]
["Jr Girls <12",null,0,null,0,{"$f":"COUNTIF(Division,\"FJ3\")","v":0},0]
["Jr Girls <10",null,0,null,0,{"$f":"COUNTIF(Division,\"FJ4\")","v":0},0]
["Jr Girls <8",null,0,null,0,{"$f":"COUNTIF(Division,\"FJ5\")","v":0},0]
["Jr Girls <6",null,0,null,0,{"$f":"COUNTIF(Division,\"FJ6\")","v":0},0,null,null,null,null,null,"$25 fee if results/TD Report not submitted electronically"]
["JR Totals",null,null,null,null,{"$f":"SUM(F39:F50)","v":0},{"$f":"SUM(G39:G50)","v":0},null,null,null,null,null,null,null,null,"  Total Payable to PDGA:",null,null,null,{"$f":"SUM(T41:T50)","v":0}]
[null,null,null,null,null,null,null,"Please pay this amount in Cdn$ by mailed cheque sent to the PDGA Canada office"]
[null,null,null,null,null,null,null,"Or  by paypal sent to",null,null,null,"bdhflg@rogers.com"]

{"sheet":"Event Info","index":3,"n_rows":102,"n_cols":18,"rows_kept":102,"cut":false,"hidden":false,"merged":[[93,1,93,3],[94,1,94,3],[95,1,95,3],[102,1,102,15],[103,1,103,15],[10,17,10,19],[11,17,11,19],[12,17,12,19],[13,17,13,19],[16,11,16,13],[14,17,14,19],[15,17,15,19],[16,17,16,19],[12,11,12,13],[13,11,13,13],[17,17,17,19],[19,11,19,13],[54,1,54,3],[50,1,50,3],[44,1,44,3],[38,1,38,3],[21,17,21,19],[18,17,18,19],[20,17,20,19],[18,11,18,13],[17,11,17,13],[19,17,19,19],[20,11,20,13],[21,11,21,13],[29,0,40,0],[30,1,30,3],[36,1,36,3],[32,1,32,3],[29,1,29,3],[31,1,31,3],[37,1,37,3],[39,1,39,3],[40,1,40,3],[59,0,70,0],[41,1,41,3],[42,1,42,3],[43,1,43,3],[45,1,45,3],[46,1,46,3],[53,1,53,3],[41,0,56,0],[48,1,48,3],[56,1,56,3],[65,1,65,3],[66,1,66,3],[67,1,67,3],[68,1,68,3],[62,1,62,3],[47,1,47,3],[8,5,8,9],[33,1,33,3],[8,11,8,13],[9,11,9,13],[10,11,10,13],[11,11,11,13],[14,11,14,13],[15,11,15,13],[59,1,59,3],[60,1,60,3],[61,1,61,3],[49,1,49,3],[63,1,63,3],[55,1,55,3],[69,1,69,3],[70,1,70,3],[104,1,104,15],[64,1,64,3],[78,1,78,15],[79,1,79,15],[85,1,85,3],[80,1,80,15],[84,4,84,5],[84,6,84,7],[84,14,84,15],[86,1,86,3],[87,1,87,3],[88,1,88,3],[89,1,89,3],[90,1,90,3]]}
["PDGA Canada Tour Event Report: General Information"]
[]
["1.","Course Layouts",null,"Link to PDGA Course Directory >",null,"www.pdga.com/course-directory"]
[]
[null,"It is important you complete the following information accurately so your players get correct ratings."]
[null,"If you have any questions, please contact the PDGA office: ",null,null,null,"tourmgr@pdga.com"]
[null,"Please remove any apostrophes in course names or words even if it's that way in the directory!"]
[]
["Layout",null,null,null,null,"Number of Holes",null,null,null,null,null,"Length",null,null,null,"Meas."]
["Code","Park or Course Name",null," Specific Layout / Configuration Name",null,"Perm",null,"Temp",null,"TOT",null,"(feet)",null,null,null,"or Est?"]
["A",null,null,null,null,null,null,null,null,{"$f":"IF(OR(F11>0,H11>0),F11+H11,\"\")","v":""},null,null,null,null,null,null,{"$f":"IF(AND(OR(B11<>\"\",D11<>\"\"),OR(J11=\"\",L11=\"\",P11=\"\")),\"< Please enter all info requested\",\"\")","v":""},"NOTE"]
["B",null,null,null,null,null,null,null,null,"",null,null,null,null,null,null,{"$f":"IF(AND(B12<>\"\",OR(J12=\"\",L12=\"\",P12=\"\")),\"< Please enter all info requested\",\"\")","v":""},"Type only in white"]
["C",null,null,null,null,null,null,null,null,"",null,null,null,null,null,null,{"$f":"IF(AND(B13<>\"\",OR(J13=\"\",L13=\"\",P13=\"\")),\"< Please enter all info requested\",\"\")","v":""},"or yellow boxes"]
["D",null,null,null,null,null,null,null,null,"",null,null,null,null,null,null,{"$f":"IF(AND(B14<>\"\",OR(J14=\"\",L14=\"\",P14=\"\")),\"< Please enter all info requested\",\"\")","v":""},"DO NOT TYPE IN"]
["E",null,null,null,null,null,null,null,null,"",null,null,null,null,null,null,{"$f":"IF(AND(B15<>\"\",OR(J15=\"\",L15=\"\",P15=\"\")),\"< Please enter all info requested\",\"\")","v":""},"BLUE OR"]
["F",null,null,null,null,null,null,null,null,"",null,null,null,null,null,null,{"$f":"IF(AND(B16<>\"\",OR(J16=\"\",L16=\"\",P16=\"\")),\"< Please enter all info requested\",\"\")","v":""},"GREEN BOXES!"]
["G",null,null,null,null,null,null,null,null,{"$f":"IF(OR(F17>0,H17>0),F17+H17,\"\")","v":""},null,null,null,null,null,null,null,"These all use"]
["H",null,null,null,null,null,null,null,null,"",null,null,null,null,null,null,null,"automatic entries"]
["I",null,null,null,null,null,null,null,null,"",null,null,null,null,null,null,null,"Do not insert or"]
["J",null,null,null,null,null,null,null,null,"",null,null,null,null,null,null,null,"delete rows. All "]
["K",null,null,null,null,null,null,null,null,"",null,null,null,null,null,null,null,"cells postitioned"]
["L",null,null,null,null,null,null,null,null,"",null,null,null,null,null,null,null,"for data importing"]
[]
["2.","Layouts Played by Division by Round - Do not include rounds with fewer than 13 holes!"]
[]
[null,"Enter the proper course layout code letter from above for each round played by each division listed."]
[null,"NOTE:  Division name is gray until at least one player has been entered for it on the COVER sheet."]
[null,null,null,null,null,null,null,null,null,"Course Layout Code",null,null,null,null,null,"Div"]
[null,"Divisions with players entered in your event",null,null,null,"R 1",null,"R 2",null,"R 3",null,"R 4",null,"Final",null,"Code"]
["PRO","MPO - Pro Open",null,null,null,null,null,null,null,null,null,null,null,null,null,{"$f":"IF(OR(Cover!F7>0,Cover!L7>0),LEFT(B30,3),\"\")","v":""},{"$f":"IF(AND(P30<>\"\",COUNTA(F30:N30)<COUNT(Scores!G$10:K$10)),\" < Course layout may be missing\",\"\")","v":""}]
[null,"MPM - Pro Master",null,null,null,null,null,null,null,null,null,null,null,null,null,{"$f":"IF(OR(Cover!F8>0,Cover!L8>0),LEFT(B31,3),\"\")","v":""},{"$f":"IF(AND(P31<>\"\",COUNTA(F31:N31)<COUNT(Scores!G$10:K$10)),\" < Course layout may be missing\",\"\")","v":""}]
[null,"MPG - Pro Grandmaster",null,null,null,null,null,null,null,null,null,null,null,null,null,{"$f":"IF(OR(Cover!F9>0,Cover!L9>0),LEFT(B32,3),\"\")","v":""},{"$f":"IF(AND(P32<>\"\",COUNTA(F32:N32)<COUNT(Scores!G$10:K$10)),\" < Course layout may be missing\",\"\")","v":""}]
[null,"MPS - Pro Sr Grandmaster",null,null,null,null,null,null,null,null,null,null,null,null,null,{"$f":"IF(OR(Cover!F10>0,Cover!L10>0),LEFT(B33,3),\"\")","v":""},{"$f":"IF(AND(P33<>\"\",COUNTA(F33:N33)<COUNT(Scores!G$10:K$10)),\" < Course layout may be missing\",\"\")","v":""}]
[null,"MPL - Pro Legend",null,null,null,null,null,null,null,null,null,null,null,null,null,{"$f":"IF(OR(Cover!F11>0,Cover!L11>0),LEFT(B34,3),\"\")","v":""}]
[null,"MPE - Pro Sr Legend",null,null,null,null,null,null,null,null,null,null,null,null,null,{"$f":"IF(OR(Cover!F12>0,Cover!L12>0),LEFT(B35,3),\"\")","v":""},{"$f":"IF(AND(P35<>\"\",COUNTA(F35:N35)<COUNT(Scores!G$10:K$10)),\" < Course layout may be missing\",\"\")","v":""}]
[null,"MPR - Pro Grand Legend",null,null,null,null,null,null,null,null,null,null,null,null,null,{"$f":"IF(OR(Cover!F13>0,Cover!L13>0),LEFT(B36,3),\"\")","v":""},{"$f":"IF(AND(P36<>\"\",COUNTA(F36:N36)<COUNT(Scores!G$10:K$10)),\" < Course layout may be missing\",\"\")","v":""}]
[null,"FPO - Pro Women",null,null,null,null,null,null,null,null,null,null,null,null,null,{"$f":"IF(OR(Cover!F14>0,Cover!L14>0),LEFT(B37,3),\"\")","v":""},{"$f":"IF(AND(P37<>\"\",COUNTA(F37:N37)<COUNT(Scores!G$10:K$10)),\" < Course layout may be missing\",\"\")","v":""}]
[null,"FPM - Pro Master Women",null,null,null,null,null,null,null,null,null,null,null,null,null,{"$f":"IF(OR(Cover!F15>0,Cover!L15>0),LEFT(B38,3),\"\")","v":""},{"$f":"IF(AND(P38<>\"\",COUNTA(F38:N38)<COUNT(Scores!G$10:K$10)),\" < Course layout may be missing\",\"\")","v":""}]
[null,"FPG - Pro Grandmaster Women",null,null,null,null,null,null,null,null,null,null,null,null,null,{"$f":"IF(OR(Cover!F16>0,Cover!L16>0),LEFT(B39,3),\"\")","v":""},{"$f":"IF(AND(P39<>\"\",COUNTA(F39:N39)<COUNT(Scores!G$10:K$10)),\" < Course layout may be missing\",\"\")","v":""}]
[null,"FPS - Pro Sr Grandmaster Women",null,null,null,null,null,null,null,null,null,null,null,null,null,{"$f":"IF(OR(Cover!F17>0,Cover!L17>0),LEFT(B40,3),\"\")","v":""},{"$f":"IF(AND(P40<>\"\",COUNTA(F40:N40)<COUNT(Scores!G$10:K$10)),\" < Course layout may be missing\",\"\")","v":""}]
[null,"FPL - Pro Legend Women",null,null,null,null,null,null,null,null,null,null,null,null,null,{"$f":"IF(OR(Cover!F18>0,Cover!L18>0),LEFT(B41,3),\"\")","v":""},{"$f":"IF(AND(P41<>\"\",COUNTA(F41:N41)<COUNT(Scores!G$10:K$10)),\" < Course layout may be missing\",\"\")","v":""}]
["AM","MA1 - Advanced",null,null,null,null,null,null,null,null,null,null,null,null,null,{"$f":"IF(OR(Cover!F21>0,Cover!L21>0),LEFT(B42,3),\"\")","v":""},{"$f":"IF(AND(P42<>\"\",COUNTA(F42:N42)<COUNT(Scores!G$10:K$10)),\" < Course layout may be missing\",\"\")","v":""}]
[null,"MA2 - Intermediate",null,null,null,null,null,null,null,null,null,null,null,null,null,{"$f":"IF(OR(Cover!F22>0,Cover!L22>0),LEFT(B43,3),\"\")","v":""},{"$f":"IF(AND(P43<>\"\",COUNTA(F43:N43)<COUNT(Scores!G$10:K$10)),\" < Course layout may be missing\",\"\")","v":""}]
[null,"MA3 - Recreational",null,null,null,null,null,null,null,null,null,null,null,null,null,{"$f":"IF(OR(Cover!F23>0,Cover!L23>0),LEFT(B44,3),\"\")","v":""},{"$f":"IF(AND(P44<>\"\",COUNTA(F44:N44)<COUNT(Scores!G$10:K$10)),\" < Course layout may be missing\",\"\")","v":""}]
[null,"MA4 - Novice",null,null,null,null,null,null,null,null,null,null,null,null,null,{"$f":"IF(OR(Cover!F24>0,Cover!L24>0),LEFT(B45,3),\"\")","v":""},{"$f":"IF(AND(P45<>\"\",COUNTA(F45:N45)<COUNT(Scores!G$10:K$10)),\" < Course layout may be missing\",\"\")","v":""}]
[null,"MM1 - Advanced Master",null,null,null,null,null,null,null,null,null,null,null,null,null,{"$f":"IF(OR(Cover!F25>0,Cover!L25>0),LEFT(B46,3),\"\")","v":""},{"$f":"IF(AND(P46<>\"\",COUNTA(F46:N46)<COUNT(Scores!G$10:K$10)),\" < Course layout may be missing\",\"\")","v":""}]
[null,"MG1 - Advanced Grandmaster",null,null,null,null,null,null,null,null,null,null,null,null,null,{"$f":"IF(OR(Cover!F26>0,Cover!L26>0),LEFT(B47,3),\"\")","v":""},{"$f":"IF(AND(P47<>\"\",COUNTA(F47:N47)<COUNT(Scores!G$10:K$10)),\" < Course layout may be missing\",\"\")","v":""}]
[null,"MS1 - Advanced Sr Grandmaster",null,null,null,null,null,null,null,null,null,null,null,null,null,{"$f":"IF(OR(Cover!F27>0,Cover!L27>0),LEFT(B48,3),\"\")","v":""},{"$f":"IF(AND(P48<>\"\",COUNTA(F48:N48)<COUNT(Scores!G$10:K$10)),\" < Course layout may be missing\",\"\")","v":""}]
[null,"ML1 - Advanced Legend",null,null,null,null,null,null,null,null,null,null,null,null,null,{"$f":"IF(OR(Cover!F28>0,Cover!L28>0),LEFT(B49,3),\"\")","v":""},{"$f":"IF(AND(P49<>\"\",COUNTA(F49:N49)<COUNT(Scores!G$10:K$10)),\" < Course layout may be missing\",\"\")","v":""}]
[null,"FM1 - Advanced Women Master",null,null,null,null,null,null,null,null,null,null,null,null,null,{"$f":"IF(OR(Cover!F29>0,Cover!L29>0),LEFT(B50,3),\"\")","v":""},{"$f":"IF(AND(P50<>\"\",COUNTA(F50:N50)<COUNT(Scores!G$10:K$10)),\" < Course layout may be missing\",\"\")","v":""}]
[null,"FG1 - Advanced Women Grandmaster",null,null,null,null,null,null,null,null,null,null,null,null,null,{"$f":"IF(OR(Cover!F30>0,Cover!L30>0),LEFT(B51,3),\"\")","v":""},{"$f":"IF(AND(P51<>\"\",COUNTA(F51:N51)<COUNT(Scores!G$10:K$10)),\" < Course layout may be missing\",\"\")","v":""}]
[null,"FS1 - Advanced Women Sr Grandmaster",null,null,null,null,null,null,null,null,null,null,null,null,null,{"$f":"IF(OR(Cover!F31>0,Cover!L31>0),LEFT(B52,3),\"\")","v":""},{"$f":"IF(AND(P52<>\"\",COUNTA(F52:N52)<COUNT(Scores!G$10:K$10)),\" < Course layout may be missing\",\"\")","v":""}]
[null,"FL1 - Advanced Women Legend",null,null,null,null,null,null,null,null,null,null,null,null,null,{"$f":"IF(OR(Cover!F32>0,Cover!L32>0),LEFT(B53,3),\"\")","v":""},{"$f":"IF(AND(P53<>\"\",COUNTA(F53:N53)<COUNT(Scores!G$10:K$10)),\" < Course layout may be missing\",\"\")","v":""}]
[null,"FA1 - Advanced Women",null,null,null,null,null,null,null,null,null,null,null,null,null,{"$f":"IF(OR(Cover!F33>0,Cover!L33>0),LEFT(B54,3),\"\")","v":""},{"$f":"IF(AND(P54<>\"\",COUNTA(F54:N54)<COUNT(Scores!G$10:K$10)),\" < Course layout may be missing\",\"\")","v":""}]
[null,"FA2 - Intermediate Women",null,null,null,null,null,null,null,null,null,null,null,null,null,{"$f":"IF(OR(Cover!F34>0,Cover!L34>0),LEFT(B55,3),\"\")","v":""},{"$f":"IF(AND(P55<>\"\",COUNTA(F55:N55)<COUNT(Scores!G$10:K$10)),\" < Course layout may be missing\",\"\")","v":""}]
[null,"FA3 - Recreational Women",null,null,null,null,null,null,null,null,null,null,null,null,null,{"$f":"IF(OR(Cover!F35>0,Cover!L35>0),LEFT(B56,3),\"\")","v":""},{"$f":"IF(AND(P56<>\"\",COUNTA(F56:N56)<COUNT(Scores!G$10:K$10)),\" < Course layout may be missing\",\"\")","v":""}]
[null,"FA4 - Novice Women",null,null,null,null,null,null,null,null,null,null,null,null,null,{"$f":"IF(OR(Cover!F36>0,Cover!L36>0),LEFT(B57,3),\"\")","v":""},{"$f":"IF(AND(P57<>\"\",COUNTA(F57:N57)<COUNT(Scores!G$10:K$10)),\" < Course layout may be missing\",\"\")","v":""}]
[null,null,null,null,null,null,null,null,null,"Course Layout Code",null,null,null,null,null,"Div"]
[null,"Divisions with players entered in your event",null,null,null,"R 1",null,"R 2",null,"R 3",null,"R 4",null,"R 5",null,"Code"]
["JR","MJ1 - Junior Boys < 18",null,null,null,null,null,null,null,null,null,null,null,null,null,{"$f":"IF(Cover!F39>0,LEFT(B60,3),\"\")","v":""},{"$f":"IF(AND(P60<>\"\",COUNTA(F60:N60)<COUNT(Scores!G$10:K$10)),\" < Course layout may be missing\",\"\")","v":""}]
[null,"MJ2 - Junior Boys < 15",null,null,null,null,null,null,null,null,null,null,null,null,null,{"$f":"IF(Cover!F40>0,LEFT(B61,3),\"\")","v":""},{"$f":"IF(AND(P61<>\"\",COUNTA(F61:N61)<COUNT(Scores!G$10:K$10)),\" < Course layout may be missing\",\"\")","v":""}]
[null,"MJ3 - Junior Boys < 12",null,null,null,null,null,null,null,null,null,null,null,null,null,{"$f":"IF(Cover!F41>0,LEFT(B62,3),\"\")","v":""},{"$f":"IF(AND(P62<>\"\",COUNTA(F62:N62)<COUNT(Scores!G$10:K$10)),\" < Course layout may be missing\",\"\")","v":""}]
[null,"MJ4 - Junior Boys < 10",null,null,null,null,null,null,null,null,null,null,null,null,null,{"$f":"IF(Cover!F42>0,LEFT(B63,3),\"\")","v":""},{"$f":"IF(AND(P63<>\"\",COUNTA(F63:N63)<COUNT(Scores!G$10:K$10)),\" < Course layout may be missing\",\"\")","v":""}]
[null,"MJ5 - Junior Boys < 8",null,null,null,null,null,null,null,null,null,null,null,null,null,{"$f":"IF(Cover!F43>0,LEFT(B64,3),\"\")","v":""},{"$f":"IF(AND(P64<>\"\",COUNTA(F64:N64)<COUNT(Scores!G$10:K$10)),\" < Course layout may be missing\",\"\")","v":""}]
[null,"MJ6 - Junior Boys < 6",null,null,null,null,null,null,null,null,null,null,null,null,null,{"$f":"IF(Cover!F44>0,LEFT(B65,3),\"\")","v":""},{"$f":"IF(AND(P65<>\"\",COUNTA(F65:N65)<COUNT(Scores!G$10:K$10)),\" < Course layout may be missing\",\"\")","v":""}]
[null,"FJ1 - Junior Girls < 18",null,null,null,null,null,null,null,null,null,null,null,null,null,{"$f":"IF(Cover!F45>0,LEFT(B66,3),\"\")","v":""}]
[null,"FJ2 - Junior Girls < 15",null,null,null,null,null,null,null,null,null,null,null,null,null,{"$f":"IF(Cover!F46>0,LEFT(B67,3),\"\")","v":""}]
[null,"FJ3 - Junior Girls < 12",null,null,null,null,null,null,null,null,null,null,null,null,null,{"$f":"IF(Cover!F47>0,LEFT(B68,3),\"\")","v":""}]
[null,"FJ4 - Junior Girls < 10",null,null,null,null,null,null,null,null,null,null,null,null,null,{"$f":"IF(Cover!F48>0,LEFT(B69,3),\"\")","v":""}]
[null,"FJ5 - Junior Girls < 8",null,null,null,null,null,null,null,null,null,null,null,null,null,{"$f":"IF(Cover!F49>0,LEFT(B70,3),\"\")","v":""},{"$f":"IF(AND(P70<>\"\",COUNTA(F70:N70)<COUNT(Scores!G$10:K$10)),\" < Course layout may be missing\",\"\")","v":""}]
[null,"FJ6 - Junior Girls < 6",null,null,null,null,null,null,null,null,null,null,null,null,null,{"$f":"IF(Cover!F50>0,LEFT(B71,3),\"\")","v":""},{"$f":"IF(AND(P71<>\"\",COUNTA(F71:N71)<COUNT(Scores!G$10:K$10)),\" < Course layout may be missing\",\"\")","v":""}]
[]
[null,"Note: Make sure to visit the new Checklist page to complete and sign report."]
[]
["OPTIONAL INFORMATION"]
[]
[null,"Conditions"]
[null,"Describe any extraordinary weather or other unusual conditions that may have affected scoring, and indicate which rounds were affected."]
[]
[]
[]
[]
[null,"Holes in One"]
[null,"For each tournament ace, please provide the player's name, course layout code (from section 1 above), hole number and distance:"]
[null,"Player Name",null,null,"Layout Code",null,"Hole #  ",null,null,"Length"]
[]
[]
[]
[]
[]
[]
[]
[null,"Extra Cash Won for Skins, CTPs, etc"]
[]
[]
[]
[]
[null,"Press Release"]
[null,"Many TDs submit summaries of their events to local media, and the disc golf press. This might include a synopsis of the competition"]
[null,"and its highlights (great rounds, final nine, unusual aces, big comebacks, etc), recognition of sponsors, charity and celebrity involvement,"]
[null,"number of spectators, TV and radio on-site coverage, etc. Please feel free to use more space than is provided below, and send copies"]
[null,"of items such as newspaper articles, programs, scorecards, and photos to the PDGA office. Thanks very much!"]

{"sheet":"Scores","index":4,"n_rows":500,"n_cols":30,"rows_kept":500,"cut":false,"hidden":false,"merged":[[0,3,0,8],[2,17,4,27],[34,20,34,22],[5,17,5,27],[33,20,33,22],[0,11,0,13],[6,25,6,27],[6,28,6,30],[39,20,39,22],[0,17,0,23],[36,17,36,19],[36,20,36,22],[37,17,37,19],[37,20,37,22],[33,17,34,19],[35,17,35,19],[35,20,35,22],[38,17,38,19],[38,20,38,22]]}
["Tour Event Name:",null,null,{"$f":"IF(Cover!I2=\"\",\"\",Cover!I2)","v":""},null,null,null,null,null,null,"Dates:",{"$f":"IF(Cover!P4=\"\",\"\",Cover!P4)","v":""},null,null,null,null,null,"NOTE ON DNF (Did Not Finish) CODES"]
[]
["Please enter the player Division Codes, Names and PDGA#s on this page before",null,null,null,null,null,null,null,null,null,null,null,null,null,null,null,null,"Enter 888 when a player has not notified the TD they will not be playing the next scheduled round. Enter 888 when a player has been confirmed to have manipulated their score or dropped out to preserve their rating. For all other cases where a player was not able to finish the round, enter 999."]
["completing the COVER page and using the PAYOUT worksheets. Do not include",null,null,null,null,null,null,null,null,null,null,null,null," Use Special Sort button above when"]
["players who registered but did not show up or make a throw in the tournament.",null,null,null,null,null,null,null,null,null,null,null,null,"your Event has Semi or Final round.",null,"Total US$"]
["Click button to upload scores",null,null,null,null,null,null,"Use Basic Sort button after Rd1 thru  >",null,null,null,null,null,"You MUST enter Final rankings in Place",null,{"$f":"SUM(P10:P510)","v":0},null,"  Division Codes: Use the following 3 digit codes in the DivCode field."]
[null,null,null,null,null,null,null,"Rd4. Use Special Sort if Final round.    ",null,null,null,null,null,"column for players in Semi/Final.",null,null,null,"PROFESSIONAL DIVISIONS",null,null,null,"AMATEUR DIVISIONS",null,null,null,"RATINGS DIVISIONS",null,null,"JUNIOR DIVISIONS"]
[null,null,null,null,null,null,null,null,null,null,null,null,"Canadian","Am Cash",null,"Conv to",null,"MPO","Pro Open",null,null,"MA1","Advanced",null,null,"Code","Color","Rating","MJ1","Junior Boys < 18"]
["DivCode","T.O.","Place","First Name","Last Name","PDGA","Rd1","Rd2","Rd3","Rd4","Final","Total","Cash/Local","Decline?","divto","Cash/Value",null,"MPM","Pro Master",null,null,"MA2","Intermediate",null,null,"RPA","Gold","970+","MJ2","Junior Boys < 15"]
[null,null,null,null,null,null,null,null,null,null,null,{"$f":"IF(SUM(G10:K10)=0,\"\",IF(SUM(G10:K10)>=888,\"DNF\",SUM(G10:K10)))","v":""},null,null,{"$f":"CONCATENATE(A10,B10)","v":""},{"$f":"IF(M10<>\"\",M10*S$42,\"\")","v":""},null,"MPG","Pro Grandmaster",null,null,"MA3","Recreational",null,null,"RAH","Blue","<970","MJ3","Junior Boys < 12"]
[null,null,null,null,null,null,null,null,null,null,null,"",null,null,{"$f":"CONCATENATE(A11,B11)","v":""},null,null,"MPS","Pro Sr Grandmaster",null,null,"MA4","Novice",null,null,"RAD","White","<935","MJ4","Junior Boys < 10"]
[null,null,null,null,null,null,null,null,null,null,null,"",null,null,"",{"$f":"IF(M12<>\"\",M12*S$42,\"\")","v":""},null,"MPL","Pro Legend",null,null,"FA1","Advanced Women",null,null,"RAE","Red","<900","MJ5","Junior Boys < 8"]
[null,null,null,null,null,null,null,null,null,null,null,"",null,null,"","",null,"MPE","Pro Sr Legend 75+",null,null,"FA2","Intermediate Women",null,null,"RAF","Green","<850","MJ6","Junior Boys < 6"]
[null,null,null,null,null,null,null,null,null,null,null,"",null,null,"","",null,"MPR","Pro Grand Legend 80+",null,null,"FA3","Recreational Women",null,null,"RAG","Purple","<800","FJ1","Junior Girls < 18"]
[null,null,null,null,null,null,null,null,null,null,null,"",null,null,"","",null,"FPO","Pro Women",null,null,"FA4","Novice Women",null,null,null,null,null,"FJ2","Junior Girls < 15"]
[null,null,null,null,null,null,null,null,null,null,null,"",null,null,"","",null,"FPM","Pro Master Women",null,null,"MM1","Advanced Master",null,null,"FM1","Adv Master Women",null,"FJ3","Junior Girls < 12"]
[null,null,null,null,null,null,null,null,null,null,null,"",null,null,"","",null,"FPG","Pro Grandmaster Women",null,null,"MG1","Adv Grandmaster",null,null,"FG1","Adv GM Women",null,"FJ4","Junior Girls < 10"]
[null,null,null,null,null,null,null,null,null,null,null,"",null,null,"","",null,"FPS","Pro Sr Grandmaster Women",null,null,"MS1","Adv Sr Grandmaster",null,null,"FS1","Adv Sr GM Women",null,"FJ5","Junior Girls < 8"]
[null,null,null,null,null,null,null,null,null,null,null,"",null,null,"","",null,"FPL","Pro Legend Women",null,null,"ML1","Adv Legend",null,null,"FL1","Adv Legend Women",null,"FJ6","Junior Girls < 6"]
[null,null,null,null,null,null,null,null,null,null,null,"",null,null,"",""]
[null,null,null,null,null,null,null,null,null,null,null,"",null,null,"","",null,"Instructions"]
[null,null,null,null,null,null,null,null,null,null,null,"",null,null,"","",null," - Enter players names in Proper Case = John Smith (Do NOT type in players as john smith or JOHN SMITH"]
[null,null,null,null,null,null,null,null,null,null,null,"",null,null,"","",null,"       or John SMITH, because the PDGA database cannot process official results in these formats)"]
[null,null,null,null,null,null,null,null,null,null,null,"",null,null,"","",null," - TOTAL column L adds up round scores automatically"]
[null,null,null,null,null,null,null,null,null,null,null,"",null,null,"","",null," - If your event included Semi and/or Final Rounds, enter those Scores in columns J & K."]
[null,null,null,null,null,null,null,null,null,null,null,"",null,null,"","",null," - Do not leave a blank line between one division and the next division."]
[null,null,null,null,null,null,null,null,null,null,null,"",null,null,"","",null," - Be sure to include the amounts of pro cash won in the Cash/Value column if event had Pro cash payout"]
[null,null,null,null,null,null,null,null,null,null,null,"",null,null,"","",null," - DO NOT include prize values in Cash/Value column for Ams who played Pro and declined cash, but DO add that"]
[null,null,null,null,null,null,null,null,null,null,null,"",null,null,"","",null,"       value in cell T23 on the Cover page so your event gets credit for total value paid out in Pro divisions."]
[null,null,null,null,null,null,null,null,null,null,null,"",null,null,"","",null," - Use a Sort button to sort players by division and score so places of finish reflect their place within their division"]
[null,null,null,null,null,null,null,null,null,null,null,"",null,null,"","",null,"       only and not their place within the overall event."]
[null,null,null,null,null,null,null,null,null,null,null,"",null,null,"","",null," - In column N, enter Yes for each amateur who declined accepting cash payout."]
[null,null,null,null,null,null,null,null,null,null,null,"",null,null,"",""]
[null,null,null,null,null,null,null,null,null,null,null,"",null,null,"","",null,"NOTES",null,null,"Type only in white"]
[null,null,null,null,null,null,null,null,null,null,null,"",null,null,"","",null,null,null,null,"or yellow boxes"]
[null,null,null,null,null,null,null,null,null,null,null,"",null,null,"","",null,"Do not insert or",null,null,"DO NOT TYPE IN"]
[null,null,null,null,null,null,null,null,null,null,null,"",null,null,"","",null,"delete rows. All ",null,null,"BLUE OR"]
[null,null,null,null,null,null,null,null,null,null,null,"",null,null,"","",null,"cells positioned",null,null,"GREEN BOXES!"]
[null,null,null,null,null,null,null,null,null,null,null,"",null,null,"","",null,"for data importing",null,null,"These all use"]
[null,null,null,null,null,null,null,null,null,null,null,"",null,null,"","",null,null,null,null,"automatic entries"]
[null,null,null,null,null,null,null,null,null,null,null,"",null,null,"","",null,null,"CD$ > US$"]
[null,null,null,null,null,null,null,null,null,null,null,"",null,null,"","",null,null,0.75]
[null,null,null,null,null,null,null,null,null,null,null,"",null,null,"",""]
[null,null,null,null,null,null,null,null,null,null,null,"",null,null,"",""]
[null,null,null,null,null,null,null,null,null,null,null,"",null,null,"",""]
[null,null,null,null,null,null,null,null,null,null,null,"",null,null,"",""]
[null,null,null,null,null,null,null,null,null,null,null,"",null,null,"",""]
[null,null,null,null,null,null,null,null,null,null,null,"",null,null,"",""]
[null,null,null,null,null,null,null,null,null,null,null,"",null,null,"",""]
[null,null,null,null,null,null,null,null,null,null,null,"",null,null,"",""]
[null,null,null,null,null,null,null,null,null,null,null,"",null,null,"",""]
[null,null,null,null,null,null,null,null,null,null,null,"",null,null,"",""]
[null,null,null,null,null,null,null,null,null,null,null,"",null,null,"",""]
[null,null,null,null,null,null,null,null,null,null,null,"",null,null,"",""]
[null,null,null,null,null,null,null,null,null,null,null,"",null,null,"",""]
[null,null,null,null,null,null,null,null,null,null,null,"",null,null,"",""]
[null,null,null,null,null,null,null,null,null,null,null,"",null,null,"",""]
[null,null,null,null,null,null,null,null,null,null,null,"",null,null,"",""]
[null,null,null,null,null,null,null,null,null,null,null,"",null,null,"",""]
[null,null,null,null,null,null,null,null,null,null,null,"",null,null,"",""]
[null,null,null,null,null,null,null,null,null,null,null,"",null,null,"",""]
[null,null,null,null,null,null,null,null,null,null,null,"",null,null,"",""]
[null,null,null,null,null,null,null,null,null,null,null,"",null,null,"",""]
[null,null,null,null,null,null,null,null,null,null,null,"",null,null,"",""]
[null,null,null,null,null,null,null,null,null,null,null,"",null,null,"",""]
[null,null,null,null,null,null,null,null,null,null,null,"",null,null,"",""]
[null,null,null,null,null,null,null,null,null,null,null,"",null,null,"",""]
[null,null,null,null,null,null,null,null,null,null,null,"",null,null,"",""]
[null,null,null,null,null,null,null,null,null,null,null,"",null,null,"",""]
[null,null,null,null,null,null,null,null,null,null,null,"",null,null,"",""]
[null,null,null,null,null,null,null,null,null,null,null,"",null,null,"",""]
[null,null,null,null,null,null,null,null,null,null,null,"",null,null,"",""]
[null,null,null,null,null,null,null,null,null,null,null,"",null,null,"",""]
[null,null,null,null,null,null,null,null,null,null,null,{"$f":"IF(SUM(G74:K74)=0,\"\",IF(SUM(G74:K74)>=888,\"DNF\",SUM(G74:K74)))","v":""},null,null,"",""]
[null,null,null,null,null,null,null,null,null,null,null,"",null,null,{"$f":"CONCATENATE(A75,B75)","v":""},{"$f":"IF(M75<>\"\",M75*S$42,\"\")","v":""}]
[null,null,null,null,null,null,null,null,null,null,null,"",null,null,"",""]
[null,null,null,null,null,null,null,null,null,null,null,"",null,null,"",""]
[null,null,null,null,null,null,null,null,null,null,null,"",null,null,"",""]
[null,null,null,null,null,null,null,null,null,null,null,"",null,null,"",""]
[null,null,null,null,null,null,null,null,null,null,null,"",null,null,"",""]
[null,null,null,null,null,null,null,null,null,null,null,"",null,null,"",""]
[null,null,null,null,null,null,null,null,null,null,null,"",null,null,"",""]
[null,null,null,null,null,null,null,null,null,null,null,"",null,null,"",""]
[null,null,null,null,null,null,null,null,null,null,null,"",null,null,"",""]
[null,null,null,null,null,null,null,null,null,null,null,"",null,null,"",""]
[null,null,null,null,null,null,null,null,null,null,null,"",null,null,"",""]
[null,null,null,null,null,null,null,null,null,null,null,"",null,null,"",""]
[null,null,null,null,null,null,null,null,null,null,null,"",null,null,"",""]
[null,null,null,null,null,null,null,null,null,null,null,"",null,null,"",""]
[null,null,null,null,null,null,null,null,null,null,null,"",null,null,"",""]
[null,null,null,null,null,null,null,null,null,null,null,"",null,null,"",""]
[null,null,null,null,null,null,null,null,null,null,null,"",null,null,"",""]
[null,null,null,null,null,null,null,null,null,null,null,"",null,null,"",""]
[null,null,null,null,null,null,null,null,null,null,null,"",null,null,"",""]
[null,null,null,null,null,null,null,null,null,null,null,"",null,null,"",""]
[null,null,null,null,null,null,null,null,null,null,null,"",null,null,"",""]
[null,null,null,null,null,null,null,null,null,null,null,"",null,null,"",""]
[null,null,null,null,null,null,null,null,null,null,null,"",null,null,"",""]
[null,null,null,null,null,null,null,null,null,null,null,"",null,null,"",""]
[null,null,null,null,null,null,null,null,null,null,null,"",null,null,"",""]
[null,null,null,null,null,null,null,null,null,null,null,"",null,null,"",""]
[null,null,null,null,null,null,null,null,null,null,null,"",null,null,"",""]
[null,null,null,null,null,null,null,null,null,null,null,"",null,null,"",""]
[null,null,null,null,null,null,null,null,null,null,null,"",null,null,"",""]
[null,null,null,null,null,null,null,null,null,null,null,"",null,null,"",""]
[null,null,null,null,null,null,null,null,null,null,null,"",null,null,"",""]
[null,null,null,null,null,null,null,null,null,null,null,"",null,null,"",""]
[null,null,null,null,null,null,null,null,null,null,null,"",null,null,"",""]
[null,null,null,null,null,null,null,null,null,null,null,"",null,null,"",""]
[null,null,null,null,null,null,null,null,null,null,null,"",null,null,"",""]
[null,null,null,null,null,null,null,null,null,null,null,"",null,null,"",""]
[null,null,null,null,null,null,null,null,null,null,null,"",null,null,"",""]
[null,null,null,null,null,null,null,null,null,null,null,"",null,null,"",""]
[null,null,null,null,null,null,null,null,null,null,null,"",null,null,"",""]
[null,null,null,null,null,null,null,null,null,null,null,"",null,null,"",""]
[null,null,null,null,null,null,null,null,null,null,null,"",null,null,"",""]
[null,null,null,null,null,null,null,null,null,null,null,"",null,null,"",""]
[null,null,null,null,null,null,null,null,null,null,null,"",null,null,"",""]
[null,null,null,null,null,null,null,null,null,null,null,"",null,null,"",""]
[null,null,null,null,null,null,null,null,null,null,null,"",null,null,"",""]
[null,null,null,null,null,null,null,null,null,null,null,"",null,null,"",""]
[null,null,null,null,null,null,null,null,null,null,null,"",null,null,"",""]
[null,null,null,null,null,null,null,null,null,null,null,"",null,null,"",""]
[null,null,null,null,null,null,null,null,null,null,null,"",null,null,"",""]
[null,null,null,null,null,null,null,null,null,null,null,"",null,null,"",""]
[null,null,null,null,null,null,null,null,null,null,null,"",null,null,"",""]
[null,null,null,null,null,null,null,null,null,null,null,"",null,null,"",""]
[null,null,null,null,null,null,null,null,null,null,null,"",null,null,"",""]
[null,null,null,null,null,null,null,null,null,null,null,"",null,null,"",""]
[null,null,null,null,null,null,null,null,null,null,null,"",null,null,"",""]
[null,null,null,null,null,null,null,null,null,null,null,"",null,null,"",""]
[null,null,null,null,null,null,null,null,null,null,null,"",null,null,"",""]
[null,null,null,null,null,null,null,null,null,null,null,"",null,null,"",""]
[null,null,null,null,null,null,null,null,null,null,null,"",null,null,"",""]
[null,null,null,null,null,null,null,null,null,null,null,"",null,null,"",""]
[null,null,null,null,null,null,null,null,null,null,null,"",null,null,"",""]
[null,null,null,null,null,null,null,null,null,null,null,"",null,null,"",""]
[null,null,null,null,null,null,null,null,null,null,null,{"$f":"IF(SUM(G138:K138)=0,\"\",IF(SUM(G138:K138)>=888,\"DNF\",SUM(G138:K138)))","v":""},null,null,"",""]
[null,null,null,null,null,null,null,null,null,null,null,"",null,null,{"$f":"CONCATENATE(A139,B139)","v":""},{"$f":"IF(M139<>\"\",M139*S$42,\"\")","v":""}]
[null,null,null,null,null,null,null,null,null,null,null,"",null,null,"",""]
[null,null,null,null,null,null,null,null,null,null,null,"",null,null,"",""]
[null,null,null,null,null,null,null,null,null,null,null,"",null,null,"",""]
[null,null,null,null,null,null,null,null,null,null,null,"",null,null,"",""]
[null,null,null,null,null,null,null,null,null,null,null,"",null,null,"",""]
[null,null,null,null,null,null,null,null,null,null,null,"",null,null,"",""]
[null,null,null,null,null,null,null,null,null,null,null,"",null,null,"",""]
[null,null,null,null,null,null,null,null,null,null,null,"",null,null,"",""]
[null,null,null,null,null,null,null,null,null,null,null,"",null,null,"",""]
[null,null,null,null,null,null,null,null,null,null,null,"",null,null,"",""]
[null,null,null,null,null,null,null,null,null,null,null,"",null,null,"",""]
[null,null,null,null,null,null,null,null,null,null,null,"",null,null,"",""]
[null,null,null,null,null,null,null,null,null,null,null,"",null,null,"",""]
[null,null,null,null,null,null,null,null,null,null,null,"",null,null,"",""]
[null,null,null,null,null,null,null,null,null,null,null,"",null,null,"",""]
[null,null,null,null,null,null,null,null,null,null,null,"",null,null,"",""]
[null,null,null,null,null,null,null,null,null,null,null,"",null,null,"",""]
[null,null,null,null,null,null,null,null,null,null,null,"",null,null,"",""]
[null,null,null,null,null,null,null,null,null,null,null,"",null,null,"",""]
[null,null,null,null,null,null,null,null,null,null,null,"",null,null,"",""]
[null,null,null,null,null,null,null,null,null,null,null,"",null,null,"",""]
[null,null,null,null,null,null,null,null,null,null,null,"",null,null,"",""]
[null,null,null,null,null,null,null,null,null,null,null,"",null,null,"",""]
[null,null,null,null,null,null,null,null,null,null,null,"",null,null,"",""]
[null,null,null,null,null,null,null,null,null,null,null,"",null,null,"",""]
[null,null,null,null,null,null,null,null,null,null,null,"",null,null,"",""]
[null,null,null,null,null,null,null,null,null,null,null,"",null,null,"",""]
[null,null,null,null,null,null,null,null,null,null,null,"",null,null,"",""]
[null,null,null,null,null,null,null,null,null,null,null,"",null,null,"",""]
[null,null,null,null,null,null,null,null,null,null,null,"",null,null,"",""]
[null,null,null,null,null,null,null,null,null,null,null,"",null,null,"",""]
[null,null,null,null,null,null,null,null,null,null,null,"",null,null,"",""]
[null,null,null,null,null,null,null,null,null,null,null,"",null,null,"",""]
[null,null,null,null,null,null,null,null,null,null,null,"",null,null,"",""]
[null,null,null,null,null,null,null,null,null,null,null,"",null,null,"",""]
[null,null,null,null,null,null,null,null,null,null,null,"",null,null,"",""]
[null,null,null,null,null,null,null,null,null,null,null,"",null,null,"",""]
[null,null,null,null,null,null,null,null,null,null,null,"",null,null,"",""]
[null,null,null,null,null,null,null,null,null,null,null,"",null,null,"",""]
[null,null,null,null,null,null,null,null,null,null,null,"",null,null,"",""]
[null,null,null,null,null,null,null,null,null,null,null,"",null,null,"",""]
[null,null,null,null,null,null,null,null,null,null,null,"",null,null,"",""]
[null,null,null,null,null,null,null,null,null,null,null,"",null,null,"",""]
[null,null,null,null,null,null,null,null,null,null,null,"",null,null,"",""]
[null,null,null,null,null,null,null,null,null,null,null,"",null,null,"",""]
[null,null,null,null,null,null,null,null,null,null,null,"",null,null,"",""]
[null,null,null,null,null,null,null,null,null,null,null,"",null,null,"",""]
[null,null,null,null,null,null,null,null,null,null,null,"",null,null,"",""]
[null,null,null,null,null,null,null,null,null,null,null,"",null,null,"",""]
[null,null,null,null,null,null,null,null,null,null,null,"",null,null,"",""]
[null,null,null,null,null,null,null,null,null,null,null,"",null,null,"",""]
[null,null,null,null,null,null,null,null,null,null,null,"",null,null,"",""]
[null,null,null,null,null,null,null,null,null,null,null,"",null,null,"",""]
[null,null,null,null,null,null,null,null,null,null,null,"",null,null,"",""]
[null,null,null,null,null,null,null,null,null,null,null,"",null,null,"",""]
[null,null,null,null,null,null,null,null,null,null,null,"",null,null,"",""]
[null,null,null,null,null,null,null,null,null,null,null,"",null,null,"",""]
[null,null,null,null,null,null,null,null,null,null,null,"",null,null,"",""]
[null,null,null,null,null,null,null,null,null,null,null,"",null,null,"",""]
[null,null,null,null,null,null,null,null,null,null,null,"",null,null,"",""]
[null,null,null,null,null,null,null,null,null,null,null,"",null,null,"",""]
[null,null,null,null,null,null,null,null,null,null,null,"",null,null,"",""]
[null,null,null,null,null,null,null,null,null,null,null,{"$f":"IF(SUM(G202:K202)=0,\"\",IF(SUM(G202:K202)>=888,\"DNF\",SUM(G202:K202)))","v":""},null,null,"",""]
[null,null,null,null,null,null,null,null,null,null,null,"",null,null,{"$f":"CONCATENATE(A203,B203)","v":""},{"$f":"IF(M203<>\"\",M203*S$42,\"\")","v":""}]
[null,null,null,null,null,null,null,null,null,null,null,"",null,null,"",""]
[null,null,null,null,null,null,null,null,null,null,null,"",null,null,"",""]
[null,null,null,null,null,null,null,null,null,null,null,"",null,null,"",""]
[null,null,null,null,null,null,null,null,null,null,null,"",null,null,"",""]
[null,null,null,null,null,null,null,null,null,null,null,"",null,null,"",""]
[null,null,null,null,null,null,null,null,null,null,null,"",null,null,"",""]
[null,null,null,null,null,null,null,null,null,null,null,"",null,null,"",""]
[null,null,null,null,null,null,null,null,null,null,null,"",null,null,"",""]
[null,null,null,null,null,null,null,null,null,null,null,"",null,null,"",""]
[null,null,null,null,null,null,null,null,null,null,null,"",null,null,"",""]
[null,null,null,null,null,null,null,null,null,null,null,"",null,null,"",""]
[null,null,null,null,null,null,null,null,null,null,null,"",null,null,"",""]
[null,null,null,null,null,null,null,null,null,null,null,"",null,null,"",""]
[null,null,null,null,null,null,null,null,null,null,null,"",null,null,"",""]
[null,null,null,null,null,null,null,null,null,null,null,"",null,null,"",""]
[null,null,null,null,null,null,null,null,null,null,null,"",null,null,"",""]
[null,null,null,null,null,null,null,null,null,null,null,"",null,null,"",""]
[null,null,null,null,null,null,null,null,null,null,null,"",null,null,"",""]
[null,null,null,null,null,null,null,null,null,null,null,"",null,null,"",""]
[null,null,null,null,null,null,null,null,null,null,null,"",null,null,"",""]
[null,null,null,null,null,null,null,null,null,null,null,"",null,null,"",""]
[null,null,null,null,null,null,null,null,null,null,null,"",null,null,"",""]
[null,null,null,null,null,null,null,null,null,null,null,"",null,null,"",""]
[null,null,null,null,null,null,null,null,null,null,null,"",null,null,"",""]
[null,null,null,null,null,null,null,null,null,null,null,"",null,null,"",""]
[null,null,null,null,null,null,null,null,null,null,null,"",null,null,"",""]
[null,null,null,null,null,null,null,null,null,null,null,"",null,null,"",""]
[null,null,null,null,null,null,null,null,null,null,null,"",null,null,"",""]
[null,null,null,null,null,null,null,null,null,null,null,"",null,null,"",""]
[null,null,null,null,null,null,null,null,null,null,null,"",null,null,"",""]
[null,null,null,null,null,null,null,null,null,null,null,"",null,null,"",""]
[null,null,null,null,null,null,null,null,null,null,null,"",null,null,"",""]
[null,null,null,null,null,null,null,null,null,null,null,"",null,null,"",""]
[null,null,null,null,null,null,null,null,null,null,null,"",null,null,"",""]
[null,null,null,null,null,null,null,null,null,null,null,"",null,null,"",""]
[null,null,null,null,null,null,null,null,null,null,null,"",null,null,"",""]
[null,null,null,null,null,null,null,null,null,null,null,"",null,null,"",""]
[null,null,null,null,null,null,null,null,null,null,null,"",null,null,"",""]
[null,null,null,null,null,null,null,null,null,null,null,"",null,null,"",""]
[null,null,null,null,null,null,null,null,null,null,null,"",null,null,"",""]
[null,null,null,null,null,null,null,null,null,null,null,"",null,null,"",""]
[null,null,null,null,null,null,null,null,null,null,null,"",null,null,"",""]
[null,null,null,null,null,null,null,null,null,null,null,"",null,null,"",""]
[null,null,null,null,null,null,null,null,null,null,null,"",null,null,"",""]
[null,null,null,null,null,null,null,null,null,null,null,"",null,null,"",""]
[null,null,null,null,null,null,null,null,null,null,null,"",null,null,"",""]
[null,null,null,null,null,null,null,null,null,null,null,"",null,null,"",""]
[null,null,null,null,null,null,null,null,null,null,null,"",null,null,"",""]
[null,null,null,null,null,null,null,null,null,null,null,"",null,null,"",""]
[null,null,null,null,null,null,null,null,null,null,null,"",null,null,"",""]
[null,null,null,null,null,null,null,null,null,null,null,"",null,null,"",""]
[null,null,null,null,null,null,null,null,null,null,null,"",null,null,"",""]
[null,null,null,null,null,null,null,null,null,null,null,"",null,null,"",""]
[null,null,null,null,null,null,null,null,null,null,null,"",null,null,"",""]
[null,null,null,null,null,null,null,null,null,null,null,"",null,null,"",""]
[null,null,null,null,null,null,null,null,null,null,null,"",null,null,"",""]
[null,null,null,null,null,null,null,null,null,null,null,"",null,null,"",""]
[null,null,null,null,null,null,null,null,null,null,null,"",null,null,"",""]
[null,null,null,null,null,null,null,null,null,null,null,"",null,null,"",""]
[null,null,null,null,null,null,null,null,null,null,null,"",null,null,"",""]
[null,null,null,null,null,null,null,null,null,null,null,"",null,null,"",""]
[null,null,null,null,null,null,null,null,null,null,null,"",null,null,"",""]
[null,null,null,null,null,null,null,null,null,null,null,{"$f":"IF(SUM(G266:K266)=0,\"\",IF(SUM(G266:K266)>=888,\"DNF\",SUM(G266:K266)))","v":""},null,null,"",""]
[null,null,null,null,null,null,null,null,null,null,null,"",null,null,{"$f":"CONCATENATE(A267,B267)","v":""},{"$f":"IF(M267<>\"\",M267*S$42,\"\")","v":""}]
[null,null,null,null,null,null,null,null,null,null,null,"",null,null,"",""]
[null,null,null,null,null,null,null,null,null,null,null,"",null,null,"",""]
[null,null,null,null,null,null,null,null,null,null,null,"",null,null,"",""]
[null,null,null,null,null,null,null,null,null,null,null,"",null,null,"",""]
[null,null,null,null,null,null,null,null,null,null,null,"",null,null,"",""]
[null,null,null,null,null,null,null,null,null,null,null,"",null,null,"",""]
[null,null,null,null,null,null,null,null,null,null,null,"",null,null,"",""]
[null,null,null,null,null,null,null,null,null,null,null,"",null,null,"",""]
[null,null,null,null,null,null,null,null,null,null,null,"",null,null,"",""]
[null,null,null,null,null,null,null,null,null,null,null,"",null,null,"",""]
[null,null,null,null,null,null,null,null,null,null,null,"",null,null,"",""]
[null,null,null,null,null,null,null,null,null,null,null,"",null,null,"",""]
[null,null,null,null,null,null,null,null,null,null,null,"",null,null,"",""]
[null,null,null,null,null,null,null,null,null,null,null,"",null,null,"",""]
[null,null,null,null,null,null,null,null,null,null,null,"",null,null,"",""]
[null,null,null,null,null,null,null,null,null,null,null,"",null,null,"",""]
[null,null,null,null,null,null,null,null,null,null,null,"",null,null,"",""]
[null,null,null,null,null,null,null,null,null,null,null,"",null,null,"",""]
[null,null,null,null,null,null,null,null,null,null,null,"",null,null,"",""]
[null,null,null,null,null,null,null,null,null,null,null,"",null,null,"",""]
[null,null,null,null,null,null,null,null,null,null,null,"",null,null,"",""]
[null,null,null,null,null,null,null,null,null,null,null,"",null,null,"",""]
[null,null,null,null,null,null,null,null,null,null,null,"",null,null,"",""]
[null,null,null,null,null,null,null,null,null,null,null,"",null,null,"",""]
[null,null,null,null,null,null,null,null,null,null,null,"",null,null,"",""]
[null,null,null,null,null,null,null,null,null,null,null,"",null,null,"",""]
[null,null,null,null,null,null,null,null,null,null,null,"",null,null,"",""]
[null,null,null,null,null,null,null,null,null,null,null,"",null,null,"",""]
[null,null,null,null,null,null,null,null,null,null,null,"",null,null,"",""]
[null,null,null,null,null,null,null,null,null,null,null,"",null,null,"",""]
[null,null,null,null,null,null,null,null,null,null,null,"",null,null,"",""]
[null,null,null,null,null,null,null,null,null,null,null,"",null,null,"",""]
[null,null,null,null,null,null,null,null,null,null,null,"",null,null,"",""]
[null,null,null,null,null,null,null,null,null,null,null,"",null,null,"",""]
[null,null,null,null,null,null,null,null,null,null,null,"",null,null,"",""]
[null,null,null,null,null,null,null,null,null,null,null,"",null,null,"",""]
[null,null,null,null,null,null,null,null,null,null,null,"",null,null,"",""]
[null,null,null,null,null,null,null,null,null,null,null,"",null,null,"",""]
[null,null,null,null,null,null,null,null,null,null,null,"",null,null,"",""]
[null,null,null,null,null,null,null,null,null,null,null,"",null,null,"",""]
[null,null,null,null,null,null,null,null,null,null,null,"",null,null,"",""]
[null,null,null,null,null,null,null,null,null,null,null,"",null,null,"",""]
[null,null,null,null,null,null,null,null,null,null,null,"",null,null,"",""]
[null,null,null,null,null,null,null,null,null,null,null,"",null,null,"",""]
[null,null,null,null,null,null,null,null,null,null,null,"",null,null,"",""]
[null,null,null,null,null,null,null,null,null,null,null,"",null,null,"",""]
[null,null,null,null,null,null,null,null,null,null,null,"",null,null,"",""]
[null,null,null,null,null,null,null,null,null,null,null,"",null,null,"",""]
[null,null,null,null,null,null,null,null,null,null,null,"",null,null,"",""]
[null,null,null,null,null,null,null,null,null,null,null,"",null,null,"",""]
[null,null,null,null,null,null,null,null,null,null,null,"",null,null,"",""]
[null,null,null,null,null,null,null,null,null,null,null,"",null,null,"",""]
[null,null,null,null,null,null,null,null,null,null,null,"",null,null,"",""]
[null,null,null,null,null,null,null,null,null,null,null,"",null,null,"",""]
[null,null,null,null,null,null,null,null,null,null,null,"",null,null,"",""]
[null,null,null,null,null,null,null,null,null,null,null,"",null,null,"",""]
[null,null,null,null,null,null,null,null,null,null,null,"",null,null,"",""]
[null,null,null,null,null,null,null,null,null,null,null,"",null,null,"",""]
[null,null,null,null,null,null,null,null,null,null,null,"",null,null,"",""]
[null,null,null,null,null,null,null,null,null,null,null,"",null,null,"",""]
[null,null,null,null,null,null,null,null,null,null,null,"",null,null,"",""]
[null,null,null,null,null,null,null,null,null,null,null,"",null,null,"",""]
[null,null,null,null,null,null,null,null,null,null,null,{"$f":"IF(SUM(G330:K330)=0,\"\",IF(SUM(G330:K330)>=888,\"DNF\",SUM(G330:K330)))","v":""},null,null,"",""]
[null,null,null,null,null,null,null,null,null,null,null,"",null,null,{"$f":"CONCATENATE(A331,B331)","v":""},{"$f":"IF(M331<>\"\",M331*S$42,\"\")","v":""}]
[null,null,null,null,null,null,null,null,null,null,null,"",null,null,"",""]
[null,null,null,null,null,null,null,null,null,null,null,"",null,null,"",""]
[null,null,null,null,null,null,null,null,null,null,null,"",null,null,"",""]
[null,null,null,null,null,null,null,null,null,null,null,"",null,null,"",""]
[null,null,null,null,null,null,null,null,null,null,null,"",null,null,"",""]
[null,null,null,null,null,null,null,null,null,null,null,"",null,null,"",""]
[null,null,null,null,null,null,null,null,null,null,null,"",null,null,"",""]
[null,null,null,null,null,null,null,null,null,null,null,"",null,null,"",""]
[null,null,null,null,null,null,null,null,null,null,null,"",null,null,"",""]
[null,null,null,null,null,null,null,null,null,null,null,"",null,null,"",""]
[null,null,null,null,null,null,null,null,null,null,null,"",null,null,"",""]
[null,null,null,null,null,null,null,null,null,null,null,"",null,null,"",""]
[null,null,null,null,null,null,null,null,null,null,null,"",null,null,"",""]
[null,null,null,null,null,null,null,null,null,null,null,"",null,null,"",""]
[null,null,null,null,null,null,null,null,null,null,null,"",null,null,"",""]
[null,null,null,null,null,null,null,null,null,null,null,"",null,null,"",""]
[null,null,null,null,null,null,null,null,null,null,null,"",null,null,"",""]
[null,null,null,null,null,null,null,null,null,null,null,"",null,null,"",""]
[null,null,null,null,null,null,null,null,null,null,null,"",null,null,"",""]
[null,null,null,null,null,null,null,null,null,null,null,"",null,null,"",""]
[null,null,null,null,null,null,null,null,null,null,null,"",null,null,"",""]
[null,null,null,null,null,null,null,null,null,null,null,"",null,null,"",""]
[null,null,null,null,null,null,null,null,null,null,null,"",null,null,"",""]
[null,null,null,null,null,null,null,null,null,null,null,"",null,null,"",""]
[null,null,null,null,null,null,null,null,null,null,null,"",null,null,"",""]
[null,null,null,null,null,null,null,null,null,null,null,"",null,null,"",""]
[null,null,null,null,null,null,null,null,null,null,null,"",null,null,"",""]
[null,null,null,null,null,null,null,null,null,null,null,"",null,null,"",""]
[null,null,null,null,null,null,null,null,null,null,null,"",null,null,"",""]
[null,null,null,null,null,null,null,null,null,null,null,"",null,null,"",""]
[null,null,null,null,null,null,null,null,null,null,null,"",null,null,"",""]
[null,null,null,null,null,null,null,null,null,null,null,"",null,null,"",""]
[null,null,null,null,null,null,null,null,null,null,null,"",null,null,"",""]
[null,null,null,null,null,null,null,null,null,null,null,"",null,null,"",""]
[null,null,null,null,null,null,null,null,null,null,null,"",null,null,"",""]
[null,null,null,null,null,null,null,null,null,null,null,"",null,null,"",""]
[null,null,null,null,null,null,null,null,null,null,null,"",null,null,"",""]
[null,null,null,null,null,null,null,null,null,null,null,"",null,null,"",""]
[null,null,null,null,null,null,null,null,null,null,null,"",null,null,"",""]
[null,null,null,null,null,null,null,null,null,null,null,"",null,null,"",""]
[null,null,null,null,null,null,null,null,null,null,null,"",null,null,"",""]
[null,null,null,null,null,null,null,null,null,null,null,"",null,null,"",""]
[null,null,null,null,null,null,null,null,null,null,null,"",null,null,"",""]
[null,null,null,null,null,null,null,null,null,null,null,"",null,null,"",""]
[null,null,null,null,null,null,null,null,null,null,null,"",null,null,"",""]
[null,null,null,null,null,null,null,null,null,null,null,"",null,null,"",""]
[null,null,null,null,null,null,null,null,null,null,null,"",null,null,"",""]
[null,null,null,null,null,null,null,null,null,null,null,"",null,null,"",""]
[null,null,null,null,null,null,null,null,null,null,null,"",null,null,"",""]
[null,null,null,null,null,null,null,null,null,null,null,"",null,null,"",""]
[null,null,null,null,null,null,null,null,null,null,null,"",null,null,"",""]
[null,null,null,null,null,null,null,null,null,null,null,"",null,null,"",""]
[null,null,null,null,null,null,null,null,null,null,null,"",null,null,"",""]
[null,null,null,null,null,null,null,null,null,null,null,"",null,null,"",""]
[null,null,null,null,null,null,null,null,null,null,null,"",null,null,"",""]
[null,null,null,null,null,null,null,null,null,null,null,"",null,null,"",""]
[null,null,null,null,null,null,null,null,null,null,null,"",null,null,"",""]
[null,null,null,null,null,null,null,null,null,null,null,"",null,null,"",""]
[null,null,null,null,null,null,null,null,null,null,null,"",null,null,"",""]
[null,null,null,null,null,null,null,null,null,null,null,"",null,null,"",""]
[null,null,null,null,null,null,null,null,null,null,null,"",null,null,"",""]
[null,null,null,null,null,null,null,null,null,null,null,"",null,null,"",""]
[null,null,null,null,null,null,null,null,null,null,null,{"$f":"IF(SUM(G394:K394)=0,\"\",IF(SUM(G394:K394)>=888,\"DNF\",SUM(G394:K394)))","v":""},null,null,"",""]
[null,null,null,null,null,null,null,null,null,null,null,"",null,null,{"$f":"CONCATENATE(A395,B395)","v":""},{"$f":"IF(M395<>\"\",M395*S$42,\"\")","v":""}]
[null,null,null,null,null,null,null,null,null,null,null,"",null,null,"",""]
[null,null,null,null,null,null,null,null,null,null,null,"",null,null,"",""]
[null,null,null,null,null,null,null,null,null,null,null,"",null,null,"",""]
[null,null,null,null,null,null,null,null,null,null,null,"",null,null,"",""]
[null,null,null,null,null,null,null,null,null,null,null,"",null,null,"",""]
[null,null,null,null,null,null,null,null,null,null,null,"",null,null,"",""]
[null,null,null,null,null,null,null,null,null,null,null,"",null,null,"",""]
[null,null,null,null,null,null,null,null,null,null,null,"",null,null,"",""]
[null,null,null,null,null,null,null,null,null,null,null,"",null,null,"",""]
[null,null,null,null,null,null,null,null,null,null,null,"",null,null,"",""]
[null,null,null,null,null,null,null,null,null,null,null,"",null,null,"",""]
[null,null,null,null,null,null,null,null,null,null,null,"",null,null,"",""]
[null,null,null,null,null,null,null,null,null,null,null,"",null,null,"",""]
[null,null,null,null,null,null,null,null,null,null,null,"",null,null,"",""]
[null,null,null,null,null,null,null,null,null,null,null,"",null,null,"",""]
[null,null,null,null,null,null,null,null,null,null,null,"",null,null,"",""]
[null,null,null,null,null,null,null,null,null,null,null,"",null,null,"",""]
[null,null,null,null,null,null,null,null,null,null,null,"",null,null,"",""]
[null,null,null,null,null,null,null,null,null,null,null,"",null,null,"",""]
[null,null,null,null,null,null,null,null,null,null,null,"",null,null,"",""]
[null,null,null,null,null,null,null,null,null,null,null,"",null,null,"",""]
[null,null,null,null,null,null,null,null,null,null,null,"",null,null,"",""]
[null,null,null,null,null,null,null,null,null,null,null,"",null,null,"",""]
[null,null,null,null,null,null,null,null,null,null,null,"",null,null,"",""]
[null,null,null,null,null,null,null,null,null,null,null,"",null,null,"",""]
[null,null,null,null,null,null,null,null,null,null,null,"",null,null,"",""]
[null,null,null,null,null,null,null,null,null,null,null,"",null,null,"",""]
[null,null,null,null,null,null,null,null,null,null,null,"",null,null,"",""]
[null,null,null,null,null,null,null,null,null,null,null,"",null,null,"",""]
[null,null,null,null,null,null,null,null,null,null,null,"",null,null,"",""]
[null,null,null,null,null,null,null,null,null,null,null,"",null,null,"",""]
[null,null,null,null,null,null,null,null,null,null,null,"",null,null,"",""]
[null,null,null,null,null,null,null,null,null,null,null,"",null,null,"",""]
[null,null,null,null,null,null,null,null,null,null,null,"",null,null,"",""]
[null,null,null,null,null,null,null,null,null,null,null,"",null,null,"",""]
[null,null,null,null,null,null,null,null,null,null,null,"",null,null,"",""]
[null,null,null,null,null,null,null,null,null,null,null,"",null,null,"",""]
[null,null,null,null,null,null,null,null,null,null,null,"",null,null,"",""]
[null,null,null,null,null,null,null,null,null,null,null,"",null,null,"",""]
[null,null,null,null,null,null,null,null,null,null,null,"",null,null,"",""]
[null,null,null,null,null,null,null,null,null,null,null,"",null,null,"",""]
[null,null,null,null,null,null,null,null,null,null,null,"",null,null,"",""]
[null,null,null,null,null,null,null,null,null,null,null,"",null,null,"",""]
[null,null,null,null,null,null,null,null,null,null,null,"",null,null,"",""]
[null,null,null,null,null,null,null,null,null,null,null,"",null,null,"",""]
[null,null,null,null,null,null,null,null,null,null,null,"",null,null,"",""]
[null,null,null,null,null,null,null,null,null,null,null,"",null,null,"",""]
[null,null,null,null,null,null,null,null,null,null,null,"",null,null,"",""]
[null,null,null,null,null,null,null,null,null,null,null,"",null,null,"",""]
[null,null,null,null,null,null,null,null,null,null,null,"",null,null,"",""]
[null,null,null,null,null,null,null,null,null,null,null,"",null,null,"",""]
[null,null,null,null,null,null,null,null,null,null,null,"",null,null,"",""]
[null,null,null,null,null,null,null,null,null,null,null,"",null,null,"",""]
[null,null,null,null,null,null,null,null,null,null,null,"",null,null,"",""]
[null,null,null,null,null,null,null,null,null,null,null,"",null,null,"",""]
[null,null,null,null,null,null,null,null,null,null,null,"",null,null,"",""]
[null,null,null,null,null,null,null,null,null,null,null,"",null,null,"",""]
[null,null,null,null,null,null,null,null,null,null,null,"",null,null,"",""]
[null,null,null,null,null,null,null,null,null,null,null,"",null,null,"",""]
[null,null,null,null,null,null,null,null,null,null,null,"",null,null,"",""]
[null,null,null,null,null,null,null,null,null,null,null,"",null,null,"",""]
[null,null,null,null,null,null,null,null,null,null,null,"",null,null,"",""]
[null,null,null,null,null,null,null,null,null,null,null,{"$f":"IF(SUM(G458:K458)=0,\"\",IF(SUM(G458:K458)>=888,\"DNF\",SUM(G458:K458)))","v":""},null,null,"",""]
[null,null,null,null,null,null,null,null,null,null,null,"",null,null,{"$f":"CONCATENATE(A459,B459)","v":""},{"$f":"IF(M459<>\"\",M459*S$42,\"\")","v":""}]
[null,null,null,null,null,null,null,null,null,null,null,"",null,null,"",""]
[null,null,null,null,null,null,null,null,null,null,null,"",null,null,"",""]
[null,null,null,null,null,null,null,null,null,null,null,"",null,null,"",""]
[null,null,null,null,null,null,null,null,null,null,null,"",null,null,"",""]
[null,null,null,null,null,null,null,null,null,null,null,"",null,null,"",""]
[null,null,null,null,null,null,null,null,null,null,null,"",null,null,"",""]
[null,null,null,null,null,null,null,null,null,null,null,"",null,null,"",""]
[null,null,null,null,null,null,null,null,null,null,null,"",null,null,"",""]
[null,null,null,null,null,null,null,null,null,null,null,"",null,null,"",""]
[null,null,null,null,null,null,null,null,null,null,null,"",null,null,"",""]
[null,null,null,null,null,null,null,null,null,null,null,"",null,null,"",""]
[null,null,null,null,null,null,null,null,null,null,null,"",null,null,"",""]
[null,null,null,null,null,null,null,null,null,null,null,"",null,null,"",""]
[null,null,null,null,null,null,null,null,null,null,null,"",null,null,"",""]
[null,null,null,null,null,null,null,null,null,null,null,"",null,null,"",""]
[null,null,null,null,null,null,null,null,null,null,null,"",null,null,"",""]
[null,null,null,null,null,null,null,null,null,null,null,"",null,null,"",""]
[null,null,null,null,null,null,null,null,null,null,null,"",null,null,"",""]
[null,null,null,null,null,null,null,null,null,null,null,"",null,null,"",""]
[null,null,null,null,null,null,null,null,null,null,null,"",null,null,"",""]
[null,null,null,null,null,null,null,null,null,null,null,"",null,null,"",""]
[null,null,null,null,null,null,null,null,null,null,null,"",null,null,"",""]
[null,null,null,null,null,null,null,null,null,null,null,"",null,null,"",""]
[null,null,null,null,null,null,null,null,null,null,null,"",null,null,"",""]
[null,null,null,null,null,null,null,null,null,null,null,"",null,null,"",""]
[null,null,null,null,null,null,null,null,null,null,null,"",null,null,"",""]
[null,null,null,null,null,null,null,null,null,null,null,"",null,null,"",""]
[null,null,null,null,null,null,null,null,null,null,null,"",null,null,"",""]
[null,null,null,null,null,null,null,null,null,null,null,"",null,null,"",""]
[null,null,null,null,null,null,null,null,null,null,null,"",null,null,"",""]
[null,null,null,null,null,null,null,null,null,null,null,"",null,null,"",""]
[null,null,null,null,null,null,null,null,null,null,null,"",null,null,"",""]
[null,null,null,null,null,null,null,null,null,null,null,"",null,null,"",""]
[null,null,null,null,null,null,null,null,null,null,null,"",null,null,"",""]
[null,null,null,null,null,null,null,null,null,null,null,"",null,null,"",""]
[null,null,null,null,null,null,null,null,null,null,null,"",null,null,"",""]
[null,null,null,null,null,null,null,null,null,null,null,"",null,null,"",""]
[null,null,null,null,null,null,null,null,null,null,null,"",null,null,"",""]
[null,null,null,null,null,null,null,null,null,null,null,"",null,null,"",""]
[null,null,null,null,null,null,null,null,null,null,null,"",null,null,"",""]
[null,null,null,null,null,null,null,null,null,null,null,"",null,null,"",""]

{"sheet":"Pro.Payouts","index":5,"n_rows":87,"n_cols":60,"rows_kept":87,"cut":false,"hidden":false,"merged":[[51,14,51,19],[20,14,20,19],[73,14,73,19],[73,0,73,5],[73,7,73,12],[72,7,72,12],[72,14,72,19],[72,0,72,5],[66,14,66,19],[0,0,0,5],[0,7,0,12],[0,14,0,19],[30,0,30,5],[30,7,30,12],[20,7,20,12],[30,14,30,19],[29,0,29,5],[20,0,20,5]]}
["WOMEN PRO DIVISION",null,null,null,null,null,null,"WOMEN MASTER PRO DIVISION",null,null,null,null,null,null,"WOMEN GM PRO DIVISION",null,null,null,null,null,null,"Field","# paid"]
[null,null,null,null,"Enter Added Cash (or deduction) here* > ",null,null,null,null,null,null,"Enter Added Cash (or deduction) here* > ",null,null,null,null,null,null,"Enter Added Cash (or deduction) here* > ",0,null,null,40,45,50]
["# Paid",null,"Field Size",null,"Total Fees: ",{"$f":"Cover!G14+Cover!M14","v":0},null,"# Paid",null,"Field Size",null,"Total Fees: ",{"$f":"Cover!G15+Cover!M15","v":0},null,"# Paid",null,"Field Size",null,"Total Fees: ",{"$f":"Cover!G16","v":0},null,1,1,1,1,null,"Number of Places Paid"]
[{"$f":"VLOOKUP(C4,paypct,B5,FALSE)","v":{"$error":"#N/A"}},null,{"$f":"IF(Cover!F14=0,91,Cover!F14+ROUNDDOWN(Cover!L14/3,0))","v":91},null,"Net Purse: ",{"$f":"F3+F2","v":0},null,{"$f":"VLOOKUP(J4,paypct,I5,FALSE)","v":{"$error":"#N/A"}},null,{"$f":"IF(Cover!F15=0,91,Cover!F15+ROUNDDOWN(Cover!L15/3,0))","v":91},null,"Net Purse: ",{"$f":"M3+M2","v":0},null,{"$f":"VLOOKUP(Q4,paypct,P5,FALSE)","v":{"$error":"#N/A"}},null,{"$f":"IF(Cover!F16=0,91,Cover!F16)","v":91},null,"Net Purse: ",{"$f":"T3+T2","v":0},null,2,1,1,1,null,1,2,3,4,5,6,7,8,9,10,11,12,13,14,15,16,17,18,19,20,21,22,23,24,25,26,27,28,29,30,31,32,33]
[null,{"$f":"IF(E5=45%,3,IF(E5=50%,4,2))","v":2},null,"Choose Payout Percentage>",0.4,null,null,null,{"$f":"IF(L5=45%,3,IF(L5=50%,4,2))","v":2},null,"Choose Payout Percentage>",0.4,null,null,null,{"$f":"IF(S5=45%,3,IF(S5=50%,4,2))","v":2},null,"Choose Payout Percentage>",0.4,null,null,3,1,1,2,1,1,0.625,0.47499999999999998,0.41,0.36,0.33,0.3,0.28000000000000003,0.26800000000000002,0.26,0.25,0.23799999999999999,0.23200000000000001,0.22500000000000001,0.22,0.21,0.2,0.19,0.18,0.16500000000000001,0.152,0.14499999999999999,0.14199999999999999,0.14000000000000001,0.13700000000000001,0.13200000000000001,0.13,0.127,0.125,0.122,0.11799999999999999,0.115,0.112,1]
[null,"Prelim","Proposed","Round","Manual","Final",null,null,"Prelim","Proposed","Round","Manual","Final",null,null,"Prelim","Proposed","Round","Manual","Final",null,4,2,2,2,2,"·········",0.375,0.3,0.26,0.245,0.23,0.21,0.19,0.185,0.18,0.16500000000000001,0.16,0.155,0.15,0.14499999999999999,0.14000000000000001,0.13500000000000001,0.13,0.125,0.11799999999999999,0.115,0.112,0.11,0.107,0.105,0.1,9.8000000000000004E-2,9.5000000000000001E-2,9.2999999999999999E-2,0.09,8.6999999999999994E-2,8.5000000000000006E-2,8.2000000000000003E-2,2]
["Place","Factor","Payout $$","to $5","Adj. ","Place",null,"Place","Factor","Payout $$","to $5","Adj. ","Place",null,"Place","Factor","Payout $$","to $5","Adj. ","Place",null,5,2,2,3,3,"3rd","·········",0.22500000000000001,0.19,0.17,0.155,0.15,0.14499999999999999,0.14000000000000001,0.13,0.127,0.12,0.115,0.11,0.105,0.1,9.7000000000000003E-2,9.5000000000000001E-2,9.1999999999999998E-2,8.8999999999999996E-2,8.6999999999999994E-2,8.5000000000000006E-2,8.4000000000000005E-2,8.2000000000000003E-2,7.8E-2,7.5999999999999998E-2,7.4999999999999997E-2,7.2999999999999995E-2,7.0999999999999994E-2,6.8000000000000005E-2,6.5000000000000002E-2,6.3E-2,5.8000000000000003E-2,3]
[{"$f":"IF(ROW()-7>$A$4,\"\",ROW()-7)","v":{"$error":"#N/A"}},{"$f":"IF(A8=\"\",\"\",VLOOKUP(A8,_pay1,$A$4+1))","v":{"$error":"#N/A"}},{"$f":"IF(B8=\"\",\"\",$F$4*B8)","v":{"$error":"#N/A"}},{"$f":"IF(C8=\"\",\"\",INT((C8+2.5)/5)*5)","v":{"$error":"#N/A"}},null,null,null,{"$f":"IF(ROW()-7>$H$4,\"\",ROW()-7)","v":{"$error":"#N/A"}},{"$f":"IF(H8=\"\",\"\",VLOOKUP(H8,_pay1,$H$4+1))","v":{"$error":"#N/A"}},{"$f":"IF(I8=\"\",\"\",$M$4*I8)","v":{"$error":"#N/A"}},{"$f":"IF(J8=\"\",\"\",INT((J8+2.5)/5)*5)","v":{"$error":"#N/A"}},null,null,null,{"$f":"IF(ROW()-7>$O$4,\"\",ROW()-7)","v":{"$error":"#N/A"}},{"$f":"IF(O8=\"\",\"\",VLOOKUP(O8,_pay1,$O$4+1))","v":{"$error":"#N/A"}},{"$f":"IF(P8=\"\",\"\",$T$4*P8)","v":{"$error":"#N/A"}},{"$f":"IF(Q8=\"\",\"\",INT((Q8+2.5)/5)*5)","v":{"$error":"#N/A"}},null,null,null,6,2,3,3,4,null,"4th","·········",0.14000000000000001,0.125,0.12,0.11,0.115,0.11,0.1,9.8000000000000004E-2,9.5000000000000001E-2,0.09,8.5000000000000006E-2,8.4000000000000005E-2,8.3000000000000004E-2,8.1000000000000003E-2,0.08,7.8E-2,7.5999999999999998E-2,7.4999999999999997E-2,7.1999999999999995E-2,7.0999999999999994E-2,6.6000000000000003E-2,6.5000000000000002E-2,6.4000000000000001E-2,6.3E-2,6.0999999999999999E-2,5.8999999999999997E-2,5.6000000000000001E-2,5.5E-2,5.2999999999999999E-2,5.1999999999999998E-2,4]
[{"$f":"IF(ROW()-7>$A$4,\"\",ROW()-7)","v":{"$error":"#N/A"}},{"$f":"IF(A9=\"\",\"\",VLOOKUP(A9,_pay1,$A$4+1))","v":{"$error":"#N/A"}},{"$error":"#N/A"},{"$f":"IF(C9=\"\",\"\",INT((C9+2.5)/5)*5)","v":{"$error":"#N/A"}},null,null,null,{"$error":"#N/A"},{"$f":"IF(H9=\"\",\"\",VLOOKUP(H9,_pay1,$H$4+1))","v":{"$error":"#N/A"}},{"$error":"#N/A"},{"$f":"IF(J9=\"\",\"\",INT((J9+2.5)/5)*5)","v":{"$error":"#N/A"}},null,null,null,{"$error":"#N/A"},{"$f":"IF(O9=\"\",\"\",VLOOKUP(O9,_pay1,$O$4+1))","v":{"$error":"#N/A"}},{"$error":"#N/A"},{"$f":"IF(Q9=\"\",\"\",INT((Q9+2.5)/5)*5)","v":{"$error":"#N/A"}},null,null,null,7,3,3,4,5,"P",null,"5th","·········",0.1,9.5000000000000001E-2,9.5000000000000001E-2,0.09,8.5000000000000006E-2,8.1000000000000003E-2,0.08,7.6999999999999999E-2,7.4999999999999997E-2,7.0999999999999994E-2,6.9000000000000006E-2,6.8000000000000005E-2,6.7000000000000004E-2,6.5000000000000002E-2,6.5000000000000002E-2,6.4000000000000001E-2,6.3E-2,6.0999999999999999E-2,0.06,5.7000000000000002E-2,5.6000000000000001E-2,5.5E-2,5.3999999999999999E-2,5.1999999999999998E-2,0.05,4.9000000000000002E-2,4.8000000000000001E-2,4.8000000000000001E-2,4.8000000000000001E-2,5]
[{"$error":"#N/A"},{"$error":"#N/A"},{"$error":"#N/A"},{"$error":"#N/A"},null,null,null,{"$error":"#N/A"},{"$error":"#N/A"},{"$error":"#N/A"},{"$error":"#N/A"},null,null,null,{"$error":"#N/A"},{"$error":"#N/A"},{"$error":"#N/A"},{"$error":"#N/A"},null,null,null,8,3,4,4,6,null,"L",null,"6th","·········",7.0000000000000007E-2,7.4999999999999997E-2,7.0000000000000007E-2,6.7000000000000004E-2,6.7000000000000004E-2,6.5000000000000002E-2,6.4000000000000001E-2,6.0999999999999999E-2,0.06,5.8000000000000003E-2,5.7000000000000002E-2,5.6000000000000001E-2,5.5E-2,5.5E-2,5.3999999999999999E-2,5.3999999999999999E-2,5.2999999999999999E-2,5.1999999999999998E-2,5.0999999999999997E-2,4.9000000000000002E-2,4.8000000000000001E-2,4.7E-2,4.5999999999999999E-2,4.4999999999999998E-2,4.4999999999999998E-2,4.4999999999999998E-2,4.4999999999999998E-2,4.4999999999999998E-2,6]
[{"$error":"#N/A"},{"$error":"#N/A"},{"$error":"#N/A"},{"$error":"#N/A"},null,null,null,{"$error":"#N/A"},{"$error":"#N/A"},{"$error":"#N/A"},{"$error":"#N/A"},null,null,null,{"$error":"#N/A"},{"$error":"#N/A"},{"$error":"#N/A"},{"$error":"#N/A"},null,null,null,9,4,4,5,7,null,null,"A",null,"7th","·········",0.06,0.06,5.5E-2,5.5E-2,5.3999999999999999E-2,5.3999999999999999E-2,5.1999999999999998E-2,5.1999999999999998E-2,0.05,0.05,0.05,0.05,0.05,4.9000000000000002E-2,4.9000000000000002E-2,4.8000000000000001E-2,4.5999999999999999E-2,4.4999999999999998E-2,4.4999999999999998E-2,4.3999999999999997E-2,4.3999999999999997E-2,4.2999999999999997E-2,4.2000000000000003E-2,4.2000000000000003E-2,4.2000000000000003E-2,4.2000000000000003E-2,4.2000000000000003E-2,7]
[{"$error":"#N/A"},{"$error":"#N/A"},{"$error":"#N/A"},{"$error":"#N/A"},null,null,null,{"$error":"#N/A"},{"$error":"#N/A"},{"$error":"#N/A"},{"$error":"#N/A"},null,null,null,{"$error":"#N/A"},{"$error":"#N/A"},{"$error":"#N/A"},{"$error":"#N/A"},null,null,null,10,4,5,5,8,null,null,null,"C",null,"8th","·········",0.05,4.7E-2,4.7E-2,4.7E-2,4.7E-2,4.5999999999999999E-2,4.5999999999999999E-2,4.4999999999999998E-2,4.4999999999999998E-2,4.4999999999999998E-2,4.4999999999999998E-2,4.4999999999999998E-2,4.4999999999999998E-2,4.4999999999999998E-2,4.4999999999999998E-2,4.2000000000000003E-2,4.2000000000000003E-2,4.1000000000000002E-2,4.1000000000000002E-2,0.04,0.04,0.04,0.04,0.04,3.9E-2,3.9E-2,8]
[{"$error":"#N/A"},{"$error":"#N/A"},{"$error":"#N/A"},{"$error":"#N/A"},null,null,null,{"$error":"#N/A"},{"$error":"#N/A"},{"$error":"#N/A"},{"$error":"#N/A"},null,null,null,{"$error":"#N/A"},{"$error":"#N/A"},{"$error":"#N/A"},{"$error":"#N/A"},null,null,null,11,4,5,6,9,null,null,null,null,"E",null,"9th","·········",4.2999999999999997E-2,4.2000000000000003E-2,4.2000000000000003E-2,4.2000000000000003E-2,4.2000000000000003E-2,4.2000000000000003E-2,4.1000000000000002E-2,4.1000000000000002E-2,4.1000000000000002E-2,4.1000000000000002E-2,4.1000000000000002E-2,4.1000000000000002E-2,4.1000000000000002E-2,4.1000000000000002E-2,3.9E-2,3.9E-2,3.7999999999999999E-2,3.7999999999999999E-2,3.6999999999999998E-2,3.6999999999999998E-2,3.6999999999999998E-2,3.6999999999999998E-2,3.6999999999999998E-2,3.5999999999999997E-2,3.5999999999999997E-2,9]
[{"$error":"#N/A"},{"$error":"#N/A"},{"$error":"#N/A"},{"$error":"#N/A"},null,null,null,{"$error":"#N/A"},{"$error":"#N/A"},{"$error":"#N/A"},{"$error":"#N/A"},null,null,null,{"$error":"#N/A"},{"$error":"#N/A"},{"$error":"#N/A"},{"$error":"#N/A"},null,null,null,12,5,6,6,10,null,null,null,null,null,null,null,"10th","·········",3.7999999999999999E-2,3.7999999999999999E-2,3.7999999999999999E-2,3.7999999999999999E-2,3.7999999999999999E-2,3.6999999999999998E-2,3.6999999999999998E-2,3.6999999999999998E-2,3.6999999999999998E-2,3.6999999999999998E-2,3.6999999999999998E-2,3.6999999999999998E-2,3.6999999999999998E-2,3.5999999999999997E-2,3.5999999999999997E-2,3.5000000000000003E-2,3.5000000000000003E-2,3.4000000000000002E-2,3.4000000000000002E-2,3.4000000000000002E-2,3.4000000000000002E-2,3.4000000000000002E-2,3.4000000000000002E-2,3.4000000000000002E-2,10]
[{"$error":"#N/A"},{"$error":"#N/A"},{"$error":"#N/A"},{"$error":"#N/A"},null,null,null,{"$error":"#N/A"},{"$error":"#N/A"},{"$error":"#N/A"},{"$error":"#N/A"},null,null,null,{"$error":"#N/A"},{"$error":"#N/A"},{"$error":"#N/A"},{"$error":"#N/A"},null,null,null,13,5,6,7,11,null,null,null,null,null,null,"O",null,"11th","·········",3.4000000000000002E-2,3.4000000000000002E-2,3.4000000000000002E-2,3.4000000000000002E-2,3.4000000000000002E-2,3.4000000000000002E-2,3.4000000000000002E-2,3.4000000000000002E-2,3.4000000000000002E-2,3.4000000000000002E-2,3.4000000000000002E-2,3.4000000000000002E-2,3.3000000000000002E-2,3.3000000000000002E-2,3.3000000000000002E-2,3.3000000000000002E-2,3.2000000000000001E-2,3.2000000000000001E-2,3.2000000000000001E-2,3.2000000000000001E-2,3.2000000000000001E-2,3.2000000000000001E-2,3.2000000000000001E-2,11]
[{"$error":"#N/A"},{"$error":"#N/A"},{"$error":"#N/A"},{"$error":"#N/A"},null,null,null,{"$error":"#N/A"},{"$error":"#N/A"},{"$error":"#N/A"},{"$error":"#N/A"},null,null,null,{"$error":"#N/A"},{"$error":"#N/A"},{"$error":"#N/A"},{"$error":"#N/A"},null,null,null,14,6,6,7,12,null,null,null,null,null,null,null,"F",null,"12th","·········",3.1E-2,3.1E-2,3.1E-2,3.1E-2,3.1E-2,3.1E-2,3.1E-2,3.1E-2,3.1E-2,3.1E-2,3.1E-2,3.1E-2,3.1E-2,3.1E-2,3.1E-2,0.03,0.03,0.03,0.03,0.03,0.03,0.03,12]
[{"$error":"#N/A"},{"$error":"#N/A"},{"$error":"#N/A"},{"$error":"#N/A"},null,null,null,{"$error":"#N/A"},{"$error":"#N/A"},{"$error":"#N/A"},{"$error":"#N/A"},null,null,null,{"$error":"#N/A"},{"$error":"#N/A"},{"$error":"#N/A"},{"$error":"#N/A"},null,null,null,15,6,7,8,13,null,null,null,null,null,null,null,null,null,null,"13th","·········",2.9000000000000001E-2,2.9000000000000001E-2,2.9000000000000001E-2,2.9000000000000001E-2,2.9000000000000001E-2,2.9000000000000001E-2,2.9000000000000001E-2,2.9000000000000001E-2,2.9000000000000001E-2,2.9000000000000001E-2,2.9000000000000001E-2,2.9000000000000001E-2,2.9000000000000001E-2,2.9000000000000001E-2,2.8000000000000001E-2,2.8000000000000001E-2,2.8000000000000001E-2,2.8000000000000001E-2,2.8000000000000001E-2,2.8000000000000001E-2,2.8000000000000001E-2,13]
[{"$error":"#N/A"},{"$error":"#N/A"},{"$error":"#N/A"},{"$error":"#N/A"},null,null,null,{"$error":"#N/A"},{"$error":"#N/A"},{"$error":"#N/A"},{"$error":"#N/A"},null,null,null,{"$error":"#N/A"},{"$error":"#N/A"},{"$error":"#N/A"},{"$error":"#N/A"},null,null,null,16,6,7,8,14,null,null,null,null,null,null,null,null,null,"F",null,"14th","·········",2.7E-2,2.7E-2,2.7E-2,2.7E-2,2.7E-2,2.7E-2,2.7E-2,2.7E-2,2.7E-2,2.7E-2,2.7E-2,2.7E-2,2.7E-2,2.7E-2,2.7E-2,2.7E-2,2.7E-2,2.7E-2,2.7E-2,2.7E-2,14]
[null,{"$f":"SUM(B8:B18)","v":{"$error":"#N/A"}},{"$f":"SUM(C8:C18)","v":{"$error":"#N/A"}},{"$f":"SUM(D8:D18)","v":{"$error":"#N/A"}},{"$f":"SUM(E8:E18)","v":0},null,null,null,{"$f":"SUM(I8:I18)","v":{"$error":"#N/A"}},{"$f":"SUM(J8:J18)","v":{"$error":"#N/A"}},{"$f":"SUM(K8:K18)","v":{"$error":"#N/A"}},{"$f":"SUM(L8:L18)","v":0},null,null,null,{"$f":"SUM(P8:P18)","v":{"$error":"#N/A"}},{"$f":"SUM(Q8:Q18)","v":{"$error":"#N/A"}},{"$f":"SUM(R8:R18)","v":{"$error":"#N/A"}},{"$f":"SUM(S8:S18)","v":0},null,null,17,7,8,9,15,null,null,null,null,null,null,null,null,null,null,"I",null,"15th","·········",2.5000000000000001E-2,2.5000000000000001E-2,2.5000000000000001E-2,2.5000000000000001E-2,2.5000000000000001E-2,2.5999999999999999E-2,2.5999999999999999E-2,2.5999999999999999E-2,2.5999999999999999E-2,2.5999999999999999E-2,2.5999999999999999E-2,2.5999999999999999E-2,2.5999999999999999E-2,2.5999999999999999E-2,2.5999999999999999E-2,2.5999999999999999E-2,2.5999999999999999E-2,2.5999999999999999E-2,2.5999999999999999E-2,15]
[null,null,null,{"$f":"IF(C4=91,\"       To use this table, enter player divisions on Scores page\",IF(C4>27,\"Field limit exceeded. Use printed Payout tables.\",\"\"))","v":"       To use this table, enter player divisions on Scores page"},null,null,null,null,null,null,{"$f":"IF(J4=91,\"       To use this table, enter player divisions on Scores page\",IF(J4>27,\"Field limit exceeded. Use printed Payout tables.\",\"\"))","v":"       To use this table, enter player divisions on Scores page"},null,null,null,null,null,null,{"$f":"IF(Q4=91,\"       To use this table, enter player divisions on Scores page\",IF(Q4>27,\"Field limit exceeded. Use printed Payout tables.\",\"\"))","v":"       To use this table, enter player divisions on Scores page"},null,null,null,18,7,8,9,16,null,null,null,null,null,null,null,null,null,null,null,"N",null,"16th","·········",2.3E-2,2.3E-2,2.3E-2,2.3E-2,2.5000000000000001E-2,2.5000000000000001E-2,2.5000000000000001E-2,2.5000000000000001E-2,2.5000000000000001E-2,2.5000000000000001E-2,2.5000000000000001E-2,2.5000000000000001E-2,2.5000000000000001E-2,2.5000000000000001E-2,2.5000000000000001E-2,2.5000000000000001E-2,2.5000000000000001E-2,2.5000000000000001E-2,16]
["Click Here > Large Field Payout Calculator",null,null,null,null,null,null,"WOMEN LEGEND DIVISION",null,null,null,null,null,null,"WOMEN SGM PRO DIVISION",null,null,null,null,null,null,19,8,9,10,17,null,null,null,null,null,null,null,null,null,null,null,null,"I",null,"17th","·········",2.1999999999999999E-2,2.1999999999999999E-2,2.1999999999999999E-2,2.4E-2,2.4E-2,2.4E-2,2.4E-2,2.4E-2,2.4E-2,2.4E-2,2.4E-2,2.4E-2,2.4E-2,2.4E-2,2.4E-2,2.4E-2,2.4E-2,17]
[null,null,null,null,null,null,null,null,null,null,null,"Enter Added Cash (or deduction) here* > ",0,null,null,null,null,null,"Enter Added Cash (or deduction) here* > ",0,null,20,8,9,10,18,null,null,null,null,null,null,null,null,null,null,null,null,null,"S",null,"18th","·········",2.1000000000000001E-2,2.1000000000000001E-2,2.3E-2,2.3E-2,2.3E-2,2.3E-2,2.3E-2,2.3E-2,2.3E-2,2.3E-2,2.3E-2,2.3E-2,2.3E-2,2.3E-2,2.3E-2,2.3E-2,18]
[null,null,null,null,null,null,null,"# Paid",null,"Field Size",null,"Total Fees: ",{"$f":"Cover!G18","v":0},null,"# Paid",null,"Field Size",null,"Total Fees: ",{"$f":"Cover!G17","v":0},null,21,8,10,11,19,null,null,null,null,null,null,null,null,null,null,null,null,null,null,"H",null,"19th","·········",0.02,2.1999999999999999E-2,2.1999999999999999E-2,2.1999999999999999E-2,2.1999999999999999E-2,2.1999999999999999E-2,2.1999999999999999E-2,2.1999999999999999E-2,2.1999999999999999E-2,2.1999999999999999E-2,2.1999999999999999E-2,2.1999999999999999E-2,2.1999999999999999E-2,2.1999999999999999E-2,2.1999999999999999E-2,19]
[null,null,null,null,null,null,null,{"$f":"VLOOKUP(J24,paypct,I25,FALSE)","v":{"$error":"#N/A"}},null,{"$f":"IF(Cover!F18=0,91,Cover!F18)","v":91},null,"Net Purse: ",{"$f":"M23+M22","v":0},null,{"$f":"VLOOKUP(Q24,paypct,P25,FALSE)","v":{"$error":"#N/A"}},null,{"$f":"IF(Cover!F17=0,91,Cover!F17)","v":91},null,"Net Purse: ",{"$f":"T23+T22","v":0},null,22,9,10,11,20,null,null,null,null,null,null,null,null,null,null,null,null,null,null,null,null,null,"20th","·········",2.1000000000000001E-2,2.1000000000000001E-2,2.1000000000000001E-2,2.1000000000000001E-2,2.1000000000000001E-2,2.1000000000000001E-2,2.1000000000000001E-2,2.1000000000000001E-2,2.1000000000000001E-2,2.1000000000000001E-2,2.1000000000000001E-2,2.1000000000000001E-2,2.1000000000000001E-2,2.1000000000000001E-2,20]
[null,null,null,null,null,null,null,null,{"$f":"IF(L25=45%,3,IF(L25=50%,4,2))","v":2},null,"Choose Payout Percentage>",0.4,null,null,null,{"$f":"IF(S25=45%,3,IF(S25=50%,4,2))","v":2},null,"Choose Payout Percentage>",0.4,null,null,23,9,10,12,21,null,null,null,null,null,null,null,null,null,null,null,null,null,null,null,null,null,null,"21st","·········",0.02,0.02,0.02,0.02,0.02,0.02,0.02,0.02,0.02,0.02,0.02,0.02,0.02,21]
[null,null,null,null,null,null,null,null,"Prelim","Proposed","Round","Manual","Final",null,null,"Prelim","Proposed","Round","Manual","Final",null,24,10,11,12,22,null,null,null,null,null,null,null,null,null,null,null,null,null,null,null,null,null,null,null,"22nd","·········",1.9E-2,1.9E-2,1.9E-2,1.9E-2,1.9E-2,1.9E-2,1.9E-2,1.9E-2,1.9E-2,1.9E-2,1.9E-2,1.9E-2,22]
[null,null,null,null,null,null,null,"Place","Factor","Payout $$","to $5","Adj. ","Place",null,"Place","Factor","Payout $$","to $5","Adj. ","Place",null,25,10,11,13,23,null,null,null,null,null,null,null,null,null,null,null,null,null,null,null,null,null,null,null,null,"23rd","·········",1.7999999999999999E-2,1.7999999999999999E-2,1.7999999999999999E-2,1.7999999999999999E-2,1.7999999999999999E-2,1.7999999999999999E-2,1.7999999999999999E-2,1.7999999999999999E-2,1.7999999999999999E-2,1.7000000000000001E-2,1.7000000000000001E-2,23]
[null,null,null,null,null,null,null,{"$f":"IF(ROW()-27>$H$24,\"\",ROW()-27)","v":{"$error":"#N/A"}},{"$f":"IF(H28=\"\",\"\",VLOOKUP(H28,_pay1,$H$24+1))","v":{"$error":"#N/A"}},{"$f":"IF(I28=\"\",\"\",$M$24*I28)","v":{"$error":"#N/A"}},{"$f":"IF(J28=\"\",\"\",INT((J28+2.5)/5)*5)","v":{"$error":"#N/A"}},null,null,null,{"$f":"IF(ROW()-27>$O$24,\"\",ROW()-27)","v":{"$error":"#N/A"}},{"$f":"IF(O28=\"\",\"\",VLOOKUP(O28,_pay1,$O$24+1))","v":{"$error":"#N/A"}},{"$f":"IF(P28=\"\",\"\",$T$24*P28)","v":{"$error":"#N/A"}},{"$f":"IF(Q28=\"\",\"\",INT((Q28+2.5)/5)*5)","v":{"$error":"#N/A"}},null,null,null,26,10,12,13,24,null,null,null,null,null,null,null,null,null,null,null,null,null,null,null,null,null,null,null,null,null,"24th","·········",1.7000000000000001E-2,1.7000000000000001E-2,1.7000000000000001E-2,1.7000000000000001E-2,1.7000000000000001E-2,1.7000000000000001E-2,1.7000000000000001E-2,1.7000000000000001E-2,1.7000000000000001E-2,1.7000000000000001E-2,24]
[null,null,null,null,null,null,null,{"$f":"IF(ROW()-27>$H$24,\"\",ROW()-27)","v":{"$error":"#N/A"}},{"$f":"IF(H29=\"\",\"\",VLOOKUP(H29,_pay1,$H$24+1))","v":{"$error":"#N/A"}},{"$f":"IF(I29=\"\",\"\",$M$24*I29)","v":{"$error":"#N/A"}},{"$f":"IF(J29=\"\",\"\",INT((J29+2.5)/5)*5)","v":{"$error":"#N/A"}},null,null,null,{"$f":"IF(ROW()-27>$O$24,\"\",ROW()-27)","v":{"$error":"#N/A"}},{"$f":"IF(O29=\"\",\"\",VLOOKUP(O29,_pay1,$O$24+1))","v":{"$error":"#N/A"}},{"$f":"IF(P29=\"\",\"\",$T$24*P29)","v":{"$error":"#N/A"}},{"$f":"IF(Q29=\"\",\"\",INT((Q29+2.5)/5)*5)","v":{"$error":"#N/A"}},null,null,null,27,11,12,14,25,null,null,null,null,null,null,null,null,null,null,null,null,null,null,null,null,null,null,null,null,null,null,"25th","·········",1.6E-2,1.6E-2,1.6E-2,1.6E-2,1.6E-2,1.6E-2,1.6E-2,1.6E-2,1.6E-2,25]
["Click Here > Large Field Payout Calculator",null,null,null,null,null,null,null,null,{"$f":"SUM(J28:J29)","v":{"$error":"#N/A"}},{"$f":"SUM(K28:K29)","v":{"$error":"#N/A"}},{"$f":"SUM(L28:L29)","v":0},{"$f":"SUM(M28:M29)","v":0},null,null,{"$f":"SUM(P28:P29)","v":{"$error":"#N/A"}},{"$f":"SUM(Q28:Q29)","v":{"$error":"#N/A"}},{"$f":"SUM(R28:R29)","v":{"$error":"#N/A"}},{"$f":"SUM(S28:S29)","v":0},null,null,28,11,13,14,26,null,null,null,null,null,null,null,null,null,null,null,null,null,null,null,null,null,null,null,null,null,null,null,"26th","·········",1.6E-2,1.4999999999999999E-2,1.4999999999999999E-2,1.4999999999999999E-2,1.4999999999999999E-2,1.4999999999999999E-2,1.4999999999999999E-2,1.4999999999999999E-2,26]
["OPEN PRO DIVISION",null,null,null,null,null,null,"MASTER PRO DIVISION",null,null,null,null,null,null,"GRANDMASTER PRO DIVISION",null,null,null,null,null,null,29,12,13,15,27,null,null,null,null,null,null,null,null,null,null,null,null,null,null,null,null,null,null,null,null,null,null,null,null,"27th","·········",1.4999999999999999E-2,1.4999999999999999E-2,1.4E-2,1.4E-2,1.4E-2,1.4E-2,1.4E-2,27]
[null,null,null,null,"Enter Added Cash (or deduction) here* > ",0,null,null,null,null,null,"Enter Added Cash (or deduction) here* > ",0,null,null,null,null,null,"Enter Added Cash (or deduction) here* > ",0,null,30,12,14,15,28,null,null,null,null,null,null,null,null,null,null,null,null,null,null,null,null,null,null,null,null,null,null,null,null,null,"28th","·········",1.4E-2,1.4E-2,1.4E-2,1.2999999999999999E-2,1.2999999999999999E-2,1.2999999999999999E-2,28]
["# Paid",null,"Field Size",null,"Total Fees: ",{"$f":"Cover!G7+Cover!M7","v":0},null,"# Paid",null,"Field Size",null,"Total Fees: ",{"$f":"Cover!G8+Cover!M8","v":0},null,"# Paid",null,"Field Size","s","Total Fees: ",{"$f":"Cover!G9+Cover!M9","v":0},null,31,12,14,16,29,null,null,null,null,null,null,null,null,null,null,null,null,null,null,null,null,null,null,null,null,null,null,null,null,null,null,"29th","·········",1.2999999999999999E-2,1.2999999999999999E-2,1.2999999999999999E-2,1.2999999999999999E-2,1.2999999999999999E-2,29]
[{"$f":"VLOOKUP(C34,paypct,B35,FALSE)","v":{"$error":"#N/A"}},null,{"$f":"IF(Cover!F7=0,91,Cover!F7+ROUNDDOWN(Cover!L7/3,0))","v":91},null,"Net Purse: ",{"$f":"F33+F32","v":0},null,{"$f":"VLOOKUP(J34,paypct,I35,FALSE)","v":{"$error":"#N/A"}},null,{"$f":"IF(Cover!F8=0,91,Cover!F8+ROUNDDOWN(Cover!L8/3,0))","v":91},null,"Net Purse: ",{"$f":"M33+M32","v":0},null,{"$f":"VLOOKUP(Q34,paypct,P35,FALSE)","v":{"$error":"#N/A"}},null,{"$f":"IF(Cover!F9=0,91,Cover!F9+ROUNDDOWN(Cover!L9/3,0))","v":91},null,"Net Purse: ",{"$f":"T33+T32","v":0},null,32,13,15,16,30,null,null,null,null,null,null,null,null,null,null,null,null,null,null,null,null,null,null,null,null,null,null,null,null,null,null,null,"30th","·········",1.2999999999999999E-2,1.2999999999999999E-2,1.2999999999999999E-2,1.2999999999999999E-2,30]
[null,{"$f":"IF(E35=45%,3,IF(E35=50%,4,2))","v":2},null,"Choose Payout Percentage>",0.4,null,null,null,{"$f":"IF(L35=45%,3,IF(L35=50%,4,2))","v":2},null,"Choose Payout Percentage>",0.4,null,null,null,{"$f":"IF(S35=45%,3,IF(S35=50%,4,2))","v":2},null,"Choose Payout Percentage>",0.4,null,null,33,13,15,17,31,null,null,null,null,null,null,null,null,null,null,null,null,null,null,null,null,null,null,null,null,null,null,null,null,null,null,null,null,"31st","·········",1.2999999999999999E-2,1.2999999999999999E-2,1.2999999999999999E-2,31]
[null,"Prelim","Proposed","Round","Manual","Final",null,null,"Prelim","Proposed","Round","Manual","Final",null,null,"Prelim","Proposed","Round","Manual","Final",null,34,14,15,17,32,null,null,null,null,null,null,null,null,null,null,null,null,null,null,null,null,null,null,null,null,null,null,null,null,null,null,null,null,null,"32nd","·········",1.2E-2,1.2E-2,32]
["Place","Factor","Payout $$","to $5","Adj. ","Place",null,"Place","Factor","Payout $$","to $5","Adj. ","Place",null,"Place","Factor","Payout $$","to $5","Adj. ","Place",null,35,14,16,18,33,null,null,null,null,null,null,null,null,null,null,null,null,null,null,null,null,null,null,null,null,null,null,null,null,null,null,null,null,null,null,"33rd","·········",1.2E-2,33]
[{"$f":"IF(ROW()-37>$A$34,\"\",ROW()-37)","v":{"$error":"#N/A"}},{"$f":"IF(A38=\"\",\"\",VLOOKUP(A38,_pay1,$A$34+1))","v":{"$error":"#N/A"}},{"$f":"IF(B38=\"\",\"\",$F$34*B38)","v":{"$error":"#N/A"}},{"$f":"IF(C38=\"\",\"\",INT((C38+2.5)/5)*5)","v":{"$error":"#N/A"}},null,null,null,{"$f":"IF(ROW()-37>$H$34,\"\",ROW()-37)","v":{"$error":"#N/A"}},{"$f":"IF(H38=\"\",\"\",VLOOKUP(H38,_pay1,$H$34+1))","v":{"$error":"#N/A"}},{"$f":"IF(I38=\"\",\"\",$M$34*I38)","v":{"$error":"#N/A"}},{"$f":"IF(J38=\"\",\"\",INT((J38+2.5)/5)*5)","v":{"$error":"#N/A"}},null,null,null,{"$f":"IF(ROW()-37>$O$34,\"\",ROW()-37)","v":{"$error":"#N/A"}},{"$f":"IF(O38=\"\",\"\",VLOOKUP(O38,_pay1,$O$34+1))","v":{"$error":"#N/A"}},{"$f":"IF(P38=\"\",\"\",$T$34*P38)","v":{"$error":"#N/A"}},{"$f":"IF(Q38=\"\",\"\",INT((Q38+2.5)/5)*5)","v":{"$error":"#N/A"}},null,null,null,36,14,16,18]
[{"$f":"IF(ROW()-37>$A$34,\"\",ROW()-37)","v":{"$error":"#N/A"}},{"$error":"#N/A"},{"$f":"IF(B39=\"\",\"\",$F$34*B39)","v":{"$error":"#N/A"}},{"$f":"IF(C39=\"\",\"\",INT((C39+2.5)/5)*5)","v":{"$error":"#N/A"}},null,null,null,{"$f":"IF(ROW()-37>$H$34,\"\",ROW()-37)","v":{"$error":"#N/A"}},{"$error":"#N/A"},{"$f":"IF(I39=\"\",\"\",$M$34*I39)","v":{"$error":"#N/A"}},{"$f":"IF(J39=\"\",\"\",INT((J39+2.5)/5)*5)","v":{"$error":"#N/A"}},null,null,null,{"$f":"IF(ROW()-37>$O$34,\"\",ROW()-37)","v":{"$error":"#N/A"}},{"$error":"#N/A"},{"$f":"IF(P39=\"\",\"\",$T$34*P39)","v":{"$error":"#N/A"}},{"$f":"IF(Q39=\"\",\"\",INT((Q39+2.5)/5)*5)","v":{"$error":"#N/A"}},null,null,null,37,15,17,19]
[{"$error":"#N/A"},{"$error":"#N/A"},{"$error":"#N/A"},{"$error":"#N/A"},null,null,null,{"$error":"#N/A"},{"$error":"#N/A"},{"$error":"#N/A"},{"$error":"#N/A"},null,null,null,{"$error":"#N/A"},{"$error":"#N/A"},{"$error":"#N/A"},{"$error":"#N/A"},null,null,null,38,15,17,19]
[{"$error":"#N/A"},{"$error":"#N/A"},{"$error":"#N/A"},{"$error":"#N/A"},null,null,null,{"$error":"#N/A"},{"$error":"#N/A"},{"$error":"#N/A"},{"$error":"#N/A"},null,null,null,{"$error":"#N/A"},{"$error":"#N/A"},{"$error":"#N/A"},{"$error":"#N/A"},null,null,null,39,16,18,20]
[{"$error":"#N/A"},{"$error":"#N/A"},{"$error":"#N/A"},{"$error":"#N/A"},null,null,null,{"$error":"#N/A"},{"$error":"#N/A"},{"$error":"#N/A"},{"$error":"#N/A"},null,null,null,{"$error":"#N/A"},{"$error":"#N/A"},{"$error":"#N/A"},{"$error":"#N/A"},null,null,null,40,16,18,20]
[{"$error":"#N/A"},{"$error":"#N/A"},{"$error":"#N/A"},{"$error":"#N/A"},null,null,null,{"$error":"#N/A"},{"$error":"#N/A"},{"$error":"#N/A"},{"$error":"#N/A"},null,null,null,{"$error":"#N/A"},{"$error":"#N/A"},{"$error":"#N/A"},{"$error":"#N/A"},null,null,null,41,16,19,21]
[{"$error":"#N/A"},{"$error":"#N/A"},{"$error":"#N/A"},{"$error":"#N/A"},null,null,null,{"$error":"#N/A"},{"$error":"#N/A"},{"$error":"#N/A"},{"$error":"#N/A"},null,null,null,{"$error":"#N/A"},{"$error":"#N/A"},{"$error":"#N/A"},{"$error":"#N/A"},null,null,null,42,17,19,21]
[{"$error":"#N/A"},{"$error":"#N/A"},{"$error":"#N/A"},{"$error":"#N/A"},null,null,null,{"$error":"#N/A"},{"$error":"#N/A"},{"$error":"#N/A"},{"$error":"#N/A"},null,null,null,{"$error":"#N/A"},{"$error":"#N/A"},{"$error":"#N/A"},{"$error":"#N/A"},null,null,null,43,17,19,22]
[{"$error":"#N/A"},{"$error":"#N/A"},{"$error":"#N/A"},{"$error":"#N/A"},null,null,null,{"$error":"#N/A"},{"$error":"#N/A"},{"$error":"#N/A"},{"$error":"#N/A"},null,null,null,{"$error":"#N/A"},{"$error":"#N/A"},{"$error":"#N/A"},{"$error":"#N/A"},null,null,null,44,18,20,22]
[{"$error":"#N/A"},{"$error":"#N/A"},{"$error":"#N/A"},{"$error":"#N/A"},null,null,null,{"$error":"#N/A"},{"$error":"#N/A"},{"$error":"#N/A"},{"$error":"#N/A"},null,null,null,{"$error":"#N/A"},{"$error":"#N/A"},{"$error":"#N/A"},{"$error":"#N/A"},null,null,null,45,18,20,23]
[{"$error":"#N/A"},{"$error":"#N/A"},{"$error":"#N/A"},{"$error":"#N/A"},null,null,null,{"$error":"#N/A"},{"$error":"#N/A"},{"$error":"#N/A"},{"$error":"#N/A"},null,null,null,{"$error":"#N/A"},{"$error":"#N/A"},{"$error":"#N/A"},{"$error":"#N/A"},null,null,null,46,18,21,23]
[{"$error":"#N/A"},{"$error":"#N/A"},{"$error":"#N/A"},{"$error":"#N/A"},null,null,null,{"$error":"#N/A"},{"$error":"#N/A"},{"$error":"#N/A"},{"$error":"#N/A"},null,null,null,{"$error":"#N/A"},{"$error":"#N/A"},{"$error":"#N/A"},{"$error":"#N/A"},null,null,null,47,19,21,24]
[{"$error":"#N/A"},{"$error":"#N/A"},{"$error":"#N/A"},{"$error":"#N/A"},null,null,null,{"$error":"#N/A"},{"$error":"#N/A"},{"$error":"#N/A"},{"$error":"#N/A"},null,null,null,null,{"$f":"SUM(P38:P49)","v":{"$error":"#N/A"}},{"$f":"SUM(Q38:Q49)","v":{"$error":"#N/A"}},{"$f":"SUM(R38:R49)","v":{"$error":"#N/A"}},{"$f":"SUM(S38:S49)","v":0},null,null,48,19,22,24]
[{"$error":"#N/A"},{"$error":"#N/A"},{"$error":"#N/A"},{"$error":"#N/A"},null,null,null,{"$error":"#N/A"},{"$error":"#N/A"},{"$error":"#N/A"},{"$error":"#N/A"},null,null,null,null,null,null,{"$f":"IF(Q34=91,\"       To use this table, enter player divisions on Scores page\",IF(Q34>31,\"Field limit exceeded. Use printed Payout tables.\",\"\"))","v":"       To use this table, enter player divisions on Scores page"},null,null,null,49,20,22,25]
[{"$error":"#N/A"},{"$error":"#N/A"},{"$error":"#N/A"},{"$error":"#N/A"},null,null,null,{"$error":"#N/A"},{"$error":"#N/A"},{"$error":"#N/A"},{"$error":"#N/A"},null,null,null,"SENIOR GM PRO DIVISION",null,null,null,null,null,null,50,20,23,25]
[{"$error":"#N/A"},{"$error":"#N/A"},{"$error":"#N/A"},{"$error":"#N/A"},null,null,null,{"$error":"#N/A"},{"$error":"#N/A"},{"$error":"#N/A"},{"$error":"#N/A"},null,null,null,null,null,null,null,{"$f":"IF(Q55>16,\"Field too big! Use manual tables.\",\"Enter Added Cash (or deduction) here* > \")","v":"Field too big! Use manual tables."},0,null,51,20,23,26]
[{"$error":"#N/A"},{"$error":"#N/A"},{"$error":"#N/A"},{"$error":"#N/A"},null,null,null,{"$error":"#N/A"},{"$error":"#N/A"},{"$error":"#N/A"},{"$error":"#N/A"},null,null,null,"# Paid",null,"Field Size",null,"Total Fees: ",{"$f":"Cover!G10","v":0},null,52,21,23,26]
[{"$error":"#N/A"},{"$error":"#N/A"},{"$error":"#N/A"},{"$error":"#N/A"},null,null,null,{"$error":"#N/A"},{"$error":"#N/A"},{"$error":"#N/A"},{"$error":"#N/A"},null,null,null,{"$f":"VLOOKUP(Q55,paypct,P56,FALSE)","v":{"$error":"#N/A"}},null,{"$f":"IF(Cover!F10=0,91,Cover!F10+ROUNDDOWN(Cover!L10/3,0))","v":91},null,"Net Purse: ",{"$f":"T54+T53","v":0},null,53,21,24,27]
[{"$error":"#N/A"},{"$error":"#N/A"},{"$error":"#N/A"},{"$error":"#N/A"},null,null,null,{"$error":"#N/A"},{"$error":"#N/A"},{"$error":"#N/A"},{"$error":"#N/A"},null,null,null,null,{"$f":"IF(S56=45%,3,IF(S56=50%,4,2))","v":2},null,"Choose Payout Percentage>",0.4,null,null,54,22,24,27]
[{"$error":"#N/A"},{"$error":"#N/A"},{"$error":"#N/A"},{"$error":"#N/A"},null,null,null,{"$error":"#N/A"},{"$error":"#N/A"},{"$error":"#N/A"},{"$error":"#N/A"},null,null,null,null,"Prelim","Proposed","Round","Manual","Final",null,55,22,25,28]
[{"$error":"#N/A"},{"$error":"#N/A"},{"$error":"#N/A"},{"$error":"#N/A"},null,null,null,{"$error":"#N/A"},{"$error":"#N/A"},{"$error":"#N/A"},{"$error":"#N/A"},null,null,null,"Place","Factor","Payout $$","to $5","Adj. ","Place",null,56,22,25,28]
[{"$error":"#N/A"},{"$error":"#N/A"},{"$error":"#N/A"},{"$error":"#N/A"},null,null,null,{"$error":"#N/A"},{"$error":"#N/A"},{"$error":"#N/A"},{"$error":"#N/A"},null,null,null,{"$f":"IF(ROW()-58>$O$55,\"\",ROW()-58)","v":{"$error":"#N/A"}},{"$f":"IF(O59=\"\",\"\",VLOOKUP(O59,_pay1,$O$55+1))","v":{"$error":"#N/A"}},{"$f":"IF(P59=\"\",\"\",$T$55*P59)","v":{"$error":"#N/A"}},{"$f":"IF(Q59=\"\",\"\",INT((Q59+2.5)/5)*5)","v":{"$error":"#N/A"}},null,null,null,57,23,26,29]
[{"$error":"#N/A"},{"$error":"#N/A"},{"$error":"#N/A"},{"$error":"#N/A"},null,null,null,{"$error":"#N/A"},{"$error":"#N/A"},{"$error":"#N/A"},{"$error":"#N/A"},null,null,null,{"$error":"#N/A"},{"$error":"#N/A"},{"$error":"#N/A"},{"$error":"#N/A"},null,null,null,58,23,26,29]
[{"$error":"#N/A"},{"$error":"#N/A"},{"$error":"#N/A"},{"$error":"#N/A"},null,null,null,{"$error":"#N/A"},{"$error":"#N/A"},{"$error":"#N/A"},{"$error":"#N/A"},null,null,null,{"$error":"#N/A"},{"$error":"#N/A"},{"$error":"#N/A"},{"$error":"#N/A"},null,null,null,59,24,27,30]
[{"$error":"#N/A"},{"$error":"#N/A"},{"$error":"#N/A"},{"$error":"#N/A"},null,null,null,{"$error":"#N/A"},{"$error":"#N/A"},{"$error":"#N/A"},{"$error":"#N/A"},null,null,null,{"$error":"#N/A"},{"$error":"#N/A"},{"$error":"#N/A"},{"$error":"#N/A"},null,null,null,60,24,27,30]
[{"$error":"#N/A"},{"$error":"#N/A"},{"$error":"#N/A"},{"$error":"#N/A"},null,null,null,{"$error":"#N/A"},{"$error":"#N/A"},{"$error":"#N/A"},{"$error":"#N/A"},null,null,null,{"$error":"#N/A"},{"$error":"#N/A"},{"$error":"#N/A"},{"$error":"#N/A"},null,null,null,61,24,28,31]
[{"$error":"#N/A"},{"$error":"#N/A"},{"$error":"#N/A"},{"$error":"#N/A"},null,null,null,{"$error":"#N/A"},{"$error":"#N/A"},{"$error":"#N/A"},{"$error":"#N/A"},null,null,null,{"$error":"#N/A"},{"$error":"#N/A"},{"$error":"#N/A"},{"$error":"#N/A"},null,null,null,62,25,28,31]
[{"$error":"#N/A"},{"$error":"#N/A"},{"$error":"#N/A"},{"$error":"#N/A"},null,null,null,{"$error":"#N/A"},{"$error":"#N/A"},{"$error":"#N/A"},{"$error":"#N/A"},null,null,null,{"$error":"#N/A"},{"$error":"#N/A"},{"$error":"#N/A"},{"$error":"#N/A"},null,null,null,63,25,28,32]
[{"$error":"#N/A"},{"$error":"#N/A"},{"$error":"#N/A"},{"$error":"#N/A"},null,null,null,{"$error":"#N/A"},{"$error":"#N/A"},{"$error":"#N/A"},{"$error":"#N/A"},null,null,null,null,{"$f":"SUM(P59:P65)","v":{"$error":"#N/A"}},{"$f":"SUM(Q59:Q65)","v":{"$error":"#N/A"}},{"$f":"SUM(R59:R65)","v":{"$error":"#N/A"}},{"$f":"SUM(S59:S65)","v":0},null,null,64,26,29,32]
[{"$error":"#N/A"},{"$error":"#N/A"},{"$error":"#N/A"},{"$error":"#N/A"},null,null,null,{"$error":"#N/A"},{"$error":"#N/A"},{"$error":"#N/A"},{"$error":"#N/A"},null,null,null,"Click Here > Large Field Payout Calculator",null,null,null,null,null,null,65,26,29,33]
[{"$error":"#N/A"},{"$error":"#N/A"},{"$error":"#N/A"},{"$error":"#N/A"},null,null,null,{"$error":"#N/A"},{"$error":"#N/A"},{"$error":"#N/A"},{"$error":"#N/A"},null,null,null,null,null,null,null,null,null,null,66,26,30,33]
[{"$error":"#N/A"},{"$error":"#N/A"},{"$error":"#N/A"},{"$error":"#N/A"},null,null,null,{"$error":"#N/A"},{"$error":"#N/A"},{"$error":"#N/A"},{"$error":"#N/A"},null,null,null,null,null,null,null,null,null,null,67,27,30,34]
[{"$error":"#N/A"},{"$error":"#N/A"},{"$error":"#N/A"},{"$error":"#N/A"},null,null,null,{"$error":"#N/A"},{"$error":"#N/A"},{"$error":"#N/A"},{"$error":"#N/A"},null,null,null,null,null,null,null,null,null,null,68,27,31]
[null,{"$f":"SUM(B38:B70)","v":{"$error":"#N/A"}},{"$f":"SUM(C38:C70)","v":{"$error":"#N/A"}},{"$f":"SUM(D38:D70)","v":{"$error":"#N/A"}},{"$f":"SUM(E38:E70)","v":0},null,null,null,{"$f":"SUM(I38:I70)","v":{"$error":"#N/A"}},{"$f":"SUM(J38:J70)","v":{"$error":"#N/A"}},{"$f":"SUM(K38:K70)","v":{"$error":"#N/A"}},{"$f":"SUM(L38:L70)","v":0},null,null,null,null,null,null,null,null,null,69,28,31]
["* Can be a negative number when expenses like trophies involved",null,null,null,null,null,null,null,null,null,{"$f":"IF(Q70=91,\"       To use this table, enter player divisions on Scores page >\",IF(Q70>4,\"Field limit exceeded. Use printed Payout tables.\",\"\"))","v":""},null,null,null,null,null,null,null,null,null,null,70,28,32]
["Click Here > Large Field Payout Calculator",null,null,null,null,null,null,"Click Here > Large Field Payout Calculator",null,null,null,null,null,null,"Click Here > Large Field Payout Calculator",null,null,null,null,null,null,71,28,32]
["SENIOR LEGENDS DIVISION",null,null,null,null,null,null,"GRAND LEGENDS DIVISION",null,null,null,null,null,null,"LEGENDS DIVISION",null,null,null,null,null,null,72,29,33]
[null,null,null,null,{"$f":"IF(C77>5,\"Field too big! Use manual tables.\",\"Enter Added Cash (or deduction) here* > \")","v":"Field too big! Use manual tables."},0,null,null,null,null,null,{"$f":"IF(J77>5,\"Field too big! Use manual tables.\",\"Enter Added Cash (or deduction) here* > \")","v":"Field too big! Use manual tables."},0,null,null,null,null,null,{"$f":"IF(Q77>5,\"Field too big! Use Large Field Calculator\",\"Enter Added Cash (or deduction) here* > \")","v":"Field too big! Use Large Field Calculator"},0,null,73,29,33]
["# Paid",null,"Field Size",null,"Total Fees: ",{"$f":"Cover!G12","v":0},null,"# Paid",null,"Field Size",null,"Total Fees: ",{"$f":"Cover!G13","v":0},null,"# Paid",null,"Field Size",null,"Total Fees: ",{"$f":"Cover!G11","v":0},null,74,30,33]
[{"$f":"VLOOKUP(C77,paypct,B78,FALSE)","v":{"$error":"#N/A"}},null,{"$f":"IF(Cover!F12=0,91,Cover!F12)","v":91},null,"Net Purse: ",{"$f":"F76+F75","v":0},null,{"$f":"VLOOKUP(J77,paypct,I78,FALSE)","v":{"$error":"#N/A"}},null,{"$f":"IF(Cover!F13=0,91,Cover!F13)","v":91},null,"Net Purse: ",{"$f":"M76+M75","v":0},null,{"$f":"VLOOKUP(Q77,paypct,P78,FALSE)","v":{"$error":"#N/A"}},null,{"$f":"IF(Cover!F11=0,91,Cover!F11)","v":91},null,"Net Purse: ",{"$f":"T76+T75","v":0},null,75,30,34]
[null,{"$f":"IF(E78=45%,3,IF(E78=50%,4,2))","v":2},null,"Choose Payout Percentage>",0.4,null,null,null,{"$f":"IF(L78=45%,3,IF(L78=50%,4,2))","v":2},null,"Choose Payout Percentage>",0.4,null,null,null,{"$f":"IF(S78=45%,3,IF(S78=50%,4,2))","v":2},null,"Choose Payout Percentage>",0.4,null,null,76,30]
[null,"Prelim","Proposed","Round","Manual","Final",null,null,"Prelim","Proposed","Round","Manual","Final",null,null,"Prelim","Proposed","Round","Manual","Final",null,77,31]
["Place","Factor","Payout $$","to $5","Adj. ","Place",null,"Place","Factor","Payout $$","to $5","Adj. ","Place",null,"Place","Factor","Payout $$","to $5","Adj. ","Place",null,78,31]
[{"$f":"IF(ROW()-80>$A$77,\"\",ROW()-80)","v":{"$error":"#N/A"}},{"$f":"IF(A81=\"\",\"\",VLOOKUP(A81,_pay1,$A$77+1))","v":{"$error":"#N/A"}},{"$f":"IF(B81=\"\",\"\",$F$77*B81)","v":{"$error":"#N/A"}},{"$f":"IF(C81=\"\",\"\",INT((C81+2.5)/5)*5)","v":{"$error":"#N/A"}},null,null,null,{"$f":"IF(ROW()-80>$H$77,\"\",ROW()-80)","v":{"$error":"#N/A"}},{"$f":"IF(H81=\"\",\"\",VLOOKUP(H81,_pay1,$H$77+1))","v":{"$error":"#N/A"}},{"$f":"IF(I81=\"\",\"\",$M$77*I81)","v":{"$error":"#N/A"}},{"$f":"IF(J81=\"\",\"\",INT((J81+2.5)/5)*5)","v":{"$error":"#N/A"}},null,null,null,{"$f":"IF(ROW()-80>$O$77,\"\",ROW()-80)","v":{"$error":"#N/A"}},{"$f":"IF(O81=\"\",\"\",VLOOKUP(O81,_pay1,$O$77+1))","v":{"$error":"#N/A"}},{"$f":"IF(P81=\"\",\"\",$T$77*P81)","v":{"$error":"#N/A"}},{"$f":"IF(Q81=\"\",\"\",INT((Q81+2.5)/5)*5)","v":{"$error":"#N/A"}},null,null,null,79,32]
[{"$f":"IF(ROW()-80>$A$77,\"\",ROW()-80)","v":{"$error":"#N/A"}},{"$f":"IF(A82=\"\",\"\",VLOOKUP(A82,_pay1,$A$77+1))","v":{"$error":"#N/A"}},{"$f":"IF(B82=\"\",\"\",$F$77*B82)","v":{"$error":"#N/A"}},{"$f":"IF(C82=\"\",\"\",INT((C82+2.5)/5)*5)","v":{"$error":"#N/A"}},null,null,null,{"$f":"IF(ROW()-80>$H$77,\"\",ROW()-80)","v":{"$error":"#N/A"}},{"$f":"IF(H82=\"\",\"\",VLOOKUP(H82,_pay1,$H$77+1))","v":{"$error":"#N/A"}},{"$f":"IF(I82=\"\",\"\",$M$77*I82)","v":{"$error":"#N/A"}},{"$f":"IF(J82=\"\",\"\",INT((J82+2.5)/5)*5)","v":{"$error":"#N/A"}},null,null,null,{"$f":"IF(ROW()-80>$O$77,\"\",ROW()-80)","v":{"$error":"#N/A"}},{"$f":"IF(O82=\"\",\"\",VLOOKUP(O82,_pay1,$O$77+1))","v":{"$error":"#N/A"}},{"$f":"IF(P82=\"\",\"\",$T$77*P82)","v":{"$error":"#N/A"}},{"$f":"IF(Q82=\"\",\"\",INT((Q82+2.5)/5)*5)","v":{"$error":"#N/A"}},null,null,null,80,32]
[null,{"$f":"SUM(B81:B82)","v":{"$error":"#N/A"}},{"$f":"SUM(C81:C82)","v":{"$error":"#N/A"}},{"$f":"SUM(D81:D82)","v":{"$error":"#N/A"}},{"$f":"SUM(E81:E82)","v":0},null,null,null,{"$f":"SUM(I81:I82)","v":{"$error":"#N/A"}},{"$f":"SUM(J81:J82)","v":{"$error":"#N/A"}},{"$f":"SUM(K81:K82)","v":{"$error":"#N/A"}},{"$f":"SUM(L81:L82)","v":0},null,null,null,{"$f":"SUM(P81:P82)","v":{"$error":"#N/A"}},{"$f":"SUM(Q81:Q82)","v":{"$error":"#N/A"}},{"$f":"SUM(R81:R82)","v":{"$error":"#N/A"}},{"$f":"SUM(S81:S82)","v":0},null,null,81,32]
[null,null,null,null,null,null,null,null,null,null,null,null,null,null,null,null,null,null,null,null,null,82,33]
[null,null,null,null,null,null,null,null,null,null,null,null,null,null,null,null,null,null,null,null,null,83,33]
[]
[null,null,null,null,null,"http://www.pdga.com/large-event-payout-calculator"]

{"sheet":"Am.Jr.Payouts","index":6,"n_rows":198,"n_cols":61,"rows_kept":198,"cut":false,"hidden":false,"merged":[[179,0,179,5],[179,7,179,12],[179,14,179,19],[43,14,43,19],[56,7,56,12],[128,14,128,19],[65,14,65,19],[69,7,69,12],[86,0,86,5],[86,7,86,12],[86,14,86,19],[107,14,107,19],[108,7,108,12],[108,14,108,19],[128,7,128,12],[147,14,147,19],[0,0,0,5],[0,7,0,12],[0,14,0,19],[22,7,22,12],[22,14,22,19],[21,14,21,19],[21,7,21,12],[165,14,165,19],[148,7,148,12],[148,14,148,19],[159,7,159,12],[147,0,147,5],[169,7,169,12],[68,7,68,12],[41,0,41,5],[84,0,84,5],[107,7,107,12],[148,0,148,5],[128,0,128,5],[43,0,43,5],[43,7,43,12],[158,7,158,12],[167,0,167,5]]}
["ADVANCED DIVISION",null,null,null,null,null,null,"ADVANCED MASTERS DIVISION",null,null,null,null,null,null,"ADVANCED WOMEN DIVISION",null,null,null,null,null,null,null,null,null,null,null,null,null,null,null,null,null,null,null,null,null,null,null,null,null,null,null,null,null,null,null,null,null,null,null,null,null,null,null,null,null,0.5,null,null,0.45]
[null,null,null,null,"Enter Added Cash (or deduction) here* > ",0,null,null,null,null,null,"Enter Added Cash (or deduction) here* > ",0,null,null,null,null,null,"Enter Added Cash (or deduction) here* > ",0,null,null,null,null,null,null,null,null,null,null,null,null,null,null,null,null,null,null,null,null,null,null,null,null,null,null,null,null,null,null,null,null,null,null,null,null,"Field","# paid",null,"Field","# paid"]
["# Paid",null,"Field Size","Pay pct","Total Fees: ",{"$f":"Cover!G21+Cover!M21","v":0},null,"# Paid",null,"Field Size","Pay pct","Total Fees: ",{"$f":"Cover!G25+Cover!M25","v":0},null,"# Paid",null,"Field Size","Pay pct","Total Fees: ",{"$f":"Cover!G33+Cover!M33","v":0}]
[{"$f":"IF(D4=45%,VLOOKUP(C4,dbd,2,FALSE),VLOOKUP(C4,dbe,2,FALSE))","v":{"$error":"#N/A"}},null,{"$f":"IF(Cover!F21=0,91,Cover!F21+ROUNDDOWN(Cover!L21/3,0))","v":91},0.45,"Net Purse: ",{"$f":"F3+F2","v":0},null,{"$f":"IF(K4=45%,VLOOKUP(J4,dbd,2,FALSE),VLOOKUP(J4,dbe,2,FALSE))","v":{"$error":"#N/A"}},null,{"$f":"IF(Cover!F25=0,91,Cover!F25+ROUNDDOWN(Cover!L25/3,0))","v":91},0.45,"Net Purse: ",{"$f":"M3+M2","v":0},null,{"$f":"IF(R4=45%,VLOOKUP(Q4,dbd,2,FALSE),VLOOKUP(Q4,dbe,2,FALSE))","v":{"$error":"#N/A"}},null,{"$f":"IF(Cover!F33=0,91,Cover!F33+ROUNDDOWN(Cover!L33/3,0))","v":91},0.45,"Net Purse: ",{"$f":"T3+T2","v":0},null,null,null,null,null,null,null,null,null,null,null,null,null,null,null,null,null,null,null,null,null,null,null,null,null,null,null,null,null,null,null,null,null,null,null,null,1,1,null,1,1]
[null,null,null,{"$f":"IF(C4=91,\"       To use this table, enter player divisions on Scores page\",IF(C4>75,\"Field limit exceeded. Use printed Payout tables.\",\"\"))","v":"       To use this table, enter player divisions on Scores page"},null,null,null,null,null,null,{"$f":"IF(J4=91,\"       To use this table, enter player divisions on Scores page\",IF(J4>30,\"Field limit exceeded. Use printed Payout tables.\",\"\"))","v":"       To use this table, enter player divisions on Scores page"},null,null,null,null,null,null,{"$f":"IF(Q4=91,\"       To use this table, enter player divisions on Scores page\",IF(Q4>30,\"Field limit exceeded. Use printed Payout tables.\",\"\"))","v":"       To use this table, enter player divisions on Scores page"},null,null,null,null,null,null,null,null,null,null,null,null,null,null,null,null,null,null,null,null,null,null,null,null,null,null,null,null,null,null,null,null,null,null,null,null,null,null,2,1,null,2,1]
[null,"Prelim","Proposed","Round","Manual","Final",null,null,"Prelim","Proposed","Round","Manual","Final",null,null,"Prelim","Proposed","Round","Manual","Final",null,null,null,null,null,null,null,null,null,null,null,null,null,null,null,null,null,null,null,null,null,null,null,null,null,null,null,null,null,null,null,null,null,null,null,null,3,2,null,3,1]
["Place","Factor","Payout $$","to $5","Adj. ","Place",null,"Place","Factor","Payout $$","to $5","Adj. ","Place",null,"Place","Factor","Payout $$","to $5","Adj. ","Place",null,null,null,null,null,null,null,null,null,null,null,null,null,null,null,null,null,null,null,null,null,null,null,null,null,null,null,null,null,null,null,null,null,null,null,null,4,2,null,4,2]
[{"$f":"IF(ROW()-7>$A$4,\"\",ROW()-7)","v":{"$error":"#N/A"}},{"$f":"IF(A8>$A$4,\"\",IF(D$4=45%,VLOOKUP(A8,__pay5,$A$4+1),VLOOKUP(A8,__pay3,$A$4+1)))","v":{"$error":"#N/A"}},{"$f":"IF(B8=\"\",\"\",$F$4*B8)","v":{"$error":"#N/A"}},{"$f":"IF(C8=\"\",\"\",INT((C8+2.5)/5)*5)","v":{"$error":"#N/A"}},null,null,null,{"$f":"IF(ROW()-7>$H$4,\"\",ROW()-7)","v":{"$error":"#N/A"}},{"$f":"IF(K$4=45%,VLOOKUP(H8,__pay5,$H$4+1),VLOOKUP(H8,__pay3,$H$4+1))","v":{"$error":"#N/A"}},{"$f":"IF(I8=\"\",\"\",$M$4*I8)","v":{"$error":"#N/A"}},{"$f":"IF(J8=\"\",\"\",INT((J8+2.5)/5)*5)","v":{"$error":"#N/A"}},null,null,null,{"$f":"IF(ROW()-7>$O$4,\"\",ROW()-7)","v":{"$error":"#N/A"}},{"$f":"IF(R$4=45%,VLOOKUP(O8,__pay5,$O$4+1),VLOOKUP(O8,__pay3,$O$4+1))","v":{"$error":"#N/A"}},{"$f":"IF(P8=\"\",\"\",$T$4*P8)","v":{"$error":"#N/A"}},{"$f":"IF(Q8=\"\",\"\",INT((Q8+2.5)/5)*5)","v":{"$error":"#N/A"}},null,null,null,null,null,null,null,null,null,null,null,null,null,null,null,null,null,null,null,null,null,null,null,null,null,null,null,null,null,null,null,null,null,null,null,null,null,null,5,3,null,5,2]
[{"$error":"#N/A"},{"$f":"IF(A9=\"\",\"\",IF(D$4=45%,VLOOKUP(A9,__pay5,A$4+1),VLOOKUP(A9,__pay3,A$4+1)))","v":{"$error":"#N/A"}},{"$f":"IF(B9=\"\",\"\",$F$4*B9)","v":{"$error":"#N/A"}},{"$error":"#N/A"},null,null,null,{"$error":"#N/A"},{"$f":"IF(H9=\"\",\"\",IF(K$4=45%,VLOOKUP(H9,__pay5,H$4+1),VLOOKUP(H9,__pay3,H$4+1)))","v":{"$error":"#N/A"}},{"$f":"IF(I9=\"\",\"\",$M$4*I9)","v":{"$error":"#N/A"}},{"$error":"#N/A"},null,null,null,{"$error":"#N/A"},{"$f":"IF(O9=\"\",\"\",IF(R$4=45%,VLOOKUP(O9,__pay5,O$4+1),VLOOKUP(O9,__pay3,O$4+1)))","v":{"$error":"#N/A"}},{"$f":"IF(P9=\"\",\"\",$T$4*P9)","v":{"$error":"#N/A"}},{"$error":"#N/A"},null,null,null,null,null,null,null,null,null,null,null,null,null,null,null,null,null,null,null,null,null,null,null,null,null,null,null,null,null,null,null,null,null,null,null,null,null,null,6,3,null,6,3]
[{"$error":"#N/A"},{"$error":"#N/A"},{"$error":"#N/A"},{"$error":"#N/A"},null,null,null,{"$error":"#N/A"},{"$error":"#N/A"},{"$error":"#N/A"},{"$error":"#N/A"},null,null,null,{"$error":"#N/A"},{"$error":"#N/A"},{"$error":"#N/A"},{"$error":"#N/A"},null,null,null,null,null,null,null,null,null,null,null,null,null,null,null,null,null,null,null,null,null,null,null,null,null,null,null,null,null,null,null,null,null,null,null,null,null,null,7,4,null,7,3]
[{"$error":"#N/A"},{"$error":"#N/A"},{"$error":"#N/A"},{"$error":"#N/A"},null,null,null,{"$error":"#N/A"},{"$error":"#N/A"},{"$error":"#N/A"},{"$error":"#N/A"},null,null,null,{"$error":"#N/A"},{"$error":"#N/A"},{"$error":"#N/A"},{"$error":"#N/A"},null,null,null,null,null,null,null,null,null,null,null,null,null,null,null,null,null,null,null,null,null,null,null,null,null,null,null,null,null,null,null,null,null,null,null,null,null,null,8,4,null,8,4]
[{"$error":"#N/A"},{"$error":"#N/A"},{"$error":"#N/A"},{"$error":"#N/A"},null,null,null,{"$error":"#N/A"},{"$error":"#N/A"},{"$error":"#N/A"},{"$error":"#N/A"},null,null,null,{"$error":"#N/A"},{"$error":"#N/A"},{"$error":"#N/A"},{"$error":"#N/A"},null,null,null,null,null,null,null,null,null,null,null,null,null,null,null,null,null,null,null,null,null,null,null,null,null,null,null,null,null,null,null,null,null,null,null,null,null,null,9,5,null,9,4]
[{"$error":"#N/A"},{"$error":"#N/A"},{"$error":"#N/A"},{"$error":"#N/A"},null,null,null,{"$error":"#N/A"},{"$error":"#N/A"},{"$error":"#N/A"},{"$error":"#N/A"},null,null,null,{"$error":"#N/A"},{"$error":"#N/A"},{"$error":"#N/A"},{"$error":"#N/A"},null,null,null,null,null,null,null,null,null,null,null,null,null,null,null,null,null,null,null,null,null,null,null,null,null,null,null,null,null,null,null,null,null,null,null,null,null,null,10,5,null,10,5]
[{"$error":"#N/A"},{"$error":"#N/A"},{"$error":"#N/A"},{"$error":"#N/A"},null,null,null,{"$error":"#N/A"},{"$error":"#N/A"},{"$error":"#N/A"},{"$error":"#N/A"},null,null,null,{"$error":"#N/A"},{"$error":"#N/A"},{"$error":"#N/A"},{"$error":"#N/A"},null,null,null,null,null,null,null,null,null,null,null,null,null,null,null,null,null,null,null,null,null,null,null,null,null,null,null,null,null,null,null,null,null,null,null,null,null,null,11,6,null,11,5]
[{"$error":"#N/A"},{"$error":"#N/A"},{"$error":"#N/A"},{"$error":"#N/A"},null,null,null,{"$error":"#N/A"},{"$error":"#N/A"},{"$error":"#N/A"},{"$error":"#N/A"},null,null,null,{"$error":"#N/A"},{"$error":"#N/A"},{"$error":"#N/A"},{"$error":"#N/A"},null,null,null,null,null,null,null,null,null,null,null,null,null,null,null,null,null,null,null,null,null,null,null,null,null,null,null,null,null,null,null,null,null,null,null,null,null,null,12,6,null,12,6]
[{"$error":"#N/A"},{"$error":"#N/A"},{"$error":"#N/A"},{"$error":"#N/A"},null,null,null,{"$error":"#N/A"},{"$error":"#N/A"},{"$error":"#N/A"},{"$error":"#N/A"},null,null,null,{"$error":"#N/A"},{"$error":"#N/A"},{"$error":"#N/A"},{"$error":"#N/A"},null,null,null,null,null,null,null,null,null,null,null,null,null,null,null,null,null,null,null,null,null,null,null,null,null,null,null,null,null,null,null,null,null,null,null,null,null,null,13,7,null,13,6]
[{"$error":"#N/A"},{"$error":"#N/A"},{"$error":"#N/A"},{"$error":"#N/A"},null,null,null,{"$error":"#N/A"},{"$error":"#N/A"},{"$error":"#N/A"},{"$error":"#N/A"},null,null,null,{"$error":"#N/A"},{"$error":"#N/A"},{"$error":"#N/A"},{"$error":"#N/A"},null,null,null,null,null,null,null,null,null,null,null,null,null,null,null,null,null,null,null,null,null,null,null,null,null,null,null,null,null,null,null,null,null,null,null,null,null,null,14,7,null,14,6]
[{"$error":"#N/A"},{"$error":"#N/A"},{"$error":"#N/A"},{"$error":"#N/A"},null,null,null,{"$error":"#N/A"},{"$error":"#N/A"},{"$error":"#N/A"},{"$error":"#N/A"},null,null,null,{"$error":"#N/A"},{"$error":"#N/A"},{"$error":"#N/A"},{"$error":"#N/A"},null,null,null,null,null,null,null,null,null,null,null,null,null,null,null,null,null,null,null,null,null,null,null,null,null,null,null,null,null,null,null,null,null,null,null,null,null,null,15,8,null,15,7]
[{"$error":"#N/A"},{"$error":"#N/A"},{"$error":"#N/A"},{"$error":"#N/A"},null,null,null,{"$error":"#N/A"},{"$error":"#N/A"},{"$error":"#N/A"},{"$error":"#N/A"},null,null,null,{"$error":"#N/A"},{"$error":"#N/A"},{"$error":"#N/A"},{"$error":"#N/A"},null,null,null,null,null,null,null,null,null,null,null,null,null,null,null,null,null,null,null,null,null,null,null,null,null,null,null,null,null,null,null,null,null,null,null,null,null,null,16,8,null,16,7]
[{"$error":"#N/A"},{"$error":"#N/A"},{"$error":"#N/A"},{"$error":"#N/A"},null,null,null,{"$error":"#N/A"},{"$error":"#N/A"},{"$error":"#N/A"},{"$error":"#N/A"},null,null,null,{"$error":"#N/A"},{"$error":"#N/A"},{"$error":"#N/A"},{"$error":"#N/A"},null,null,null,null,null,null,null,null,null,null,null,null,null,null,null,null,null,null,null,null,null,null,null,null,null,null,null,null,null,null,null,null,null,null,null,null,null,null,17,9,null,17,8]
[{"$error":"#N/A"},{"$error":"#N/A"},{"$error":"#N/A"},{"$error":"#N/A"},null,null,null,null,{"$f":"SUM(I8:I20)","v":{"$error":"#N/A"}},{"$f":"SUM(J8:J20)","v":{"$error":"#N/A"}},{"$f":"SUM(K8:K20)","v":{"$error":"#N/A"}},{"$f":"SUM(L8:L20)","v":0},null,null,null,{"$f":"SUM(P8:P20)","v":{"$error":"#N/A"}},{"$f":"SUM(Q8:Q20)","v":{"$error":"#N/A"}},{"$f":"SUM(R8:R20)","v":{"$error":"#N/A"}},{"$f":"SUM(S8:S20)","v":0},null,null,null,null,null,null,null,null,null,null,null,null,null,null,null,null,null,null,null,null,null,null,null,null,null,null,null,null,null,null,null,null,null,null,null,null,null,18,9,null,18,8]
[{"$error":"#N/A"},{"$error":"#N/A"},{"$error":"#N/A"},{"$error":"#N/A"},null,null,null,"Click Here > Large Field Payout Calculator",null,null,null,null,null,null,"Click Here > Large Field Payout Calculator",null,null,null,null,null,null,null,null,null,null,null,null,null,null,null,null,null,null,null,null,null,null,null,null,null,null,null,null,null,null,null,null,null,null,null,null,null,null,null,null,null,19,10,null,19,9]
[{"$error":"#N/A"},{"$error":"#N/A"},{"$error":"#N/A"},{"$error":"#N/A"},null,null,null,"ADVANCED GRANDMASTER AM",null,null,null,null,null,null,"RECREATIONAL WOMEN AM",null,null,null,null,null,null,null,null,null,null,null,null,null,null,null,null,null,null,null,null,null,null,null,null,null,null,null,null,null,null,null,null,null,null,null,null,null,null,null,null,null,20,10,null,20,9]
[{"$error":"#N/A"},{"$error":"#N/A"},{"$error":"#N/A"},{"$error":"#N/A"},null,null,null,null,null,null,null,"Enter Added Cash (or deduction) here* > ",0,null,null,null,null,null,"Enter Added Cash (or deduction) here* > ",0,null,null,null,null,null,null,null,null,null,null,null,null,null,null,null,null,null,null,null,null,null,null,null,null,null,null,null,null,null,null,null,null,null,null,null,null,21,11,null,21,10]
[{"$error":"#N/A"},{"$error":"#N/A"},{"$error":"#N/A"},{"$error":"#N/A"},null,null,null,"# Paid",null,"Field Size","Pay pct","Total Fees: ",{"$f":"Cover!G26+Cover!M26","v":0},null,"# Paid",null,"Field Size","Pay pct","Total Fees: ",{"$f":"Cover!G35","v":0},null,null,null,null,null,null,null,null,null,null,null,null,null,null,null,null,null,null,null,null,null,null,null,null,null,null,null,null,null,null,null,null,null,null,null,null,22,11,null,22,10]
[{"$error":"#N/A"},{"$error":"#N/A"},{"$error":"#N/A"},{"$error":"#N/A"},null,null,null,{"$f":"IF(K26=45%,VLOOKUP(J26,dbd,2,FALSE),VLOOKUP(J26,dbe,2,FALSE))","v":{"$error":"#N/A"}},null,{"$f":"IF(Cover!F26=0,91,Cover!F26+ROUNDDOWN(Cover!L26/3,0))","v":91},0.45,"Net Purse: ",{"$f":"M25+M24","v":0},null,{"$f":"IF(R26=45%,VLOOKUP(Q26,dbd,2,FALSE),VLOOKUP(Q26,dbe,2,FALSE))","v":{"$error":"#N/A"}},null,{"$f":"IF(Cover!F35=0,91,Cover!F35)","v":91},0.45,"Net Purse: ",{"$f":"T25+T24","v":0},null,null,null,null,null,null,null,null,null,null,null,null,null,null,null,null,null,null,null,null,null,null,null,null,null,null,null,null,null,null,null,null,null,null,null,null,23,12,null,23,10]
[{"$error":"#N/A"},{"$error":"#N/A"},{"$error":"#N/A"},{"$error":"#N/A"},null,null,null,null,null,null,{"$f":"IF(J26=91,\"       To use this table, enter player divisions on Scores page\",IF(J26>30,\"Field limit exceeded. Use printed Payout tables.\",\"\"))","v":"       To use this table, enter player divisions on Scores page"},null,null,null,null,null,null,{"$f":"IF(Q26=91,\"       To use this table, enter player divisions on Scores page\",IF(Q26>26,\"Field limit exceeded. Use printed Payout tables.\",\"\"))","v":"       To use this table, enter player divisions on Scores page"},null,null,null,null,null,null,null,null,null,null,null,null,null,null,null,null,null,null,null,null,null,null,null,null,null,null,null,null,null,null,null,null,null,null,null,null,null,null,24,12,null,24,11]
[{"$error":"#N/A"},{"$error":"#N/A"},{"$error":"#N/A"},{"$error":"#N/A"},null,null,null,null,"Prelim","Proposed","Round","Manual","Final",null,null,"Prelim","Proposed","Round","Manual","Final",null,null,null,null,null,null,null,null,null,null,null,null,null,null,null,null,null,null,null,null,null,null,null,null,null,null,null,null,null,null,null,null,null,null,null,null,25,13,null,25,11]
[{"$error":"#N/A"},{"$error":"#N/A"},{"$error":"#N/A"},{"$error":"#N/A"},null,null,null,"Place","Factor","Payout $$","to $5","Adj. ","Place",null,"Place","Factor","Payout $$","to $5","Adj. ","Place",null,null,null,null,null,null,null,null,null,null,null,null,null,null,null,null,null,null,null,null,null,null,null,null,null,null,null,null,null,null,null,null,null,null,null,null,26,13,null,26,12]
[{"$error":"#N/A"},{"$error":"#N/A"},{"$error":"#N/A"},{"$error":"#N/A"},null,null,null,{"$f":"IF(ROW()-29>$H$26,\"\",ROW()-29)","v":{"$error":"#N/A"}},{"$f":"IF(K$26=45%,VLOOKUP(H30,__pay5,$H$26+1),VLOOKUP(H30,__pay3,$H$26+1))","v":{"$error":"#N/A"}},{"$f":"IF(I30=\"\",\"\",$M$26*I30)","v":{"$error":"#N/A"}},{"$f":"IF(J30=\"\",\"\",INT((J30+2.5)/5)*5)","v":{"$error":"#N/A"}},null,null,null,{"$f":"IF(ROW()-29>$O$26,\"\",ROW()-29)","v":{"$error":"#N/A"}},{"$f":"IF(R$26=45%,VLOOKUP(O30,__pay5,O$26+1),VLOOKUP(O30,__pay3,O$26+1))","v":{"$error":"#N/A"}},{"$f":"IF(P30=\"\",\"\",$T$26*P30)","v":{"$error":"#N/A"}},{"$f":"IF(Q30=\"\",\"\",INT((Q30+2.5)/5)*5)","v":{"$error":"#N/A"}},null,null,null,null,null,null,null,null,null,null,null,null,null,null,null,null,null,null,null,null,null,null,null,null,null,null,null,null,null,null,null,null,null,null,null,null,null,null,27,14,null,27,12]
[{"$error":"#N/A"},{"$error":"#N/A"},{"$error":"#N/A"},{"$error":"#N/A"},null,null,null,{"$error":"#N/A"},{"$f":"IF(H31=\"\",\"\",IF(K$26=45%,VLOOKUP(H31,__pay5,H$26+1),VLOOKUP(H31,__pay3,H$26+1)))","v":{"$error":"#N/A"}},{"$f":"IF(I31=\"\",\"\",$M$26*I31)","v":{"$error":"#N/A"}},{"$error":"#N/A"},null,null,null,{"$error":"#N/A"},{"$f":"IF(O31=\"\",\"\",IF(R$26=45%,VLOOKUP(O31,__pay5,O$26+1),VLOOKUP(O31,__pay3,O$26+1)))","v":{"$error":"#N/A"}},{"$error":"#N/A"},{"$error":"#N/A"},null,null,null,null,null,null,null,null,null,null,null,null,null,null,null,null,null,null,null,null,null,null,null,null,null,null,null,null,null,null,null,null,null,null,null,null,null,null,28,14,null,28,13]
[{"$error":"#N/A"},{"$error":"#N/A"},{"$error":"#N/A"},{"$error":"#N/A"},null,null,null,{"$error":"#N/A"},{"$error":"#N/A"},{"$error":"#N/A"},{"$error":"#N/A"},null,null,null,{"$error":"#N/A"},{"$error":"#N/A"},{"$error":"#N/A"},{"$error":"#N/A"},null,null,null,null,null,null,null,null,null,null,null,null,null,null,null,null,null,null,null,null,null,null,null,null,null,null,null,null,null,null,null,null,null,null,null,null,null,null,29,15,null,29,13]
[{"$error":"#N/A"},{"$error":"#N/A"},{"$error":"#N/A"},{"$error":"#N/A"},null,null,null,{"$error":"#N/A"},{"$error":"#N/A"},{"$error":"#N/A"},{"$error":"#N/A"},null,null,null,{"$error":"#N/A"},{"$error":"#N/A"},{"$error":"#N/A"},{"$error":"#N/A"},null,null,null,null,null,null,null,null,null,null,null,null,null,null,null,null,null,null,null,null,null,null,null,null,null,null,null,null,null,null,null,null,null,null,null,null,null,null,30,15,null,30,14]
[{"$error":"#N/A"},{"$error":"#N/A"},{"$error":"#N/A"},{"$error":"#N/A"},null,null,null,{"$error":"#N/A"},{"$error":"#N/A"},{"$error":"#N/A"},{"$error":"#N/A"},null,null,null,{"$error":"#N/A"},{"$error":"#N/A"},{"$error":"#N/A"},{"$error":"#N/A"},null,null,null,null,null,null,null,null,null,null,null,null,null,null,null,null,null,null,null,null,null,null,null,null,null,null,null,null,null,null,null,null,null,null,null,null,null,null,31,16,null,31,14]
[{"$error":"#N/A"},{"$error":"#N/A"},{"$error":"#N/A"},{"$error":"#N/A"},null,null,null,{"$error":"#N/A"},{"$error":"#N/A"},{"$error":"#N/A"},{"$error":"#N/A"},null,null,null,{"$error":"#N/A"},{"$error":"#N/A"},{"$error":"#N/A"},{"$error":"#N/A"},null,null,null,null,null,null,null,null,null,null,null,null,null,null,null,null,null,null,null,null,null,null,null,null,null,null,null,null,null,null,null,null,null,null,null,null,null,null,32,16,null,32,15]
[{"$error":"#N/A"},{"$error":"#N/A"},{"$error":"#N/A"},{"$error":"#N/A"},null,null,null,{"$error":"#N/A"},{"$error":"#N/A"},{"$error":"#N/A"},{"$error":"#N/A"},null,null,null,{"$error":"#N/A"},{"$error":"#N/A"},{"$error":"#N/A"},{"$error":"#N/A"},null,null,null,null,null,null,null,null,null,null,null,null,null,null,null,null,null,null,null,null,null,null,null,null,null,null,null,null,null,null,null,null,null,null,null,null,null,null,33,17,null,33,15]
[{"$error":"#N/A"},{"$error":"#N/A"},{"$error":"#N/A"},{"$error":"#N/A"},null,null,null,{"$error":"#N/A"},{"$error":"#N/A"},{"$error":"#N/A"},{"$error":"#N/A"},null,null,null,{"$error":"#N/A"},{"$error":"#N/A"},{"$error":"#N/A"},{"$error":"#N/A"},null,null,null,null,null,null,null,null,null,null,null,null,null,null,null,null,null,null,null,null,null,null,null,null,null,null,null,null,null,null,null,null,null,null,null,null,null,null,34,17,null,34,15]
[{"$error":"#N/A"},{"$error":"#N/A"},{"$error":"#N/A"},{"$error":"#N/A"},null,null,null,{"$error":"#N/A"},{"$error":"#N/A"},{"$error":"#N/A"},{"$error":"#N/A"},null,null,null,{"$error":"#N/A"},{"$error":"#N/A"},{"$error":"#N/A"},{"$error":"#N/A"},null,null,null,null,null,null,null,null,null,null,null,null,null,null,null,null,null,null,null,null,null,null,null,null,null,null,null,null,null,null,null,null,null,null,null,null,null,null,35,18,null,35,16]
[{"$error":"#N/A"},{"$error":"#N/A"},{"$error":"#N/A"},{"$error":"#N/A"},null,null,null,{"$error":"#N/A"},{"$error":"#N/A"},{"$error":"#N/A"},{"$error":"#N/A"},null,null,null,{"$error":"#N/A"},{"$error":"#N/A"},{"$error":"#N/A"},{"$error":"#N/A"},null,null,null,null,null,null,null,null,null,null,null,null,null,null,null,null,null,null,null,null,null,null,null,null,null,null,null,null,null,null,null,null,null,null,null,null,null,null,36,18,null,36,16]
[{"$error":"#N/A"},{"$error":"#N/A"},{"$error":"#N/A"},{"$error":"#N/A"},null,null,null,{"$error":"#N/A"},{"$error":"#N/A"},{"$error":"#N/A"},{"$error":"#N/A"},null,null,null,{"$error":"#N/A"},{"$error":"#N/A"},{"$error":"#N/A"},{"$error":"#N/A"},null,null,null,null,null,null,null,null,null,null,null,null,null,null,null,null,null,null,null,null,null,null,null,null,null,null,null,null,null,null,null,null,null,null,null,null,null,null,37,19,null,37,17]
[null,{"$f":"SUM(B8:B40)","v":{"$error":"#N/A"}},{"$f":"SUM(C8:C40)","v":{"$error":"#N/A"}},{"$f":"SUM(D8:D40)","v":{"$error":"#N/A"}},{"$f":"SUM(E8:E40)","v":0},null,null,{"$error":"#N/A"},{"$error":"#N/A"},{"$error":"#N/A"},{"$error":"#N/A"},null,null,null,{"$error":"#N/A"},{"$error":"#N/A"},{"$error":"#N/A"},{"$error":"#N/A"},null,null,null,null,null,null,null,null,null,null,null,null,null,null,null,null,null,null,null,null,null,null,null,null,null,null,null,null,null,null,null,null,null,null,null,null,null,null,38,19,null,38,17]
["Click Here > Large Field Payout Calculator",null,null,null,null,null,null,{"$error":"#N/A"},{"$error":"#N/A"},{"$error":"#N/A"},{"$error":"#N/A"},null,null,null,{"$error":"#N/A"},{"$error":"#N/A"},{"$error":"#N/A"},{"$error":"#N/A"},null,null,null,null,null,null,null,null,null,null,null,null,null,null,null,null,null,null,null,null,null,null,null,null,null,null,null,null,null,null,null,null,null,null,null,null,null,null,39,20,null,39,18]
["* Can be a negative number when expenses like trophies involved",null,null,null,null,null,null,null,{"$f":"SUM(I30:I42)","v":{"$error":"#N/A"}},{"$f":"SUM(J30:J42)","v":{"$error":"#N/A"}},{"$f":"SUM(K30:K42)","v":{"$error":"#N/A"}},{"$f":"SUM(L30:L42)","v":0},null,null,null,{"$f":"SUM(P30:P42)","v":{"$error":"#N/A"}},{"$f":"SUM(Q30:Q42)","v":{"$error":"#N/A"}},{"$f":"SUM(R30:R42)","v":{"$error":"#N/A"}},{"$f":"SUM(S30:S42)","v":0},null,null,null,null,null,null,null,null,null,null,null,null,null,null,null,null,null,null,null,null,null,null,null,null,null,null,null,null,null,null,null,null,null,null,null,null,null,40,20,null,40,18]
["INTERMEDIATE AM DIVISION",null,null,null,null,null,null,"ADVANCED SR GRANDMASTER AM",null,null,null,null,null,null,"INTERMEDIATE WOMEN AM",null,null,null,null,null,null,null,"Flatter",null,null,null,null,null,null,null,null,null,null,null,null,null,null,null,null,null,null,null,null,null,null,null,null,null,null,null,null,null,null,null,null,null,41,21,null,41,19]
[null,null,null,null,"Enter Added Cash (or deduction) here* > ",0,null,null,null,null,null,"Enter Added Cash (or deduction) here* > ",0,null,null,null,null,null,"Enter Added Cash (or deduction) here* > ",0,null,null,1,2,3,4,5,6,7,8,9,10,11,12,13,14,15,16,17,18,19,20,21,22,23,24,25,26,27,28,29,30,31,32,33,null,42,21,null,42,19]
["# Paid",null,"Field Size","Pay pct","Total Fees: ",{"$f":"Cover!G22+Cover!M22","v":0},null,"# Paid",null,"Field Size","Pay pct","Total Fees: ",{"$f":"Cover!G27+Cover!M27","v":0},null,"# Paid",null,"Field Size","Pay pct","Total Fees: ",{"$f":"Cover!G34+Cover!M34","v":0},null,1,1,0.6,0.45,0.39,0.3,0.25,0.21,0.19,0.17,0.15,0.14000000000000001,0.13,0.115,0.11,0.1,9.5000000000000001E-2,0.09,8.5000000000000006E-2,0.08,7.4999999999999997E-2,7.1999999999999995E-2,7.0000000000000007E-2,7.0000000000000007E-2,6.5000000000000002E-2,6.2E-2,0.06,5.7000000000000002E-2,5.5E-2,5.5E-2,5.1999999999999998E-2,0.05,4.8000000000000001E-2,4.5999999999999999E-2,null,43,22,null,43,19]
[{"$f":"IF(D47=45%,VLOOKUP(C47,dbd,2,FALSE),VLOOKUP(C47,dbe,2,FALSE))","v":{"$error":"#N/A"}},null,{"$f":"IF(Cover!F22=0,91,Cover!F22+ROUNDDOWN(Cover!L22/3,0))","v":91},0.45,"Net Purse: ",{"$f":"F46+F45","v":0},null,{"$f":"IF(K47=45%,VLOOKUP(J47,dbd,2,FALSE),VLOOKUP(J47,dbe,2,FALSE))","v":{"$error":"#N/A"}},null,{"$f":"IF(Cover!F27=0,91,Cover!F27+ROUNDDOWN(Cover!L27/3,0))","v":91},0.45,"Net Purse: ",{"$f":"M46+M45","v":0},null,{"$f":"IF(R47=45%,VLOOKUP(Q47,dbd,2,FALSE),VLOOKUP(Q47,dbe,2,FALSE))","v":{"$error":"#N/A"}},null,{"$f":"IF(Cover!F34=0,91,Cover!F34+ROUNDDOWN(Cover!L34/3,0))","v":91},0.45,"Net Purse: ",{"$f":"T46+T45","v":0},null,2,null,0.4,0.32500000000000001,0.28999999999999998,0.25,0.22,0.19,0.17,0.15,0.14000000000000001,0.13,0.12,0.11,0.1,9.5000000000000001E-2,0.09,8.5000000000000006E-2,0.08,7.4999999999999997E-2,7.0000000000000007E-2,6.8000000000000005E-2,6.5000000000000002E-2,6.5000000000000002E-2,0.06,5.8000000000000003E-2,5.5E-2,5.5E-2,0.05,0.05,0.05,4.8000000000000001E-2,4.5999999999999999E-2,4.3999999999999997E-2,null,44,22,null,44,20]
[null,null,null,{"$f":"IF(C47=91,\"       To use this table, enter player divisions on Scores page\",IF(C47>66,\"Field limit exceeded. Use printed Payout tables.\",\"\"))","v":"       To use this table, enter player divisions on Scores page"},null,null,null,null,null,null,{"$f":"IF(J47=91,\"       To use this table, enter player divisions on Scores page\",IF(J47>9,\"Field limit exceeded. Use printed Payout tables.\",\"\"))","v":"       To use this table, enter player divisions on Scores page"},null,null,null,null,null,null,{"$f":"IF(Q47=91,\"       To use this table, enter player divisions on Scores page\",IF(Q47>26,\"Field limit exceeded. Use printed Payout tables.\",\"\"))","v":"       To use this table, enter player divisions on Scores page"},null,null,null,3,null,null,0.22500000000000001,0.2,0.2,0.18,0.17,0.15,0.14000000000000001,0.13,0.12,0.11,0.105,9.5000000000000001E-2,0.09,8.5000000000000006E-2,0.08,7.4999999999999997E-2,7.4999999999999997E-2,7.0000000000000007E-2,6.5000000000000002E-2,6.5000000000000002E-2,0.06,0.06,5.5E-2,5.5E-2,5.2999999999999999E-2,0.05,0.05,4.8000000000000001E-2,4.5999999999999999E-2,4.4999999999999998E-2,4.3999999999999997E-2,null,45,23,null,45,20]
[null,"Prelim","Proposed","Round","Manual","Final",null,null,"Prelim","Proposed","Round","Manual","Final",null,null,"Prelim","Proposed","Round","Manual","Final",null,4,null,null,null,0.12,0.15,0.15,0.14000000000000001,0.13,0.12,0.12,0.11,0.1,9.5000000000000001E-2,0.09,8.5000000000000006E-2,0.08,7.4999999999999997E-2,7.4999999999999997E-2,7.0000000000000007E-2,6.5000000000000002E-2,6.5000000000000002E-2,0.06,0.06,5.5E-2,5.5E-2,5.5E-2,0.05,0.05,0.05,4.4999999999999998E-2,4.4999999999999998E-2,4.3999999999999997E-2,4.2000000000000003E-2,null,46,23,null,46,21]
["Place","Factor","Payout $$","to $5","Adj. ","Place",null,"Place","Factor","Payout $$","to $5","Adj. ","Place",null,"Place","Factor","Payout $$","to $5","Adj. ","Place",null,5,null,null,null,null,0.1,0.12,0.12,0.12,0.11,0.11,0.1,0.09,0.09,8.5000000000000006E-2,0.08,7.4999999999999997E-2,7.4999999999999997E-2,7.0000000000000007E-2,6.5000000000000002E-2,6.5000000000000002E-2,0.06,0.06,5.5E-2,5.5E-2,5.5E-2,0.05,0.05,0.05,4.4999999999999998E-2,4.4999999999999998E-2,4.3999999999999997E-2,4.2000000000000003E-2,4.2000000000000003E-2,null,47,24,null,47,21]
[{"$f":"IF(ROW()-50>$A$47,\"\",ROW()-50)","v":{"$error":"#N/A"}},{"$f":"IF(D$47=45%,VLOOKUP(A51,__pay5,A$47+1),VLOOKUP(A51,__pay3,A$47+1))","v":{"$error":"#N/A"}},{"$f":"IF(B51=\"\",\"\",$F$47*B51)","v":{"$error":"#N/A"}},{"$f":"IF(C51=\"\",\"\",INT((C51+2.5)/5)*5)","v":{"$error":"#N/A"}},null,null,null,{"$f":"IF(ROW()-50>$H$47,\"\",ROW()-50)","v":{"$error":"#N/A"}},{"$f":"IF(K$47=45%,VLOOKUP(H51,__pay5,H$47+1),VLOOKUP(H51,__pay3,H$47+1))","v":{"$error":"#N/A"}},{"$f":"IF(I51=\"\",\"\",$M$47*I51)","v":{"$error":"#N/A"}},{"$f":"IF(J51=\"\",\"\",INT((J51+2.5)/5)*5)","v":{"$error":"#N/A"}},null,null,null,{"$f":"IF(ROW()-50>$O$47,\"\",ROW()-50)","v":{"$error":"#N/A"}},{"$f":"IF(R$47=45%,VLOOKUP(O51,__pay5,O$47+1),VLOOKUP(O51,__pay3,O$47+1))","v":{"$error":"#N/A"}},{"$f":"IF(P51=\"\",\"\",$T$47*P51)","v":{"$error":"#N/A"}},{"$f":"IF(Q51=\"\",\"\",INT((Q51+2.5)/5)*5)","v":{"$error":"#N/A"}},null,null,null,6,null,null,null,null,null,0.08,0.1,0.1,0.1,0.09,0.09,0.09,0.08,0.08,7.4999999999999997E-2,7.4999999999999997E-2,7.0000000000000007E-2,6.5000000000000002E-2,6.5000000000000002E-2,0.06,0.06,5.5E-2,5.5E-2,5.5E-2,0.05,0.05,0.05,4.4999999999999998E-2,4.4999999999999998E-2,4.4999999999999998E-2,4.2000000000000003E-2,0.04,0.04,null,48,24,null,48,22]
[{"$error":"#N/A"},{"$f":"IF(A52=\"\",\"\",IF(D$47=45%,VLOOKUP(A52,__pay5,A$47+1),VLOOKUP(A52,__pay3,A$47+1)))","v":{"$error":"#N/A"}},{"$error":"#N/A"},{"$error":"#N/A"},null,null,null,{"$f":"IF(ROW()-50>$H$47,\"\",ROW()-50)","v":{"$error":"#N/A"}},{"$f":"IF(H52=\"\",\"\",IF(K$47=45%,VLOOKUP(H52,__pay5,H$47+1),VLOOKUP(H52,__pay3,H$47+1)))","v":{"$error":"#N/A"}},{"$f":"IF(I52=\"\",\"\",$M$47*I52)","v":{"$error":"#N/A"}},{"$error":"#N/A"},null,null,null,{"$error":"#N/A"},{"$f":"IF(O52=\"\",\"\",IF(R$47=45%,VLOOKUP(O52,__pay5,O$47+1),VLOOKUP(O52,__pay3,O$47+1)))","v":{"$error":"#N/A"}},{"$error":"#N/A"},{"$error":"#N/A"},null,null,null,7,null,null,null,null,null,null,7.0000000000000007E-2,0.08,0.08,0.08,0.08,0.08,7.4999999999999997E-2,7.4999999999999997E-2,7.0000000000000007E-2,7.0000000000000007E-2,6.5000000000000002E-2,6.5000000000000002E-2,0.06,0.06,5.5E-2,5.5E-2,0.05,0.05,0.05,0.05,0.05,4.4999999999999998E-2,4.4999999999999998E-2,4.4999999999999998E-2,0.04,0.04,0.04,null,49,25,null,49,22]
[{"$error":"#N/A"},{"$error":"#N/A"},{"$error":"#N/A"},{"$error":"#N/A"},null,null,null,{"$f":"IF(ROW()-50>$H$47,\"\",ROW()-50)","v":{"$error":"#N/A"}},{"$f":"IF(H53=\"\",\"\",IF(K$47=45%,VLOOKUP(H53,__pay5,H$47+1),VLOOKUP(H53,__pay3,H$47+1)))","v":{"$error":"#N/A"}},{"$f":"IF(I53=\"\",\"\",$M$47*I53)","v":{"$error":"#N/A"}},{"$error":"#N/A"},null,null,null,{"$error":"#N/A"},{"$error":"#N/A"},{"$error":"#N/A"},{"$error":"#N/A"},null,null,null,8,null,null,null,null,null,null,null,0.06,7.0000000000000007E-2,7.0000000000000007E-2,7.0000000000000007E-2,7.0000000000000007E-2,7.0000000000000007E-2,7.0000000000000007E-2,6.5000000000000002E-2,6.5000000000000002E-2,6.5000000000000002E-2,0.06,0.06,5.5E-2,5.5E-2,5.5E-2,0.05,0.05,0.05,4.4999999999999998E-2,4.4999999999999998E-2,4.4999999999999998E-2,4.4999999999999998E-2,0.04,0.04,0.04,3.7999999999999999E-2,null,50,25,null,50,23]
[{"$error":"#N/A"},{"$error":"#N/A"},{"$error":"#N/A"},{"$error":"#N/A"},null,null,null,{"$f":"IF(ROW()-50>$H$47,\"\",ROW()-50)","v":{"$error":"#N/A"}},{"$f":"IF(H54=\"\",\"\",IF(K$47=45%,VLOOKUP(H54,__pay5,H$47+1),VLOOKUP(H54,__pay3,H$47+1)))","v":{"$error":"#N/A"}},{"$f":"IF(I54=\"\",\"\",$M$47*I54)","v":{"$error":"#N/A"}},{"$error":"#N/A"},null,null,null,{"$error":"#N/A"},{"$error":"#N/A"},{"$error":"#N/A"},{"$error":"#N/A"},null,null,null,9,null,null,null,null,null,null,null,null,0.06,0.06,0.06,0.06,6.5000000000000002E-2,6.5000000000000002E-2,0.06,0.06,0.06,5.5E-2,5.5E-2,5.5E-2,0.05,0.05,0.05,0.05,4.4999999999999998E-2,4.4999999999999998E-2,4.4999999999999998E-2,4.4999999999999998E-2,0.04,0.04,0.04,0.04,3.7999999999999999E-2,null,51,26,null,51,23]
[{"$error":"#N/A"},{"$error":"#N/A"},{"$error":"#N/A"},{"$error":"#N/A"},null,null,null,null,{"$f":"SUM(I51:I54)","v":{"$error":"#N/A"}},{"$f":"SUM(J51:J54)","v":{"$error":"#N/A"}},{"$f":"SUM(K51:K54)","v":{"$error":"#N/A"}},{"$f":"SUM(L51:L54)","v":0},null,null,{"$error":"#N/A"},{"$error":"#N/A"},{"$error":"#N/A"},{"$error":"#N/A"},null,null,null,10,null,null,null,null,null,null,null,null,null,0.05,0.05,0.06,0.06,0.06,0.06,5.5E-2,5.5E-2,5.5E-2,5.5E-2,0.05,0.05,0.05,4.4999999999999998E-2,4.4999999999999998E-2,4.4999999999999998E-2,4.4999999999999998E-2,4.4999999999999998E-2,0.04,0.04,0.04,0.04,0.04,3.5999999999999997E-2,null,52,26,null,52,23]
[{"$error":"#N/A"},{"$error":"#N/A"},{"$error":"#N/A"},{"$error":"#N/A"},null,null,null,null,null,null,null,null,null,null,{"$error":"#N/A"},{"$error":"#N/A"},{"$error":"#N/A"},{"$error":"#N/A"},null,null,null,11,null,null,null,null,null,null,null,null,null,null,0.05,0.05,0.05,0.05,5.5E-2,0.05,0.05,0.05,0.05,0.05,0.05,4.4999999999999998E-2,4.4999999999999998E-2,4.4999999999999998E-2,4.4999999999999998E-2,0.04,0.04,0.04,0.04,0.04,0.04,3.5000000000000003E-2,3.5999999999999997E-2,null,53,27,null,53,24]
[{"$error":"#N/A"},{"$error":"#N/A"},{"$error":"#N/A"},{"$error":"#N/A"},null,null,null,"ADVANCED WOMEN MASTER",null,null,null,null,null,null,{"$error":"#N/A"},{"$error":"#N/A"},{"$error":"#N/A"},{"$error":"#N/A"},null,null,null,12,null,null,null,null,null,null,null,null,null,null,null,0.04,4.4999999999999998E-2,4.4999999999999998E-2,0.05,0.05,0.05,4.4999999999999998E-2,0.05,4.4999999999999998E-2,4.4999999999999998E-2,4.4999999999999998E-2,4.4999999999999998E-2,0.04,0.04,0.04,0.04,0.04,0.04,3.5000000000000003E-2,3.5000000000000003E-2,3.5000000000000003E-2,3.5999999999999997E-2,null,54,27,null,54,24]
[{"$error":"#N/A"},{"$error":"#N/A"},{"$error":"#N/A"},{"$error":"#N/A"},null,null,null,null,null,null,null,"Enter Added Cash (or deduction) here* > ",0,null,{"$error":"#N/A"},{"$error":"#N/A"},{"$error":"#N/A"},{"$error":"#N/A"},null,null,null,13,null,null,null,null,null,null,null,null,null,null,null,null,0.04,0.04,4.4999999999999998E-2,4.4999999999999998E-2,4.4999999999999998E-2,4.4999999999999998E-2,4.4999999999999998E-2,4.4999999999999998E-2,4.4999999999999998E-2,0.04,0.04,0.04,0.04,0.04,0.04,0.04,3.5000000000000003E-2,3.5000000000000003E-2,3.5000000000000003E-2,3.5000000000000003E-2,3.4000000000000002E-2,null,55,28,null,55,25]
[{"$error":"#N/A"},{"$error":"#N/A"},{"$error":"#N/A"},{"$error":"#N/A"},null,null,null,"# Paid",null,"Field Size","Pay pct","Total Fees: ",{"$f":"Cover!G29+Cover!M29","v":0},null,{"$error":"#N/A"},{"$error":"#N/A"},{"$error":"#N/A"},{"$error":"#N/A"},null,null,null,14,null,null,null,null,null,null,null,null,null,null,null,null,null,0.03,0.04,0.04,0.04,0.04,0.04,0.04,0.04,0.04,0.04,0.04,0.04,0.04,3.5000000000000003E-2,3.5000000000000003E-2,3.5000000000000003E-2,3.5000000000000003E-2,3.5000000000000003E-2,3.5000000000000003E-2,3.4000000000000002E-2,null,56,28,null,56,25]
[{"$error":"#N/A"},{"$error":"#N/A"},{"$error":"#N/A"},{"$error":"#N/A"},null,null,null,{"$f":"IF(K60=45%,VLOOKUP(J60,dbd,2,FALSE),VLOOKUP(J60,dbe,2,FALSE))","v":{"$error":"#N/A"}},null,{"$f":"IF(Cover!F29=0,91,Cover!F29+ROUNDDOWN(Cover!L29/3,0))","v":91},0.45,"Net Purse: ",{"$f":"M59+M58","v":0},null,{"$error":"#N/A"},{"$error":"#N/A"},{"$error":"#N/A"},{"$error":"#N/A"},null,null,null,15,null,null,null,null,null,null,null,null,null,null,null,null,null,null,0.03,3.5000000000000003E-2,3.5000000000000003E-2,0.04,0.04,0.04,0.04,0.04,0.04,3.5000000000000003E-2,3.5000000000000003E-2,3.5000000000000003E-2,3.5000000000000003E-2,3.5000000000000003E-2,3.5000000000000003E-2,3.5000000000000003E-2,3.5000000000000003E-2,3.5000000000000003E-2,3.2000000000000001E-2,null,57,29,null,57,26]
[{"$error":"#N/A"},{"$error":"#N/A"},{"$error":"#N/A"},{"$error":"#N/A"},null,null,null,null,null,null,{"$f":"IF(J60=91,\"       To use this table, enter player divisions on Scores page\",IF(J60>9,\"Field limit exceeded. Use printed Payout tables.\",\"\"))","v":"       To use this table, enter player divisions on Scores page"},null,null,null,{"$error":"#N/A"},{"$error":"#N/A"},{"$error":"#N/A"},{"$error":"#N/A"},null,null,null,16,null,null,null,null,null,null,null,null,null,null,null,null,null,null,null,0.03,0.03,3.5000000000000003E-2,3.5000000000000003E-2,3.5000000000000003E-2,3.5000000000000003E-2,3.5000000000000003E-2,3.5000000000000003E-2,3.5000000000000003E-2,3.5000000000000003E-2,3.5000000000000003E-2,3.5000000000000003E-2,3.5000000000000003E-2,3.5000000000000003E-2,3.5000000000000003E-2,0.03,0.03,3.2000000000000001E-2,null,58,29,null,58,26]
[{"$error":"#N/A"},{"$error":"#N/A"},{"$error":"#N/A"},{"$error":"#N/A"},null,null,null,null,"Prelim","Proposed","Round","Manual","Final",null,{"$error":"#N/A"},{"$error":"#N/A"},{"$error":"#N/A"},{"$error":"#N/A"},null,null,null,17,null,null,null,null,null,null,null,null,null,null,null,null,null,null,null,null,0.03,0.03,0.03,3.5000000000000003E-2,3.5000000000000003E-2,3.5000000000000003E-2,3.5000000000000003E-2,3.5000000000000003E-2,3.5000000000000003E-2,3.5000000000000003E-2,0.03,0.03,0.03,0.03,0.03,0.03,0.03,null,59,30,null,59,27]
[{"$error":"#N/A"},{"$error":"#N/A"},{"$error":"#N/A"},{"$error":"#N/A"},null,null,null,"Place","Factor","Payout $$","to $5","Adj. ","Place",null,{"$error":"#N/A"},{"$error":"#N/A"},{"$error":"#N/A"},{"$error":"#N/A"},null,null,null,18,null,null,null,null,null,null,null,null,null,null,null,null,null,null,null,null,null,0.03,2.5000000000000001E-2,0.03,0.03,0.03,0.03,0.03,0.03,0.03,0.03,0.03,0.03,0.03,0.03,0.03,0.03,null,60,30,null,60,27]
[{"$error":"#N/A"},{"$error":"#N/A"},{"$error":"#N/A"},{"$error":"#N/A"},null,null,null,{"$f":"IF(ROW()-63>$H$60,\"\",ROW()-63)","v":{"$error":"#N/A"}},{"$f":"IF(K$60=45%,VLOOKUP(H64,__pay5,H$60+1),VLOOKUP(H64,__pay3,H$60+1))","v":{"$error":"#N/A"}},{"$f":"IF(I64=\"\",\"\",$M$60*I64)","v":{"$error":"#N/A"}},{"$error":"#N/A"},null,null,null,null,{"$f":"SUM(P51:P63)","v":{"$error":"#N/A"}},{"$f":"SUM(Q51:Q63)","v":{"$error":"#N/A"}},{"$f":"SUM(R51:R63)","v":{"$error":"#N/A"}},{"$f":"SUM(S51:S63)","v":0},null,null,19,null,null,null,null,null,null,null,null,null,null,null,null,null,null,null,null,null,null,2.5000000000000001E-2,0.03,0.03,0.03,0.03,0.03,0.03,0.03,0.03,0.03,0.03,0.03,0.03,0.03,2.8000000000000001E-2,null,61,31,null,61,28]
[{"$error":"#N/A"},{"$error":"#N/A"},{"$error":"#N/A"},{"$error":"#N/A"},null,null,null,{"$f":"IF(ROW()-63>$H$60,\"\",ROW()-63)","v":{"$error":"#N/A"}},{"$f":"IF(H65=\"\",\"\",IF(K$60=45%,VLOOKUP(H65,__pay5,H$60+1),VLOOKUP(H65,__pay3,H$60+1)))","v":{"$error":"#N/A"}},{"$f":"IF(I65=\"\",\"\",$M$60*I65)","v":{"$error":"#N/A"}},{"$error":"#N/A"},null,null,null,null,null,null,null,null,null,null,20,null,null,null,null,null,null,null,null,null,null,null,null,null,null,null,null,null,null,null,2.5000000000000001E-2,2.5000000000000001E-2,2.5000000000000001E-2,0.03,0.03,0.03,0.03,0.03,0.03,0.03,0.03,0.03,0.03,2.8000000000000001E-2,null,62,31,null,62,28]
[{"$error":"#N/A"},{"$error":"#N/A"},{"$error":"#N/A"},{"$error":"#N/A"},null,null,null,{"$f":"IF(ROW()-63>$H$60,\"\",ROW()-63)","v":{"$error":"#N/A"}},{"$f":"IF(H66=\"\",\"\",IF(K$60=45%,VLOOKUP(H66,__pay5,H$60+1),VLOOKUP(H66,__pay3,H$60+1)))","v":{"$error":"#N/A"}},{"$f":"IF(I66=\"\",\"\",$M$60*I66)","v":{"$error":"#N/A"}},{"$error":"#N/A"},null,null,null,"BOYS JR < 18",null,null,null,null,null,null,21,null,null,null,null,null,null,null,null,null,null,null,null,null,null,null,null,null,null,null,null,2.5000000000000001E-2,2.5000000000000001E-2,2.5000000000000001E-2,2.5000000000000001E-2,2.5000000000000001E-2,2.5000000000000001E-2,2.5000000000000001E-2,2.5000000000000001E-2,2.5000000000000001E-2,2.5000000000000001E-2,2.5000000000000001E-2,2.5000000000000001E-2,2.5999999999999999E-2,null,63,32,null,63,28]
[{"$error":"#N/A"},{"$error":"#N/A"},{"$error":"#N/A"},{"$error":"#N/A"},null,null,null,{"$f":"IF(ROW()-63>$H$60,\"\",ROW()-63)","v":{"$error":"#N/A"}},{"$f":"IF(H67=\"\",\"\",IF(K$60=45%,VLOOKUP(H67,__pay5,H$60+1),VLOOKUP(H67,__pay3,H$60+1)))","v":{"$error":"#N/A"}},{"$f":"IF(I67=\"\",\"\",$M$60*I67)","v":{"$error":"#N/A"}},{"$error":"#N/A"},null,null,null,null,null,null,null,"Enter Added Cash (or deduction) here* > ",0,null,22,null,null,null,null,null,null,null,null,null,null,null,null,null,null,null,null,null,null,null,null,null,2.5000000000000001E-2,2.5000000000000001E-2,2.5000000000000001E-2,2.5000000000000001E-2,2.5000000000000001E-2,2.5000000000000001E-2,2.5000000000000001E-2,2.5000000000000001E-2,2.5000000000000001E-2,2.5000000000000001E-2,2.5000000000000001E-2,2.5999999999999999E-2,null,64,32,null,64,29]
[{"$error":"#N/A"},{"$error":"#N/A"},{"$error":"#N/A"},{"$error":"#N/A"},null,null,null,null,{"$f":"SUM(I64:I67)","v":{"$error":"#N/A"}},{"$f":"SUM(J64:J67)","v":{"$error":"#N/A"}},{"$f":"SUM(K64:K67)","v":{"$error":"#N/A"}},{"$f":"SUM(L64:L67)","v":0},null,null,"# Paid",null,"Field Size","Pay pct","Total Fees: ",{"$f":"Cover!G39","v":0},null,23,null,null,null,null,null,null,null,null,null,null,null,null,null,null,null,null,null,null,null,null,null,null,0.02,2.5000000000000001E-2,2.5000000000000001E-2,2.5000000000000001E-2,2.5000000000000001E-2,2.5000000000000001E-2,2.5000000000000001E-2,2.5000000000000001E-2,2.5000000000000001E-2,2.5000000000000001E-2,2.4E-2,null,65,33,null,65,29]
[{"$error":"#N/A"},{"$error":"#N/A"},{"$error":"#N/A"},{"$error":"#N/A"},null,null,null,"Click Here > Large Field Payout Calculator",null,null,null,null,null,null,{"$f":"IF(R69=45%,VLOOKUP(Q69,dbd,2,FALSE),VLOOKUP(Q69,dbe,2,FALSE))","v":{"$error":"#N/A"}},null,{"$f":"IF(Cover!F39=0,91,Cover!F39)","v":91},0.45,"Net Purse: ",{"$f":"T68+T67","v":0},null,24,null,null,null,null,null,null,null,null,null,null,null,null,null,null,null,null,null,null,null,null,null,null,null,0.02,0.02,0.02,0.02,2.5000000000000001E-2,2.5000000000000001E-2,2.5000000000000001E-2,2.5000000000000001E-2,2.5000000000000001E-2,2.4E-2,null,66,33,null,66,30]
[{"$error":"#N/A"},{"$error":"#N/A"},{"$error":"#N/A"},{"$error":"#N/A"},null,null,null,"GIRLS JR < 18",null,null,null,null,null,null,null,null,null,{"$f":"IF(Q69=91,\"       To use this table, enter player divisions on Scores page\",IF(Q69>26,\"Field limit exceeded. Use printed Payout tables.\",\"\"))","v":"       To use this table, enter player divisions on Scores page"},null,null,null,25,null,null,null,null,null,null,null,null,null,null,null,null,null,null,null,null,null,null,null,null,null,null,null,null,0.02,0.02,0.02,0.02,0.02,0.02,2.5000000000000001E-2,0.02,2.1999999999999999E-2,null,null,null,null,67,30]
[{"$error":"#N/A"},{"$error":"#N/A"},{"$error":"#N/A"},{"$error":"#N/A"},null,null,null,null,null,null,null,"Enter Added Cash (or deduction) here* > ",0,null,null,"Prelim","Proposed","Round","Manual","Final",null,26,null,null,null,null,null,null,null,null,null,null,null,null,null,null,null,null,null,null,null,null,null,null,null,null,null,0.02,0.02,0.02,0.02,0.02,0.02,0.02,2.1999999999999999E-2,null,null,null,null,68,31]
[{"$error":"#N/A"},{"$error":"#N/A"},{"$error":"#N/A"},{"$error":"#N/A"},null,null,null,"# Paid",null,"Field Size","Pay pct","Total Fees: ",{"$f":"Cover!G45","v":0},null,"Place","Factor","Payout $$","to $5","Adj. ","Place",null,27,null,null,null,null,null,null,null,null,null,null,null,null,null,null,null,null,null,null,null,null,null,null,null,null,null,null,0.02,0.02,0.02,0.02,0.02,0.02,0.02,null,null,null,null,69,31]
[{"$error":"#N/A"},{"$error":"#N/A"},{"$error":"#N/A"},{"$error":"#N/A"},null,null,null,{"$f":"IF(K73=45%,VLOOKUP(J73,dbd,2,FALSE),VLOOKUP(J73,dbe,2,FALSE))","v":{"$error":"#N/A"}},null,{"$f":"IF(Cover!F45=0,91,Cover!F45)","v":91},0.45,"Net Purse: ",{"$f":"M72+M71","v":0},null,{"$f":"IF(ROW()-72>$O$69,\"\",ROW()-72)","v":{"$error":"#N/A"}},{"$f":"IF(R$69=45%,VLOOKUP(O73,__pay5,O$69+1),VLOOKUP(O73,__pay3,O$69+1))","v":{"$error":"#N/A"}},{"$f":"IF(P73=\"\",\"\",$T$69*P73)","v":{"$error":"#N/A"}},{"$f":"IF(Q73=\"\",\"\",INT((Q73+2.5)/5)*5)","v":{"$error":"#N/A"}},null,null,null,28,null,null,null,null,null,null,null,null,null,null,null,null,null,null,null,null,null,null,null,null,null,null,null,null,null,null,null,0.02,0.02,0.02,0.02,0.02,0.02,null,null,null,null,70,32]
[{"$error":"#N/A"},{"$error":"#N/A"},{"$error":"#N/A"},{"$error":"#N/A"},null,null,null,null,null,null,{"$f":"IF(J73=91,\"       To use this table, enter player divisions on Scores page\",IF(J73>18,\"Field limit exceeded. Use printed Payout tables.\",\"\"))","v":"       To use this table, enter player divisions on Scores page"},null,null,null,{"$error":"#N/A"},{"$f":"IF(O74=\"\",\"\",IF(R$69=45%,VLOOKUP(O74,__pay5,O$69+1),VLOOKUP(O74,__pay3,O$69+1)))","v":{"$error":"#N/A"}},{"$error":"#N/A"},{"$error":"#N/A"},null,null,null,29,null,null,null,null,null,null,null,null,null,null,null,null,null,null,null,null,null,null,null,null,null,null,null,null,null,null,null,null,1.4999999999999999E-2,0.02,0.02,0.02,1.7999999999999999E-2,null,null,null,null,71,32]
[{"$error":"#N/A"},{"$error":"#N/A"},{"$error":"#N/A"},{"$error":"#N/A"},null,null,null,null,"Prelim","Proposed","Round","Manual","Final",null,{"$error":"#N/A"},{"$error":"#N/A"},{"$error":"#N/A"},{"$error":"#N/A"},null,null,null,30,null,null,null,null,null,null,null,null,null,null,null,null,null,null,null,null,null,null,null,null,null,null,null,null,null,null,null,null,null,1.4999999999999999E-2,1.4999999999999999E-2,0.02,1.7999999999999999E-2,null,null,null,null,72,33]
[{"$error":"#N/A"},{"$error":"#N/A"},{"$error":"#N/A"},{"$error":"#N/A"},null,null,null,"Place","Factor","Payout $$","to $5","Adj. ","Place",null,{"$error":"#N/A"},{"$error":"#N/A"},{"$error":"#N/A"},{"$error":"#N/A"},null,null,null,31,null,null,null,null,null,null,null,null,null,null,null,null,null,null,null,null,null,null,null,null,null,null,null,null,null,null,null,null,null,null,1.4999999999999999E-2,1.4999999999999999E-2,1.7999999999999999E-2,null,null,null,null,73,33]
[{"$error":"#N/A"},{"$error":"#N/A"},{"$error":"#N/A"},{"$error":"#N/A"},null,null,null,{"$f":"IF(ROW()-76>$H$73,\"\",ROW()-76)","v":{"$error":"#N/A"}},{"$f":"IF(K$73=45%,VLOOKUP(H77,__pay5,H$73+1),VLOOKUP(H77,__pay3,H$73+1))","v":{"$error":"#N/A"}},{"$f":"IF(I77=\"\",\"\",$M$73*I77)","v":{"$error":"#N/A"}},{"$f":"IF(J77=\"\",\"\",INT((J77+2.5)/5)*5)","v":{"$error":"#N/A"}},null,null,null,{"$error":"#N/A"},{"$error":"#N/A"},{"$error":"#N/A"},{"$error":"#N/A"},null,null,null,32,null,null,null,null,null,null,null,null,null,null,null,null,null,null,null,null,null,null,null,null,null,null,null,null,null,null,null,null,null,null,null,1.4999999999999999E-2,1.6E-2,null,null,null,null,74,33]
[{"$error":"#N/A"},{"$error":"#N/A"},{"$error":"#N/A"},{"$error":"#N/A"},null,null,null,{"$error":"#N/A"},{"$f":"IF(H78=\"\",\"\",IF(K$73=45%,VLOOKUP(H78,__pay5,H$73+1),VLOOKUP(H78,__pay3,H$73+1)))","v":{"$error":"#N/A"}},{"$error":"#N/A"},{"$error":"#N/A"},null,null,null,{"$error":"#N/A"},{"$error":"#N/A"},{"$error":"#N/A"},{"$error":"#N/A"},null,null,null,33,null,null,null,null,null,null,null,null,null,null,null,null,null,null,null,null,null,null,null,null,null,null,null,null,null,null,null,null,null,null,null,null,1.6E-2,null,null,null,null,75,34]
[{"$error":"#N/A"},{"$error":"#N/A"},{"$error":"#N/A"},{"$error":"#N/A"},null,null,null,{"$error":"#N/A"},{"$error":"#N/A"},{"$error":"#N/A"},{"$error":"#N/A"},null,null,null,{"$error":"#N/A"},{"$error":"#N/A"},{"$error":"#N/A"},{"$error":"#N/A"}]
[{"$error":"#N/A"},{"$error":"#N/A"},{"$error":"#N/A"},{"$error":"#N/A"},null,null,null,{"$error":"#N/A"},{"$error":"#N/A"},{"$error":"#N/A"},{"$error":"#N/A"},null,null,null,{"$error":"#N/A"},{"$error":"#N/A"},{"$error":"#N/A"},{"$error":"#N/A"}]
[{"$error":"#N/A"},{"$error":"#N/A"},{"$error":"#N/A"},{"$error":"#N/A"},null,null,null,{"$error":"#N/A"},{"$error":"#N/A"},{"$error":"#N/A"},{"$error":"#N/A"},null,null,null,{"$error":"#N/A"},{"$error":"#N/A"},{"$error":"#N/A"},{"$error":"#N/A"},null,null,null,null,"Steeper"]
[{"$error":"#N/A"},{"$error":"#N/A"},{"$error":"#N/A"},{"$error":"#N/A"},null,null,null,{"$error":"#N/A"},{"$error":"#N/A"},{"$error":"#N/A"},{"$error":"#N/A"},null,null,null,{"$error":"#N/A"},{"$error":"#N/A"},{"$error":"#N/A"},{"$error":"#N/A"},null,null,null,null,1,2,3,4,5,6,7,8,9,10,11,12,13,14,15,16,17,18,19,20,21,22,23,24,25,26,27,28,29,30,31,32,33]
[{"$error":"#N/A"},{"$error":"#N/A"},{"$error":"#N/A"},{"$error":"#N/A"},null,null,null,{"$error":"#N/A"},{"$error":"#N/A"},{"$error":"#N/A"},{"$error":"#N/A"},null,null,null,{"$error":"#N/A"},{"$error":"#N/A"},{"$error":"#N/A"},{"$error":"#N/A"},null,null,null,1,1,0.625,0.47499999999999998,0.41,0.34499999999999997,0.30599999999999999,0.27400000000000002,0.249,0.22800000000000001,0.21099999999999999,0.19500000000000001,0.18099999999999999,0.17,0.159,0.15,0.14299999999999999,0.13500000000000001,0.129,0.125,0.11799999999999999,0.113,0.11,0.107,0.10199999999999999,0.1,9.5000000000000001E-2,9.2999999999999999E-2,0.09,8.7999999999999995E-2,8.5000000000000006E-2,8.3000000000000004E-2,0.08,7.8E-2]
[null,{"$f":"SUM(B51:B83)","v":{"$error":"#N/A"}},{"$f":"SUM(C51:C83)","v":{"$error":"#N/A"}},{"$f":"SUM(D51:D83)","v":{"$error":"#N/A"}},{"$f":"SUM(E51:E83)","v":0},null,null,{"$error":"#N/A"},{"$error":"#N/A"},{"$error":"#N/A"},{"$error":"#N/A"},null,null,null,{"$error":"#N/A"},{"$error":"#N/A"},{"$error":"#N/A"},{"$error":"#N/A"},null,null,null,2,null,0.375,0.3,0.26,0.24,0.218,0.2,0.185,0.17299999999999999,0.16200000000000001,0.151,0.14199999999999999,0.13400000000000001,0.127,0.121,0.115,0.111,0.105,0.10100000000000001,9.7000000000000003E-2,9.4E-2,9.0999999999999998E-2,8.7999999999999995E-2,8.5000000000000006E-2,8.3000000000000004E-2,0.08,7.8E-2,7.6999999999999999E-2,7.3999999999999996E-2,7.0999999999999994E-2,7.0999999999999994E-2,6.9000000000000006E-2,6.7000000000000004E-2]
["Click Here > Large Field Payout Calculator",null,null,null,null,null,null,{"$error":"#N/A"},{"$error":"#N/A"},{"$error":"#N/A"},{"$error":"#N/A"},null,null,null,{"$error":"#N/A"},{"$error":"#N/A"},{"$error":"#N/A"},{"$error":"#N/A"},null,null,null,3,null,null,0.22500000000000001,0.19,0.18,0.16800000000000001,0.158,0.14899999999999999,0.14099999999999999,0.13400000000000001,0.127,0.12,0.114,0.109,0.104,0.1,9.6000000000000002E-2,9.1999999999999998E-2,8.8999999999999996E-2,8.5999999999999993E-2,8.3000000000000004E-2,8.1000000000000003E-2,7.8E-2,7.5999999999999998E-2,7.3999999999999996E-2,7.1999999999999995E-2,7.0999999999999994E-2,6.9000000000000006E-2,6.7000000000000004E-2,6.6000000000000003E-2,6.5000000000000002E-2,6.3E-2,6.0999999999999999E-2]
["* Can be a negative number when expenses like trophies involved",null,null,null,null,null,null,null,{"$f":"SUM(I77:I85)","v":{"$error":"#N/A"}},{"$f":"SUM(J77:J85)","v":{"$error":"#N/A"}},{"$f":"SUM(K77:K85)","v":{"$error":"#N/A"}},{"$f":"SUM(L77:L85)","v":0},null,null,null,{"$f":"SUM(P73:P85)","v":{"$error":"#N/A"}},{"$f":"SUM(Q73:Q85)","v":{"$error":"#N/A"}},{"$f":"SUM(R73:R85)","v":{"$error":"#N/A"}},{"$f":"SUM(S73:S85)","v":0},null,null,4,null,null,null,0.14000000000000001,0.13500000000000001,0.13,0.126,0.121,0.11700000000000001,0.112,0.107,0.10299999999999999,9.8000000000000004E-2,9.5000000000000001E-2,9.0999999999999998E-2,8.7999999999999995E-2,8.5000000000000006E-2,8.2000000000000003E-2,0.08,7.6999999999999999E-2,7.4999999999999997E-2,7.2999999999999995E-2,7.0999999999999994E-2,6.9000000000000006E-2,6.8000000000000005E-2,6.6000000000000003E-2,6.5000000000000002E-2,6.3E-2,6.2E-2,6.0999999999999999E-2,5.8999999999999997E-2,5.8000000000000003E-2,5.7000000000000002E-2]
["RECREATIONAL AM DIVISION",null,null,null,null,null,null,"GIRLS JR < 15",null,null,null,null,null,null,"BOYS JR < 15",null,null,null,null,null,null,5,null,null,null,null,0.1,0.10100000000000001,0.1,9.9000000000000005E-2,9.6000000000000002E-2,9.4E-2,9.0999999999999998E-2,8.7999999999999995E-2,8.5000000000000006E-2,8.2000000000000003E-2,7.9000000000000001E-2,7.6999999999999999E-2,7.4999999999999997E-2,7.2999999999999995E-2,7.0999999999999994E-2,6.9000000000000006E-2,6.7000000000000004E-2,6.6000000000000003E-2,6.4000000000000001E-2,6.3E-2,6.0999999999999999E-2,0.06,5.8999999999999997E-2,5.8000000000000003E-2,5.7000000000000002E-2,5.5E-2,5.5E-2,5.3999999999999999E-2,5.2999999999999999E-2]
[null,null,null,null,"Enter Added Cash (or deduction) here* > ",0,null,null,null,null,null,"Enter Added Cash (or deduction) here* > ",0,null,null,null,null,null,"Enter Added Cash (or deduction) here* > ",0,null,6,null,null,null,null,null,7.6999999999999999E-2,7.9000000000000001E-2,7.9000000000000001E-2,7.9000000000000001E-2,7.8E-2,7.5999999999999998E-2,7.3999999999999996E-2,7.1999999999999995E-2,7.0000000000000007E-2,6.9000000000000006E-2,6.7000000000000004E-2,6.5000000000000002E-2,6.4000000000000001E-2,6.2E-2,6.0999999999999999E-2,0.06,5.8000000000000003E-2,5.7000000000000002E-2,5.6000000000000001E-2,5.5E-2,5.3999999999999999E-2,5.2999999999999999E-2,5.1999999999999998E-2,5.1999999999999998E-2,5.0999999999999997E-2,0.05,4.9000000000000002E-2,4.8000000000000001E-2]
["# Paid",null,"Field Size","Pay pct","Total Fees: ",{"$f":"Cover!G23+Cover!M23","v":0},null,"# Paid",null,"Field Size","Pay pct","Total Fees: ",{"$f":"Cover!G46","v":0},null,"# Paid",null,"Field Size","Pay pct","Total Fees: ",{"$f":"Cover!G40","v":0},null,7,null,null,null,null,null,null,6.3E-2,6.5000000000000002E-2,6.5000000000000002E-2,6.5000000000000002E-2,6.5000000000000002E-2,6.4000000000000001E-2,6.3E-2,6.0999999999999999E-2,0.06,5.8999999999999997E-2,5.8000000000000003E-2,5.7000000000000002E-2,5.6000000000000001E-2,5.5E-2,5.3999999999999999E-2,5.2999999999999999E-2,5.1999999999999998E-2,5.0999999999999997E-2,5.0999999999999997E-2,0.05,4.9000000000000002E-2,4.8000000000000001E-2,4.8000000000000001E-2,4.7E-2,4.5999999999999999E-2,4.5999999999999999E-2,4.4999999999999998E-2]
[{"$f":"IF(D90=45%,VLOOKUP(C90,dbd,2,FALSE),VLOOKUP(C90,dbe,2,FALSE))","v":{"$error":"#N/A"}},null,{"$f":"IF(Cover!F23=0,91,Cover!F23+ROUNDDOWN(Cover!L23/3,0))","v":91},0.45,"Net Purse: ",{"$f":"F89+F88","v":0},null,{"$f":"IF(K90=45%,VLOOKUP(J90,dbd,2,FALSE),VLOOKUP(J90,dbe,2,FALSE))","v":{"$error":"#N/A"}},null,{"$f":"IF(Cover!F46=0,91,Cover!F46)","v":91},0.45,"Net Purse: ",{"$f":"M89+M88","v":0},null,{"$f":"IF(R90=45%,VLOOKUP(Q90,dbd,2,FALSE),VLOOKUP(Q90,dbe,2,FALSE))","v":{"$error":"#N/A"}},null,{"$f":"IF(Cover!F40=0,91,Cover!F40)","v":91},0.45,"Net Purse: ",{"$f":"T89+T88","v":0},null,8,null,null,null,null,null,null,null,5.2999999999999999E-2,5.3999999999999999E-2,5.5E-2,5.5E-2,5.5E-2,5.3999999999999999E-2,5.3999999999999999E-2,5.2999999999999999E-2,5.1999999999999998E-2,5.1999999999999998E-2,5.0999999999999997E-2,0.05,0.05,4.9000000000000002E-2,4.8000000000000001E-2,4.8000000000000001E-2,4.7E-2,4.5999999999999999E-2,4.5999999999999999E-2,4.4999999999999998E-2,4.4999999999999998E-2,4.3999999999999997E-2,4.3999999999999997E-2,4.2999999999999997E-2,4.2000000000000003E-2,4.2000000000000003E-2]
[null,null,null,{"$f":"IF(C90=91,\"       To use this table, enter player divisions on Scores page\",IF(C90>66,\"Field limit exceeded. Use printed Payout tables.\",\"\"))","v":"       To use this table, enter player divisions on Scores page"},null,null,null,null,null,null,{"$f":"IF(J90=91,\"       To use this table, enter player divisions on Scores page\",IF(J90>22,\"Field limit exceeded. Use printed Payout tables.\",\"\"))","v":"       To use this table, enter player divisions on Scores page"},null,null,null,null,null,null,{"$f":"IF(Q90=91,\"       To use this table, enter player divisions on Scores page\",IF(Q90>22,\"Field limit exceeded. Use printed Payout tables.\",\"\"))","v":"       To use this table, enter player divisions on Scores page"},null,null,null,9,null,null,null,null,null,null,null,null,4.7E-2,4.8000000000000001E-2,4.8000000000000001E-2,4.7E-2,4.5999999999999999E-2,4.9000000000000002E-2,4.8000000000000001E-2,4.7E-2,4.7E-2,4.7E-2,4.5999999999999999E-2,4.5999999999999999E-2,4.4999999999999998E-2,4.4999999999999998E-2,4.3999999999999997E-2,4.3999999999999997E-2,4.2999999999999997E-2,4.2999999999999997E-2,4.2999999999999997E-2,4.2000000000000003E-2,4.2000000000000003E-2,4.1000000000000002E-2,4.1000000000000002E-2,4.1000000000000002E-2,0.04]
[null,"Prelim","Proposed","Round","Manual","Final",null,null,"Prelim","Proposed","Round","Manual","Final",null,null,"Prelim","Proposed","Round","Manual","Final",null,10,null,null,null,null,null,null,null,null,null,4.1000000000000002E-2,4.3999999999999997E-2,4.3999999999999997E-2,4.3999999999999997E-2,4.4999999999999998E-2,4.2999999999999997E-2,4.2999999999999997E-2,4.2000000000000003E-2,4.2000000000000003E-2,4.2000000000000003E-2,4.2000000000000003E-2,4.1000000000000002E-2,4.1000000000000002E-2,4.1000000000000002E-2,4.1000000000000002E-2,0.04,0.04,0.04,3.9E-2,3.9E-2,3.9E-2,3.7999999999999999E-2,3.7999999999999999E-2,3.7999999999999999E-2]
["Place","Factor","Payout $$","to $5","Adj. ","Place",null,"Place","Factor","Payout $$","to $5","Adj. ","Place",null,"Place","Factor","Payout $$","to $5","Adj. ","Place",null,11,null,null,null,null,null,null,null,null,null,null,4.1000000000000002E-2,4.2000000000000003E-2,4.2000000000000003E-2,4.1000000000000002E-2,4.1000000000000002E-2,4.1000000000000002E-2,0.04,0.04,3.9E-2,3.9E-2,3.9E-2,3.7999999999999999E-2,3.7999999999999999E-2,3.7999999999999999E-2,3.7999999999999999E-2,3.6999999999999998E-2,3.6999999999999998E-2,3.6999999999999998E-2,3.6999999999999998E-2,3.6999999999999998E-2,3.5999999999999997E-2,3.5999999999999997E-2,3.5999999999999997E-2]
[{"$f":"IF(ROW()-93>$A$90,\"\",ROW()-93)","v":{"$error":"#N/A"}},{"$f":"IF(D$90=45%,VLOOKUP(A94,__pay5,A$90+1),VLOOKUP(A94,__pay3,A$90+1))","v":{"$error":"#N/A"}},{"$f":"IF(B94=\"\",\"\",$F$90*B94)","v":{"$error":"#N/A"}},{"$f":"IF(C94=\"\",\"\",INT((C94+2.5)/5)*5)","v":{"$error":"#N/A"}},null,null,null,{"$f":"IF(ROW()-93>$H$90,\"\",ROW()-93)","v":{"$error":"#N/A"}},{"$f":"IF(K$90=45%,VLOOKUP(H94,__pay5,H$90+1),VLOOKUP(H94,__pay3,H$90+1))","v":{"$error":"#N/A"}},{"$f":"IF(I94=\"\",\"\",$M$90*I94)","v":{"$error":"#N/A"}},{"$f":"IF(J94=\"\",\"\",INT((J94+2.5)/5)*5)","v":{"$error":"#N/A"}},null,null,null,{"$f":"IF(ROW()-93>$O$90,\"\",ROW()-93)","v":{"$error":"#N/A"}},{"$f":"IF(R$90=45%,VLOOKUP(O94,__pay5,O$90+1),VLOOKUP(O94,__pay3,O$90+1))","v":{"$error":"#N/A"}},{"$f":"IF(P94=\"\",\"\",$T$90*P94)","v":{"$error":"#N/A"}},{"$f":"IF(Q94=\"\",\"\",INT((Q94+2.5)/5)*5)","v":{"$error":"#N/A"}},null,null,null,12,null,null,null,null,null,null,null,null,null,null,null,0.04,0.04,3.7999999999999999E-2,3.9E-2,3.9E-2,3.7999999999999999E-2,3.7999999999999999E-2,3.6999999999999998E-2,3.6999999999999998E-2,3.6999999999999998E-2,3.5999999999999997E-2,3.5999999999999997E-2,3.5999999999999997E-2,3.5000000000000003E-2,3.5000000000000003E-2,3.5000000000000003E-2,3.5000000000000003E-2,3.5000000000000003E-2,3.5000000000000003E-2,3.4000000000000002E-2,3.4000000000000002E-2,3.4000000000000002E-2]
[{"$error":"#N/A"},{"$f":"IF(A95=\"\",\"\",IF(D$90=45%,VLOOKUP(A95,__pay5,A$90+1),VLOOKUP(A95,__pay3,A$90+1)))","v":{"$error":"#N/A"}},{"$error":"#N/A"},{"$error":"#N/A"},null,null,null,{"$error":"#N/A"},{"$f":"IF(H95=\"\",\"\",IF(K$90=45%,VLOOKUP(H95,__pay5,H$90+1),VLOOKUP(H95,__pay3,H$90+1)))","v":{"$error":"#N/A"}},{"$error":"#N/A"},{"$error":"#N/A"},null,null,null,{"$error":"#N/A"},{"$f":"IF(O95=\"\",\"\",IF(R$90=45%,VLOOKUP(O95,__pay5,O$90+1),VLOOKUP(O95,__pay3,O$90+1)))","v":{"$error":"#N/A"}},{"$error":"#N/A"},{"$error":"#N/A"},null,null,null,13,null,null,null,null,null,null,null,null,null,null,null,null,3.7999999999999999E-2,3.5999999999999997E-2,3.5999999999999997E-2,3.5999999999999997E-2,3.5000000000000003E-2,3.5000000000000003E-2,3.5000000000000003E-2,3.4000000000000002E-2,3.4000000000000002E-2,3.4000000000000002E-2,3.3000000000000002E-2,3.3000000000000002E-2,3.3000000000000002E-2,3.3000000000000002E-2,3.3000000000000002E-2,3.2000000000000001E-2,3.2000000000000001E-2,3.2000000000000001E-2,3.2000000000000001E-2,3.2000000000000001E-2,3.2000000000000001E-2]
[{"$error":"#N/A"},{"$error":"#N/A"},{"$error":"#N/A"},{"$error":"#N/A"},null,null,null,{"$error":"#N/A"},{"$error":"#N/A"},{"$error":"#N/A"},{"$error":"#N/A"},null,null,null,{"$error":"#N/A"},{"$error":"#N/A"},{"$error":"#N/A"},{"$error":"#N/A"},null,null,null,14,null,null,null,null,null,null,null,null,null,null,null,null,null,3.4000000000000002E-2,3.4000000000000002E-2,3.3000000000000002E-2,3.3000000000000002E-2,3.3000000000000002E-2,3.2000000000000001E-2,3.2000000000000001E-2,3.2000000000000001E-2,3.1E-2,3.1E-2,3.1E-2,3.1E-2,3.1E-2,0.03,0.03,0.03,0.03,0.03,0.03,0.03]
[{"$error":"#N/A"},{"$error":"#N/A"},{"$error":"#N/A"},{"$error":"#N/A"},null,null,null,{"$error":"#N/A"},{"$error":"#N/A"},{"$error":"#N/A"},{"$error":"#N/A"},null,null,null,{"$error":"#N/A"},{"$error":"#N/A"},{"$error":"#N/A"},{"$error":"#N/A"},null,null,null,15,null,null,null,null,null,null,null,null,null,null,null,null,null,null,3.2000000000000001E-2,3.1E-2,3.1E-2,0.03,0.03,0.03,0.03,2.9000000000000001E-2,2.9000000000000001E-2,2.9000000000000001E-2,2.9000000000000001E-2,2.9000000000000001E-2,2.8000000000000001E-2,2.8000000000000001E-2,2.8000000000000001E-2,2.8000000000000001E-2,2.8000000000000001E-2,2.8000000000000001E-2,2.8000000000000001E-2]
[{"$error":"#N/A"},{"$error":"#N/A"},{"$error":"#N/A"},{"$error":"#N/A"},null,null,null,{"$error":"#N/A"},{"$error":"#N/A"},{"$error":"#N/A"},{"$error":"#N/A"},null,null,null,{"$error":"#N/A"},{"$error":"#N/A"},{"$error":"#N/A"},{"$error":"#N/A"},null,null,null,16,null,null,null,null,null,null,null,null,null,null,null,null,null,null,null,2.9000000000000001E-2,2.9000000000000001E-2,2.9000000000000001E-2,2.8000000000000001E-2,2.8000000000000001E-2,2.8000000000000001E-2,2.8000000000000001E-2,2.7E-2,2.7E-2,2.7E-2,2.7E-2,2.7E-2,2.7E-2,2.5999999999999999E-2,2.5999999999999999E-2,2.5999999999999999E-2,2.5999999999999999E-2,2.5999999999999999E-2]
[{"$error":"#N/A"},{"$error":"#N/A"},{"$error":"#N/A"},{"$error":"#N/A"},null,null,null,{"$error":"#N/A"},{"$error":"#N/A"},{"$error":"#N/A"},{"$error":"#N/A"},null,null,null,{"$error":"#N/A"},{"$error":"#N/A"},{"$error":"#N/A"},{"$error":"#N/A"},null,null,null,17,null,null,null,null,null,null,null,null,null,null,null,null,null,null,null,null,2.8000000000000001E-2,2.7E-2,2.7E-2,2.7E-2,2.7E-2,2.5999999999999999E-2,2.5999999999999999E-2,2.5999999999999999E-2,2.5999999999999999E-2,2.5999999999999999E-2,2.5000000000000001E-2,2.5000000000000001E-2,2.5000000000000001E-2,2.5000000000000001E-2,2.5000000000000001E-2,2.5000000000000001E-2,2.5000000000000001E-2]
[{"$error":"#N/A"},{"$error":"#N/A"},{"$error":"#N/A"},{"$error":"#N/A"},null,null,null,{"$error":"#N/A"},{"$error":"#N/A"},{"$error":"#N/A"},{"$error":"#N/A"},null,null,null,{"$error":"#N/A"},{"$error":"#N/A"},{"$error":"#N/A"},{"$error":"#N/A"},null,null,null,18,null,null,null,null,null,null,null,null,null,null,null,null,null,null,null,null,null,2.5999999999999999E-2,2.5999999999999999E-2,2.5000000000000001E-2,2.5000000000000001E-2,2.5000000000000001E-2,2.5000000000000001E-2,2.5000000000000001E-2,2.4E-2,2.4E-2,2.4E-2,2.4E-2,2.4E-2,2.4E-2,2.4E-2,2.4E-2,2.3E-2]
[{"$error":"#N/A"},{"$error":"#N/A"},{"$error":"#N/A"},{"$error":"#N/A"},null,null,null,{"$error":"#N/A"},{"$error":"#N/A"},{"$error":"#N/A"},{"$error":"#N/A"},null,null,null,{"$error":"#N/A"},{"$error":"#N/A"},{"$error":"#N/A"},{"$error":"#N/A"},null,null,null,19,null,null,null,null,null,null,null,null,null,null,null,null,null,null,null,null,null,null,2.4E-2,2.4E-2,2.4E-2,2.4E-2,2.4E-2,2.3E-2,2.3E-2,2.3E-2,2.3E-2,2.3E-2,2.3E-2,2.3E-2,2.1999999999999999E-2,2.1999999999999999E-2,2.1999999999999999E-2]
[{"$error":"#N/A"},{"$error":"#N/A"},{"$error":"#N/A"},{"$error":"#N/A"},null,null,null,{"$error":"#N/A"},{"$error":"#N/A"},{"$error":"#N/A"},{"$error":"#N/A"},null,null,null,{"$error":"#N/A"},{"$error":"#N/A"},{"$error":"#N/A"},{"$error":"#N/A"},null,null,null,20,null,null,null,null,null,null,null,null,null,null,null,null,null,null,null,null,null,null,null,2.3E-2,2.3E-2,2.1999999999999999E-2,2.1999999999999999E-2,2.1999999999999999E-2,2.1999999999999999E-2,2.1999999999999999E-2,2.1999999999999999E-2,2.1999999999999999E-2,2.1000000000000001E-2,2.1000000000000001E-2,2.1000000000000001E-2,2.1000000000000001E-2,2.1000000000000001E-2]
[{"$error":"#N/A"},{"$error":"#N/A"},{"$error":"#N/A"},{"$error":"#N/A"},null,null,null,{"$error":"#N/A"},{"$error":"#N/A"},{"$error":"#N/A"},{"$error":"#N/A"},null,null,null,{"$error":"#N/A"},{"$error":"#N/A"},{"$error":"#N/A"},{"$error":"#N/A"},null,null,null,21,null,null,null,null,null,null,null,null,null,null,null,null,null,null,null,null,null,null,null,null,0.02,2.1000000000000001E-2,2.1000000000000001E-2,2.1000000000000001E-2,2.1000000000000001E-2,2.1000000000000001E-2,0.02,0.02,0.02,0.02,0.02,0.02,0.02]
[{"$error":"#N/A"},{"$error":"#N/A"},{"$error":"#N/A"},{"$error":"#N/A"},null,null,null,{"$error":"#N/A"},{"$error":"#N/A"},{"$error":"#N/A"},{"$error":"#N/A"},null,null,null,{"$error":"#N/A"},{"$error":"#N/A"},{"$error":"#N/A"},{"$error":"#N/A"},null,null,null,22,null,null,null,null,null,null,null,null,null,null,null,null,null,null,null,null,null,null,null,null,null,0.02,0.02,0.02,1.9E-2,1.9E-2,1.9E-2,1.9E-2,1.9E-2,1.9E-2,1.9E-2,1.9E-2,1.9E-2]
[{"$error":"#N/A"},{"$error":"#N/A"},{"$error":"#N/A"},{"$error":"#N/A"},null,null,null,null,{"$f":"SUM(I94:I104)","v":{"$error":"#N/A"}},{"$f":"SUM(J94:J104)","v":{"$error":"#N/A"}},{"$f":"SUM(K94:K104)","v":{"$error":"#N/A"}},{"$f":"SUM(L94:L104)","v":0},null,null,null,{"$f":"SUM(P94:P104)","v":{"$error":"#N/A"}},{"$f":"SUM(Q94:Q104)","v":{"$error":"#N/A"}},{"$f":"SUM(R94:R104)","v":{"$error":"#N/A"}},{"$f":"SUM(S94:S104)","v":0},null,null,23,null,null,null,null,null,null,null,null,null,null,null,null,null,null,null,null,null,null,null,null,null,null,1.7999999999999999E-2,1.7999999999999999E-2,1.7999999999999999E-2,1.7999999999999999E-2,1.7999999999999999E-2,1.7999999999999999E-2,1.7999999999999999E-2,1.7999999999999999E-2,1.7999999999999999E-2,1.7000000000000001E-2,1.7000000000000001E-2]
[{"$error":"#N/A"},{"$error":"#N/A"},{"$error":"#N/A"},{"$error":"#N/A"},null,null,null,null,null,null,null,null,null,null,null,null,null,null,null,null,null,24,null,null,null,null,null,null,null,null,null,null,null,null,null,null,null,null,null,null,null,null,null,null,null,1.7000000000000001E-2,1.7000000000000001E-2,1.7000000000000001E-2,1.7000000000000001E-2,1.7000000000000001E-2,1.7000000000000001E-2,1.7000000000000001E-2,1.7000000000000001E-2,1.7000000000000001E-2,1.7000000000000001E-2]
[{"$error":"#N/A"},{"$error":"#N/A"},{"$error":"#N/A"},{"$error":"#N/A"},null,null,null,null,null,null,null,null,null,null,null,null,null,null,null,null,null,25,null,null,null,null,null,null,null,null,null,null,null,null,null,null,null,null,null,null,null,null,null,null,null,null,1.6E-2,1.6E-2,1.6E-2,1.6E-2,1.6E-2,1.6E-2,1.6E-2,1.6E-2,1.6E-2]
[{"$error":"#N/A"},{"$error":"#N/A"},{"$error":"#N/A"},{"$error":"#N/A"},null,null,null,"Click Here > Large Field Payout Calculator",null,null,null,null,null,null,"Click Here > Large Field Payout Calculator",null,null,null,null,null,null,26,null,null,null,null,null,null,null,null,null,null,null,null,null,null,null,null,null,null,null,null,null,null,null,null,null,1.6E-2,1.4999999999999999E-2,1.4999999999999999E-2,1.4999999999999999E-2,1.4999999999999999E-2,1.4999999999999999E-2,1.4999999999999999E-2,1.4999999999999999E-2]
[{"$error":"#N/A"},{"$error":"#N/A"},{"$error":"#N/A"},{"$error":"#N/A"},null,null,null,"GIRLS JR < 12",null,null,null,null,null,null,"BOYS JR < 12",null,null,null,null,null,null,27,null,null,null,null,null,null,null,null,null,null,null,null,null,null,null,null,null,null,null,null,null,null,null,null,null,null,1.4999999999999999E-2,1.4999999999999999E-2,1.4E-2,1.4E-2,1.4E-2,1.4E-2,1.4E-2]
[{"$error":"#N/A"},{"$error":"#N/A"},{"$error":"#N/A"},{"$error":"#N/A"},null,null,null,null,null,null,null,"Enter Added Cash (or deduction) here* > ",0,null,null,null,null,null,"Enter Added Cash (or deduction) here* > ",0,null,28,null,null,null,null,null,null,null,null,null,null,null,null,null,null,null,null,null,null,null,null,null,null,null,null,null,null,null,1.4E-2,1.4E-2,1.4E-2,1.2999999999999999E-2,1.2999999999999999E-2,1.2999999999999999E-2]
[{"$error":"#N/A"},{"$error":"#N/A"},{"$error":"#N/A"},{"$error":"#N/A"},null,null,null,"# Paid",null,"Field Size","Pay pct","Total Fees: ",{"$f":"Cover!G47","v":0},null,"# Paid",null,"Field Size","Pay pct","Total Fees: ",{"$f":"Cover!G41","v":0},null,29,null,null,null,null,null,null,null,null,null,null,null,null,null,null,null,null,null,null,null,null,null,null,null,null,null,null,null,null,1.2999999999999999E-2,1.2999999999999999E-2,1.2999999999999999E-2,1.2999999999999999E-2,1.2999999999999999E-2]
[{"$error":"#N/A"},{"$error":"#N/A"},{"$error":"#N/A"},{"$error":"#N/A"},null,null,null,{"$f":"IF(K112=45%,VLOOKUP(J112,dbd,2,FALSE),VLOOKUP(J112,dbe,2,FALSE))","v":{"$error":"#N/A"}},null,{"$f":"IF(Cover!F47=0,91,Cover!F47)","v":91},0.45,"Net Purse: ",{"$f":"M111+M110","v":0},null,{"$f":"IF(R112=45%,VLOOKUP(Q112,dbd,2,FALSE),VLOOKUP(Q112,dbe,2,FALSE))","v":{"$error":"#N/A"}},null,{"$f":"IF(Cover!F41=0,91,Cover!F41)","v":91},0.45,"Net Purse: ",{"$f":"T111+T110","v":0},null,30,null,null,null,null,null,null,null,null,null,null,null,null,null,null,null,null,null,null,null,null,null,null,null,null,null,null,null,null,null,1.2999999999999999E-2,1.2999999999999999E-2,1.2999999999999999E-2,1.2999999999999999E-2]
[{"$error":"#N/A"},{"$error":"#N/A"},{"$error":"#N/A"},{"$error":"#N/A"},null,null,null,null,null,null,{"$f":"IF(J112=91,\"       To use this table, enter player divisions on Scores page\",IF(J112>22,\"Field limit exceeded. Use printed Payout tables.\",\"\"))","v":"       To use this table, enter player divisions on Scores page"},null,null,null,null,null,null,{"$f":"IF(Q112=91,\"       To use this table, enter player divisions on Scores page\",IF(Q112>22,\"Field limit exceeded. Use printed Payout tables.\",\"\"))","v":"       To use this table, enter player divisions on Scores page"},null,null,null,31,null,null,null,null,null,null,null,null,null,null,null,null,null,null,null,null,null,null,null,null,null,null,null,null,null,null,null,null,null,null,1.2999999999999999E-2,1.2999999999999999E-2,1.2999999999999999E-2]
[{"$error":"#N/A"},{"$error":"#N/A"},{"$error":"#N/A"},{"$error":"#N/A"},null,null,null,null,"Prelim","Proposed","Round","Manual","Final",null,null,"Prelim","Proposed","Round","Manual","Final",null,32,null,null,null,null,null,null,null,null,null,null,null,null,null,null,null,null,null,null,null,null,null,null,null,null,null,null,null,null,null,null,null,1.2E-2,1.2E-2]
[{"$error":"#N/A"},{"$error":"#N/A"},{"$error":"#N/A"},{"$error":"#N/A"},null,null,null,"Place","Factor","Payout $$","to $5","Adj. ","Place",null,"Place","Factor","Payout $$","to $5","Adj. ","Place",null,33,null,null,null,null,null,null,null,null,null,null,null,null,null,null,null,null,null,null,null,null,null,null,null,null,null,null,null,null,null,null,null,null,1.2E-2]
[{"$error":"#N/A"},{"$error":"#N/A"},{"$error":"#N/A"},{"$error":"#N/A"},null,null,null,{"$f":"IF(ROW()-115>$H$112,\"\",ROW()-115)","v":{"$error":"#N/A"}},{"$f":"IF(K$112=45%,VLOOKUP(H116,__pay5,H$112+1),VLOOKUP(H116,__pay3,H$112+1))","v":{"$error":"#N/A"}},{"$f":"IF(I116=\"\",\"\",$M$112*I116)","v":{"$error":"#N/A"}},{"$f":"IF(J116=\"\",\"\",INT((J116+2.5)/5)*5)","v":{"$error":"#N/A"}},null,null,null,{"$f":"IF(ROW()-115>$O$112,\"\",ROW()-115)","v":{"$error":"#N/A"}},{"$f":"IF(R$112=45%,VLOOKUP(O116,__pay5,O$112+1),VLOOKUP(O116,__pay3,O$112+1))","v":{"$error":"#N/A"}},{"$f":"IF(P116=\"\",\"\",$T$112*P116)","v":{"$error":"#N/A"}},{"$f":"IF(Q116=\"\",\"\",INT((Q116+2.5)/5)*5)","v":{"$error":"#N/A"}}]
[{"$error":"#N/A"},{"$error":"#N/A"},{"$error":"#N/A"},{"$error":"#N/A"},null,null,null,{"$error":"#N/A"},{"$f":"IF(H117=\"\",\"\",IF(K$112=45%,VLOOKUP(H117,__pay5,H$112+1),VLOOKUP(H117,__pay3,H$112+1)))","v":{"$error":"#N/A"}},{"$error":"#N/A"},{"$error":"#N/A"},null,null,null,{"$error":"#N/A"},{"$f":"IF(O117=\"\",\"\",IF(R$112=45%,VLOOKUP(O117,__pay5,O$112+1),VLOOKUP(O117,__pay3,O$112+1)))","v":{"$error":"#N/A"}},{"$error":"#N/A"},{"$error":"#N/A"}]
[{"$error":"#N/A"},{"$error":"#N/A"},{"$error":"#N/A"},{"$error":"#N/A"},null,null,null,{"$error":"#N/A"},{"$error":"#N/A"},{"$error":"#N/A"},{"$error":"#N/A"},null,null,null,{"$error":"#N/A"},{"$error":"#N/A"},{"$error":"#N/A"},{"$error":"#N/A"}]
[{"$error":"#N/A"},{"$error":"#N/A"},{"$error":"#N/A"},{"$error":"#N/A"},null,null,null,{"$error":"#N/A"},{"$error":"#N/A"},{"$error":"#N/A"},{"$error":"#N/A"},null,null,null,{"$error":"#N/A"},{"$error":"#N/A"},{"$error":"#N/A"},{"$error":"#N/A"}]
[{"$error":"#N/A"},{"$error":"#N/A"},{"$error":"#N/A"},{"$error":"#N/A"},null,null,null,{"$error":"#N/A"},{"$error":"#N/A"},{"$error":"#N/A"},{"$error":"#N/A"},null,null,null,{"$error":"#N/A"},{"$error":"#N/A"},{"$error":"#N/A"},{"$error":"#N/A"}]
[{"$error":"#N/A"},{"$error":"#N/A"},{"$error":"#N/A"},{"$error":"#N/A"},null,null,null,{"$error":"#N/A"},{"$error":"#N/A"},{"$error":"#N/A"},{"$error":"#N/A"},null,null,null,{"$error":"#N/A"},{"$error":"#N/A"},{"$error":"#N/A"},{"$error":"#N/A"}]
[{"$error":"#N/A"},{"$error":"#N/A"},{"$error":"#N/A"},{"$error":"#N/A"},null,null,null,{"$error":"#N/A"},{"$error":"#N/A"},{"$error":"#N/A"},{"$error":"#N/A"},null,null,null,{"$error":"#N/A"},{"$error":"#N/A"},{"$error":"#N/A"},{"$error":"#N/A"}]
[{"$error":"#N/A"},{"$error":"#N/A"},{"$error":"#N/A"},{"$error":"#N/A"},null,null,null,{"$error":"#N/A"},{"$error":"#N/A"},{"$error":"#N/A"},{"$error":"#N/A"},null,null,null,{"$error":"#N/A"},{"$error":"#N/A"},{"$error":"#N/A"},{"$error":"#N/A"}]
[{"$error":"#N/A"},{"$error":"#N/A"},{"$error":"#N/A"},{"$error":"#N/A"},null,null,null,{"$error":"#N/A"},{"$error":"#N/A"},{"$error":"#N/A"},{"$error":"#N/A"},null,null,null,{"$error":"#N/A"},{"$error":"#N/A"},{"$error":"#N/A"},{"$error":"#N/A"}]
[{"$error":"#N/A"},{"$error":"#N/A"},{"$error":"#N/A"},{"$error":"#N/A"},null,null,null,{"$error":"#N/A"},{"$error":"#N/A"},{"$error":"#N/A"},{"$error":"#N/A"},null,null,null,{"$error":"#N/A"},{"$error":"#N/A"},{"$error":"#N/A"},{"$error":"#N/A"}]
[{"$error":"#N/A"},{"$error":"#N/A"},{"$error":"#N/A"},{"$error":"#N/A"},null,null,null,{"$error":"#N/A"},{"$error":"#N/A"},{"$error":"#N/A"},{"$error":"#N/A"},null,null,null,{"$error":"#N/A"},{"$error":"#N/A"},{"$error":"#N/A"},{"$error":"#N/A"}]
[null,{"$f":"SUM(B94:B126)","v":{"$error":"#N/A"}},{"$f":"SUM(C94:C126)","v":{"$error":"#N/A"}},{"$f":"SUM(D94:D126)","v":{"$error":"#N/A"}},{"$f":"SUM(E94:E126)","v":0},null,null,null,{"$f":"SUM(I116:I126)","v":{"$error":"#N/A"}},{"$f":"SUM(J116:J126)","v":{"$error":"#N/A"}},{"$f":"SUM(K116:K126)","v":{"$error":"#N/A"}},{"$f":"SUM(L116:L126)","v":0},null,null,null,{"$f":"SUM(P116:P126)","v":{"$error":"#N/A"}},{"$f":"SUM(Q116:Q126)","v":{"$error":"#N/A"}},{"$f":"SUM(R116:R126)","v":{"$error":"#N/A"}},{"$f":"SUM(S116:S126)","v":0}]
["* Can be a negative number when expenses like trophies involved"]
["GIRLS JR < 10",null,null,null,null,null,null,"BOYS JR < 10",null,null,null,null,null,null,"NOVICE AM DIVISION"]
[null,null,null,null,"Enter Added Cash (or deduction) here* > ",0,null,null,null,null,null,"Enter Added Cash (or deduction) here* > ",0,null,null,null,null,null,"Enter Added Cash (or deduction) here* > ",0]
["# Paid",null,"Field Size","Pay pct","Total Fees: ",{"$f":"Cover!G48","v":0},null,"# Paid",null,"Field Size","Pay pct","Total Fees: ",{"$f":"Cover!G42","v":0},null,"# Paid",null,"Field Size","Pay pct","Total Fees: ",{"$f":"Cover!G24","v":0}]
[{"$f":"IF(D132=45%,VLOOKUP(C132,dbd,2,FALSE),VLOOKUP(C132,dbe,2,FALSE))","v":{"$error":"#N/A"}},null,{"$f":"IF(Cover!F48=0,91,Cover!F48)","v":91},0.45,"Net Purse: ",{"$f":"F131+F130","v":0},null,{"$f":"IF(K132=45%,VLOOKUP(J132,dbd,2,FALSE),VLOOKUP(J132,dbe,2,FALSE))","v":{"$error":"#N/A"}},null,{"$f":"IF(Cover!F42=0,91,Cover!F42)","v":91},0.45,"Net Purse: ",{"$f":"M131+M130","v":0},null,{"$f":"IF(R132=45%,VLOOKUP(Q132,dbd,2,FALSE),VLOOKUP(Q132,dbe,2,FALSE))","v":{"$error":"#N/A"}},null,{"$f":"IF(Cover!F24=0,91,Cover!F24)","v":91},0.45,"Net Purse: ",{"$f":"T131+T130","v":0}]
[null,null,null,{"$f":"IF(C132=91,\"       To use this table, enter player divisions on Scores page\",IF(C132>22,\"Field limit exceeded. Use printed Payout tables.\",\"\"))","v":"       To use this table, enter player divisions on Scores page"},null,null,null,null,null,null,{"$f":"IF(J132=91,\"       To use this table, enter player divisions on Scores page\",IF(J132>22,\"Field limit exceeded. Use printed Payout tables.\",\"\"))","v":"       To use this table, enter player divisions on Scores page"},null,null,null,null,null,null,{"$f":"IF(Q132=91,\"       To use this table, enter player divisions on Scores page\",IF(Q132>22,\"Field limit exceeded. Use printed Payout tables.\",\"\"))","v":"       To use this table, enter player divisions on Scores page"}]
[null,"Prelim","Proposed","Round","Manual","Final",null,null,"Prelim","Proposed","Round","Manual","Final",null,null,"Prelim","Proposed","Round","Manual","Final"]
["Place","Factor","Payout $$","to $5","Adj. ","Place",null,"Place","Factor","Payout $$","to $5","Adj. ","Place",null,"Place","Factor","Payout $$","to $5","Adj. ","Place"]
[{"$f":"IF(ROW()-135>$A$132,\"\",ROW()-135)","v":{"$error":"#N/A"}},{"$f":"IF(D$132=45%,VLOOKUP(A136,__pay5,A$132+1),VLOOKUP(A136,__pay3,A$132+1))","v":{"$error":"#N/A"}},{"$f":"IF(B136=\"\",\"\",$F$132*B136)","v":{"$error":"#N/A"}},{"$f":"IF(C136=\"\",\"\",INT((C136+2.5)/5)*5)","v":{"$error":"#N/A"}},null,null,null,{"$f":"IF(ROW()-135>$H$132,\"\",ROW()-135)","v":{"$error":"#N/A"}},{"$f":"IF(K$132=45%,VLOOKUP(H136,__pay5,H$132+1),VLOOKUP(H136,__pay3,H$132+1))","v":{"$error":"#N/A"}},{"$f":"IF(I136=\"\",\"\",$M$132*I136)","v":{"$error":"#N/A"}},{"$f":"IF(J136=\"\",\"\",INT((J136+2.5)/5)*5)","v":{"$error":"#N/A"}},null,null,null,{"$f":"IF(ROW()-135>$O$132,\"\",ROW()-135)","v":{"$error":"#N/A"}},{"$f":"IF(R$132=45%,VLOOKUP(O136,__pay5,O$132+1),VLOOKUP(O136,__pay3,O$132+1))","v":{"$error":"#N/A"}},{"$f":"IF(P136=\"\",\"\",$T$132*P136)","v":{"$error":"#N/A"}},{"$f":"IF(Q136=\"\",\"\",INT((Q136+2.5)/5)*5)","v":{"$error":"#N/A"}}]
[{"$error":"#N/A"},{"$f":"IF(A137=\"\",\"\",IF(D$132=45%,VLOOKUP(A137,__pay5,A$132+1),VLOOKUP(A137,__pay3,A$132+1)))","v":{"$error":"#N/A"}},{"$error":"#N/A"},{"$error":"#N/A"},null,null,null,{"$error":"#N/A"},{"$f":"IF(H137=\"\",\"\",IF(K$132=45%,VLOOKUP(H137,__pay5,H$132+1),VLOOKUP(H137,__pay3,H$132+1)))","v":{"$error":"#N/A"}},{"$error":"#N/A"},{"$error":"#N/A"},null,null,null,{"$error":"#N/A"},{"$f":"IF(O137=\"\",\"\",IF(R$132=45%,VLOOKUP(O137,__pay5,O$132+1),VLOOKUP(O137,__pay3,O$132+1)))","v":{"$error":"#N/A"}},{"$error":"#N/A"},{"$error":"#N/A"}]
[{"$error":"#N/A"},{"$error":"#N/A"},{"$error":"#N/A"},{"$error":"#N/A"},null,null,null,{"$error":"#N/A"},{"$error":"#N/A"},{"$error":"#N/A"},{"$error":"#N/A"},null,null,null,{"$error":"#N/A"},{"$error":"#N/A"},{"$error":"#N/A"},{"$error":"#N/A"}]
[{"$error":"#N/A"},{"$error":"#N/A"},{"$error":"#N/A"},{"$error":"#N/A"},null,null,null,{"$error":"#N/A"},{"$error":"#N/A"},{"$error":"#N/A"},{"$error":"#N/A"},null,null,null,{"$error":"#N/A"},{"$error":"#N/A"},{"$error":"#N/A"},{"$error":"#N/A"}]
[{"$error":"#N/A"},{"$error":"#N/A"},{"$error":"#N/A"},{"$error":"#N/A"},null,null,null,{"$error":"#N/A"},{"$error":"#N/A"},{"$error":"#N/A"},{"$error":"#N/A"},null,null,null,{"$error":"#N/A"},{"$error":"#N/A"},{"$error":"#N/A"},{"$error":"#N/A"}]
[{"$error":"#N/A"},{"$error":"#N/A"},{"$error":"#N/A"},{"$error":"#N/A"},null,null,null,{"$error":"#N/A"},{"$error":"#N/A"},{"$error":"#N/A"},{"$error":"#N/A"},null,null,null,{"$error":"#N/A"},{"$error":"#N/A"},{"$error":"#N/A"},{"$error":"#N/A"}]
[{"$error":"#N/A"},{"$error":"#N/A"},{"$error":"#N/A"},{"$error":"#N/A"},null,null,null,{"$error":"#N/A"},{"$error":"#N/A"},{"$error":"#N/A"},{"$error":"#N/A"},null,null,null,{"$error":"#N/A"},{"$error":"#N/A"},{"$error":"#N/A"},{"$error":"#N/A"}]
[{"$error":"#N/A"},{"$error":"#N/A"},{"$error":"#N/A"},{"$error":"#N/A"},null,null,null,{"$error":"#N/A"},{"$error":"#N/A"},{"$error":"#N/A"},{"$error":"#N/A"},null,null,null,{"$error":"#N/A"},{"$error":"#N/A"},{"$error":"#N/A"},{"$error":"#N/A"}]
[{"$error":"#N/A"},{"$error":"#N/A"},{"$error":"#N/A"},{"$error":"#N/A"},null,null,null,{"$error":"#N/A"},{"$error":"#N/A"},{"$error":"#N/A"},{"$error":"#N/A"},null,null,null,{"$error":"#N/A"},{"$error":"#N/A"},{"$error":"#N/A"},{"$error":"#N/A"}]
[{"$error":"#N/A"},{"$error":"#N/A"},{"$error":"#N/A"},{"$error":"#N/A"},null,null,null,{"$error":"#N/A"},{"$error":"#N/A"},{"$error":"#N/A"},{"$error":"#N/A"},null,null,null,{"$error":"#N/A"},{"$error":"#N/A"},{"$error":"#N/A"},{"$error":"#N/A"}]
[{"$error":"#N/A"},{"$error":"#N/A"},{"$error":"#N/A"},{"$error":"#N/A"},null,null,null,{"$error":"#N/A"},{"$error":"#N/A"},{"$error":"#N/A"},{"$error":"#N/A"},null,null,null,{"$error":"#N/A"},{"$error":"#N/A"},{"$error":"#N/A"},{"$error":"#N/A"}]
[null,{"$f":"SUM(B136:B146)","v":{"$error":"#N/A"}},{"$f":"SUM(C136:C146)","v":{"$error":"#N/A"}},{"$f":"SUM(D136:D146)","v":{"$error":"#N/A"}},{"$f":"SUM(E136:E146)","v":0},null,null,null,{"$f":"SUM(I136:I146)","v":{"$error":"#N/A"}},{"$f":"SUM(J136:J146)","v":{"$error":"#N/A"}},{"$f":"SUM(K136:K146)","v":{"$error":"#N/A"}},{"$f":"SUM(L136:L146)","v":0},null,null,null,{"$f":"SUM(P136:P146)","v":{"$error":"#N/A"}},{"$f":"SUM(Q136:Q146)","v":{"$error":"#N/A"}},{"$f":"SUM(R136:R146)","v":{"$error":"#N/A"}},{"$f":"SUM(S136:S146)","v":0}]
["Click Here > Large Field Payout Calculator",null,null,null,null,null,null,null,null,null,null,null,null,null,"Click Here > Large Field Payout Calculator"]
["ADV WOMEN GRANDMASTER",null,null,null,null,null,null,"ADV WOMEN SR GRANDMASTER",null,null,null,null,null,null,"NOVICE WOMEN AM"]
[null,null,null,null,"Enter Added Cash (or deduction) here* > ",0,null,null,null,null,null,"Enter Added Cash (or deduction) here* > ",0,null,null,null,null,null,"Enter Added Cash (or deduction) here* > ",0]
["# Paid",null,"Field Size","Pay pct","Total Fees: ",{"$f":"Cover!G30+Cover!M30","v":0},null,"# Paid",null,"Field Size","Pay pct","Total Fees: ",{"$f":"Cover!G31","v":0},null,"# Paid",null,"Field Size","Pay pct","Total Fees: ",{"$f":"Cover!G36","v":0}]
[{"$f":"IF(D152=45%,VLOOKUP(C152,dbd,2,FALSE),VLOOKUP(C152,dbe,2,FALSE))","v":{"$error":"#N/A"}},null,{"$f":"IF(Cover!F30=0,91,Cover!F30+ROUNDDOWN(Cover!L30/3,0))","v":91},0.45,"Net Purse: ",{"$f":"F151+F150","v":0},null,{"$f":"IF(K152=45%,VLOOKUP(J152,dbd,2,FALSE),VLOOKUP(J152,dbe,2,FALSE))","v":{"$error":"#N/A"}},null,{"$f":"IF(Cover!F31=0,91,Cover!F31)","v":91},0.45,"Net Purse: ",{"$f":"M151+M150","v":0},null,{"$f":"IF(R152=45%,VLOOKUP(Q152,dbd,2,FALSE),VLOOKUP(Q152,dbe,2,FALSE))","v":{"$error":"#N/A"}},null,{"$f":"IF(Cover!F36=0,91,Cover!F36)","v":91},0.45,"Net Purse: ",{"$f":"T151+T150","v":0}]
[null,null,null,{"$f":"IF(C152=91,\"       To use this table, enter player divisions on Scores page\",IF(C152>22,\"Field limit exceeded. Use printed Payout tables.\",\"\"))","v":"       To use this table, enter player divisions on Scores page"},null,null,null,null,null,null,{"$f":"IF(J152=91,\"       To use this table, enter player divisions on Scores page\",IF(J152>4,\"Field limit exceeded. Use printed Payout tables.\",\"\"))","v":"       To use this table, enter player divisions on Scores page"},null,null,null,null,null,null,{"$f":"IF(Q152=91,\"       To use this table, enter player divisions on Scores page\",IF(Q152>16,\"Field limit exceeded. Use printed Payout tables.\",\"\"))","v":"       To use this table, enter player divisions on Scores page"}]
[null,"Prelim","Proposed","Round","Manual","Final",null,null,"Prelim","Proposed","Round","Manual","Final",null,null,"Prelim","Proposed","Round","Manual","Final"]
["Place","Factor","Payout $$","to $5","Adj. ","Place",null,"Place","Factor","Payout $$","to $5","Adj. ","Place",null,"Place","Factor","Payout $$","to $5","Adj. ","Place"]
[{"$f":"IF(ROW()-155>$A$152,\"\",ROW()-155)","v":{"$error":"#N/A"}},{"$f":"IF(D$152=45%,VLOOKUP(A156,__pay5,A$152+1),VLOOKUP(A156,__pay3,A$152+1))","v":{"$error":"#N/A"}},{"$f":"IF(B156=\"\",\"\",$F$152*B156)","v":{"$error":"#N/A"}},{"$f":"IF(C156=\"\",\"\",INT((C156+2.5)/5)*5)","v":{"$error":"#N/A"}},null,null,null,{"$f":"IF(ROW()-155>$H$152,\"\",ROW()-155)","v":{"$error":"#N/A"}},{"$f":"IF(K$152=45%,VLOOKUP(H156,__pay5,H$152+1),VLOOKUP(H156,__pay3,H$152+1))","v":{"$error":"#N/A"}},{"$f":"IF(I156=\"\",\"\",$M$152*I156)","v":{"$error":"#N/A"}},{"$f":"IF(J156=\"\",\"\",INT((J156+2.5)/5)*5)","v":{"$error":"#N/A"}},null,null,null,{"$f":"IF(ROW()-155>$O$152,\"\",ROW()-155)","v":{"$error":"#N/A"}},{"$f":"IF(R$152=45%,VLOOKUP(O156,__pay5,O$152+1),VLOOKUP(O156,__pay3,O$152+1))","v":{"$error":"#N/A"}},{"$f":"IF(P156=\"\",\"\",$T$152*P156)","v":{"$error":"#N/A"}},{"$f":"IF(Q156=\"\",\"\",INT((Q156+2.5)/5)*5)","v":{"$error":"#N/A"}}]
[{"$f":"IF(ROW()-155>$A$152,\"\",ROW()-155)","v":{"$error":"#N/A"}},{"$f":"IF(A157=\"\",\"\",IF(D$152=45%,VLOOKUP(A157,__pay5,A$152+1),VLOOKUP(A157,__pay3,A$152+1)))","v":{"$error":"#N/A"}},{"$error":"#N/A"},{"$error":"#N/A"},null,null,null,{"$f":"IF(ROW()-155>$H$152,\"\",ROW()-155)","v":{"$error":"#N/A"}},{"$f":"IF(H157=\"\",\"\",IF(K$152=45%,VLOOKUP(H157,__pay5,H$152+1),VLOOKUP(H157,__pay3,H$152+1)))","v":{"$error":"#N/A"}},{"$f":"IF(I157=\"\",\"\",$M$152*I157)","v":{"$error":"#N/A"}},{"$f":"IF(J157=\"\",\"\",INT((J157+2.5)/5)*5)","v":{"$error":"#N/A"}},null,null,null,{"$error":"#N/A"},{"$f":"IF(O157=\"\",\"\",IF(R$152=45%,VLOOKUP(O157,__pay5,O$152+1),VLOOKUP(O157,__pay3,O$152+1)))","v":{"$error":"#N/A"}},{"$error":"#N/A"},{"$error":"#N/A"}]
[{"$error":"#N/A"},{"$error":"#N/A"},{"$error":"#N/A"},{"$error":"#N/A"},null,null,null,null,{"$f":"SUM(I156:I157)","v":{"$error":"#N/A"}},{"$f":"SUM(J156:J157)","v":{"$error":"#N/A"}},{"$f":"SUM(K156:K157)","v":{"$error":"#N/A"}},{"$f":"SUM(L156:L157)","v":0},null,null,{"$error":"#N/A"},{"$error":"#N/A"},{"$error":"#N/A"},{"$error":"#N/A"}]
[{"$error":"#N/A"},{"$error":"#N/A"},{"$error":"#N/A"},{"$error":"#N/A"},null,null,null,"Click Here > Large Field Payout Calculator",null,null,null,null,null,null,{"$error":"#N/A"},{"$error":"#N/A"},{"$error":"#N/A"},{"$error":"#N/A"}]
[{"$error":"#N/A"},{"$error":"#N/A"},{"$error":"#N/A"},{"$error":"#N/A"},null,null,null,"ADVANCED LEGENDS",null,null,null,null,null,null,{"$error":"#N/A"},{"$error":"#N/A"},{"$error":"#N/A"},{"$error":"#N/A"}]
[{"$error":"#N/A"},{"$error":"#N/A"},{"$error":"#N/A"},{"$error":"#N/A"},null,null,null,null,null,null,null,"Enter Added Cash (or deduction) here* > ",0,null,{"$error":"#N/A"},{"$error":"#N/A"},{"$error":"#N/A"},{"$error":"#N/A"}]
[{"$error":"#N/A"},{"$error":"#N/A"},{"$error":"#N/A"},{"$error":"#N/A"},null,null,null,"# Paid",null,"Field Size","Pay pct","Total Fees: ",{"$f":"Cover!G28","v":0},null,{"$error":"#N/A"},{"$error":"#N/A"},{"$error":"#N/A"},{"$error":"#N/A"}]
[{"$error":"#N/A"},{"$error":"#N/A"},{"$error":"#N/A"},{"$error":"#N/A"},null,null,null,{"$f":"IF(K163=45%,VLOOKUP(J163,dbd,2,FALSE),VLOOKUP(J163,dbe,2,FALSE))","v":{"$error":"#N/A"}},null,{"$f":"IF(Cover!F28=0,91,Cover!F28)","v":91},0.45,"Net Purse: ",{"$f":"M162+M161","v":0},null,{"$error":"#N/A"},{"$error":"#N/A"},{"$error":"#N/A"},{"$error":"#N/A"}]
[{"$error":"#N/A"},{"$error":"#N/A"},{"$error":"#N/A"},{"$error":"#N/A"},null,null,null,null,null,null,{"$f":"IF(J163=91,\"       To use this table, enter player divisions on Scores page\",IF(J163>4,\"Field limit exceeded. Use printed Payout tables.\",\"\"))","v":"       To use this table, enter player divisions on Scores page"},null,null,null,null,{"$f":"SUM(P156:P163)","v":{"$error":"#N/A"}},{"$f":"SUM(Q156:Q163)","v":{"$error":"#N/A"}},{"$f":"SUM(R156:R163)","v":{"$error":"#N/A"}},{"$f":"SUM(S156:S163)","v":0}]
[{"$error":"#N/A"},{"$error":"#N/A"},{"$error":"#N/A"},{"$error":"#N/A"},null,null,null,null,"Prelim","Proposed","Round","Manual","Final"]
[{"$error":"#N/A"},{"$error":"#N/A"},{"$error":"#N/A"},{"$error":"#N/A"},null,null,null,"Place","Factor","Payout $$","to $5","Adj. ","Place",null,"ADV WOMEN LEGENDS"]
[null,{"$f":"SUM(B156:B166)","v":{"$error":"#N/A"}},{"$f":"SUM(C156:C166)","v":{"$error":"#N/A"}},{"$f":"SUM(D156:D166)","v":{"$error":"#N/A"}},{"$f":"SUM(E156:E166)","v":0},null,null,{"$f":"IF(ROW()-166>$H$163,\"\",ROW()-166)","v":{"$error":"#N/A"}},{"$f":"IF(K$163=45%,VLOOKUP(H167,__pay5,H$163+1),VLOOKUP(H167,__pay3,H$163+1))","v":{"$error":"#N/A"}},{"$f":"IF(I167=\"\",\"\",$M$163*I167)","v":{"$error":"#N/A"}},{"$f":"IF(J167=\"\",\"\",INT((J167+2.5)/5)*5)","v":{"$error":"#N/A"}},null,null,null,null,null,null,null,"Enter Added Cash (or deduction) here* > ",0]
["GIRLS JR < 6",null,null,null,null,null,null,{"$f":"IF(ROW()-166>$H$163,\"\",ROW()-166)","v":{"$error":"#N/A"}},{"$f":"IF(H168=\"\",\"\",IF(K$163=45%,VLOOKUP(H168,__pay5,H$163+1),VLOOKUP(H168,__pay3,H$163+1)))","v":{"$error":"#N/A"}},{"$f":"IF(I168=\"\",\"\",$M$163*I168)","v":{"$error":"#N/A"}},{"$f":"IF(J168=\"\",\"\",INT((J168+2.5)/5)*5)","v":{"$error":"#N/A"}},null,null,null,"# Paid",null,"Field Size","Pay pct","Total Fees: ",{"$f":"Cover!G32","v":0}]
[null,null,null,null,"Enter Added Cash (or deduction) here* > ",0,null,null,{"$f":"SUM(I167:I168)","v":{"$error":"#N/A"}},{"$f":"SUM(J167:J168)","v":{"$error":"#N/A"}},{"$f":"SUM(K167:K168)","v":{"$error":"#N/A"}},{"$f":"SUM(L167:L168)","v":0},null,null,{"$f":"IF(R169=45%,VLOOKUP(Q169,dbd,2,FALSE),VLOOKUP(Q169,dbe,2,FALSE))","v":{"$error":"#N/A"}},null,{"$f":"IF(Cover!F32=0,91,Cover!F32)","v":91},0.45,"Net Purse: ",{"$f":"T168+T167","v":0}]
["# Paid",null,"Field Size","Pay pct","Total Fees: ",{"$f":"Cover!G50","v":0},null,"Click Here > Large Field Payout Calculator",null,null,null,null,null,null,null,null,null,{"$f":"IF(Q169=91,\"       To use this table, enter player divisions on Scores page\",IF(Q169>4,\"Field limit exceeded. Use printed Payout tables.\",\"\"))","v":"       To use this table, enter player divisions on Scores page"}]
[{"$f":"IF(D171=45%,VLOOKUP(C171,dbd,2,FALSE),VLOOKUP(C171,dbe,2,FALSE))","v":{"$error":"#N/A"}},null,{"$f":"IF(Cover!F50=0,91,Cover!F50)","v":91},0.45,"Net Purse: ",{"$f":"F170+F169","v":0},null,null,null,null,null,null,null,null,null,"Prelim","Proposed","Round","Manual","Final"]
[null,null,null,{"$f":"IF(C171=91,\"       To use this table, enter player divisions on Scores page\",IF(C171>22,\"Field limit exceeded. Use printed Payout tables.\",\"\"))","v":"       To use this table, enter player divisions on Scores page"},null,null,null,null,null,null,null,null,null,null,"Place","Factor","Payout $$","to $5","Adj. ","Place"]
[null,"Prelim","Proposed","Round","Manual","Final",null,null,null,null,null,null,null,null,{"$f":"IF(ROW()-172>$O$169,\"\",ROW()-172)","v":{"$error":"#N/A"}},{"$f":"IF(R$169=45%,VLOOKUP(O173,__pay5,O$169+1),VLOOKUP(O173,__pay3,O$169+1))","v":{"$error":"#N/A"}},{"$f":"IF(P173=\"\",\"\",$T$169*P173)","v":{"$error":"#N/A"}},{"$f":"IF(Q173=\"\",\"\",INT((Q173+2.5)/5)*5)","v":{"$error":"#N/A"}}]
["Place","Factor","Payout $$","to $5","Adj. ","Place",null,null,null,null,null,null,null,null,{"$f":"IF(ROW()-172>$O$169,\"\",ROW()-172)","v":{"$error":"#N/A"}},{"$f":"IF(O174=\"\",\"\",IF(R$169=45%,VLOOKUP(O174,__pay5,O$169+1),VLOOKUP(O174,__pay3,O$169+1)))","v":{"$error":"#N/A"}},{"$f":"IF(P174=\"\",\"\",$T$169*P174)","v":{"$error":"#N/A"}},{"$f":"IF(Q174=\"\",\"\",INT((Q174+2.5)/5)*5)","v":{"$error":"#N/A"}}]
[{"$f":"IF(ROW()-174>$A$171,\"\",ROW()-174)","v":{"$error":"#N/A"}},{"$f":"IF(D$171=45%,VLOOKUP(A175,__pay5,A$171+1),VLOOKUP(A175,__pay3,A$171+1))","v":{"$error":"#N/A"}},{"$f":"IF(B175=\"\",\"\",$F$171*B175)","v":{"$error":"#N/A"}},{"$f":"IF(C175=\"\",\"\",INT((C175+2.5)/5)*5)","v":{"$error":"#N/A"}},null,null,null,null,null,null,null,null,null,null,null,{"$f":"SUM(P173:P174)","v":{"$error":"#N/A"}},{"$f":"SUM(Q173:Q174)","v":{"$error":"#N/A"}},{"$f":"SUM(R173:R174)","v":{"$error":"#N/A"}},{"$f":"SUM(S173:S174)","v":0}]
[{"$f":"IF(ROW()-174>$A$171,\"\",ROW()-174)","v":{"$error":"#N/A"}},{"$f":"IF(A176=\"\",\"\",IF(D$171=45%,VLOOKUP(A176,__pay5,A$171+1),VLOOKUP(A176,__pay3,A$171+1)))","v":{"$error":"#N/A"}},{"$f":"IF(B176=\"\",\"\",$F$171*B176)","v":{"$error":"#N/A"}},{"$f":"IF(C176=\"\",\"\",INT((C176+2.5)/5)*5)","v":{"$error":"#N/A"}}]
[{"$f":"IF(ROW()-174>$A$171,\"\",ROW()-174)","v":{"$error":"#N/A"}},{"$f":"IF(A177=\"\",\"\",IF(D$171=45%,VLOOKUP(A177,__pay5,A$171+1),VLOOKUP(A177,__pay3,A$171+1)))","v":{"$error":"#N/A"}},{"$f":"IF(B177=\"\",\"\",$F$171*B177)","v":{"$error":"#N/A"}},{"$f":"IF(C177=\"\",\"\",INT((C177+2.5)/5)*5)","v":{"$error":"#N/A"}}]
[{"$f":"IF(ROW()-174>$A$171,\"\",ROW()-174)","v":{"$error":"#N/A"}},{"$f":"IF(A178=\"\",\"\",IF(D$171=45%,VLOOKUP(A178,__pay5,A$171+1),VLOOKUP(A178,__pay3,A$171+1)))","v":{"$error":"#N/A"}},{"$f":"IF(B178=\"\",\"\",$F$171*B178)","v":{"$error":"#N/A"}},{"$f":"IF(C178=\"\",\"\",INT((C178+2.5)/5)*5)","v":{"$error":"#N/A"}}]
[null,{"$f":"SUM(B175:B178)","v":{"$error":"#N/A"}},{"$f":"SUM(C175:C178)","v":{"$error":"#N/A"}},{"$f":"SUM(D175:D178)","v":{"$error":"#N/A"}},{"$f":"SUM(E175:E178)","v":0}]
["GIRLS JR < 8",null,null,null,null,null,null,"BOYS JR < 8",null,null,null,null,null,null,"BOYS JR < 6"]
[null,null,null,null,"Enter Added Cash (or deduction) here* > ",0,null,null,null,null,null,"Enter Added Cash (or deduction) here* > ",0,null,null,null,null,null,"Enter Added Cash (or deduction) here* > ",0]
["# Paid",null,"Field Size","Pay pct","Total Fees: ",{"$f":"Cover!G49","v":0},null,"# Paid",null,"Field Size","Pay pct","Total Fees: ",{"$f":"Cover!G43","v":0},null,"# Paid",null,"Field Size","Pay pct","Total Fees: ",{"$f":"Cover!G44","v":0}]
[{"$f":"IF(D183=45%,VLOOKUP(C183,dbd,2,FALSE),VLOOKUP(C183,dbe,2,FALSE))","v":{"$error":"#N/A"}},null,{"$f":"IF(Cover!F49=0,91,Cover!F49)","v":91},0.45,"Net Purse: ",{"$f":"F182+F181","v":0},null,{"$f":"IF(K183=45%,VLOOKUP(J183,dbd,2,FALSE),VLOOKUP(J183,dbe,2,FALSE))","v":{"$error":"#N/A"}},null,{"$f":"IF(Cover!F43=0,91,Cover!F43)","v":91},0.45,"Net Purse: ",{"$f":"M182+M181","v":0},null,{"$f":"IF(R183=45%,VLOOKUP(Q183,dbd,2,FALSE),VLOOKUP(Q183,dbe,2,FALSE))","v":{"$error":"#N/A"}},null,{"$f":"IF(Cover!F44=0,91,Cover!F44)","v":91},0.45,"Net Purse: ",{"$f":"T182+T181","v":0}]
[null,null,null,{"$f":"IF(C183=91,\"       To use this table, enter player divisions on Scores page\",IF(C183>22,\"Field limit exceeded. Use printed Payout tables.\",\"\"))","v":"       To use this table, enter player divisions on Scores page"},null,null,null,null,null,null,{"$f":"IF(J183=91,\"       To use this table, enter player divisions on Scores page\",IF(J183>22,\"Field limit exceeded. Use printed Payout tables.\",\"\"))","v":"       To use this table, enter player divisions on Scores page"},null,null,null,null,null,null,{"$f":"IF(Q183=91,\"       To use this table, enter player divisions on Scores page\",IF(Q183>22,\"Field limit exceeded. Use printed Payout tables.\",\"\"))","v":"       To use this table, enter player divisions on Scores page"}]
[null,"Prelim","Proposed","Round","Manual","Final",null,null,"Prelim","Proposed","Round","Manual","Final",null,null,"Prelim","Proposed","Round","Manual","Final"]
["Place","Factor","Payout $$","to $5","Adj. ","Place",null,"Place","Factor","Payout $$","to $5","Adj. ","Place",null,"Place","Factor","Payout $$","to $5","Adj. ","Place"]
[{"$f":"IF(ROW()-186>$A$183,\"\",ROW()-186)","v":{"$error":"#N/A"}},{"$f":"IF(D$183=45%,VLOOKUP(A187,__pay5,A$183+1),VLOOKUP(A187,__pay3,A$183+1))","v":{"$error":"#N/A"}},{"$f":"IF(B187=\"\",\"\",$F$183*B187)","v":{"$error":"#N/A"}},{"$f":"IF(C187=\"\",\"\",INT((C187+2.5)/5)*5)","v":{"$error":"#N/A"}},null,null,null,{"$f":"IF(ROW()-186>$H$183,\"\",ROW()-186)","v":{"$error":"#N/A"}},{"$f":"IF(K$183=45%,VLOOKUP(H187,__pay5,H$183+1),VLOOKUP(H187,__pay3,H$183+1))","v":{"$error":"#N/A"}},{"$f":"IF(I187=\"\",\"\",$M$183*I187)","v":{"$error":"#N/A"}},{"$f":"IF(J187=\"\",\"\",INT((J187+2.5)/5)*5)","v":{"$error":"#N/A"}},null,null,null,{"$f":"IF(ROW()-186>$O$183,\"\",ROW()-186)","v":{"$error":"#N/A"}},{"$f":"IF(R$183=45%,VLOOKUP(O187,__pay5,O$183+1),VLOOKUP(O187,__pay3,O$183+1))","v":{"$error":"#N/A"}},{"$f":"IF(P187=\"\",\"\",$T$183*P187)","v":{"$error":"#N/A"}},{"$f":"IF(Q187=\"\",\"\",INT((Q187+2.5)/5)*5)","v":{"$error":"#N/A"}}]
[{"$error":"#N/A"},{"$f":"IF(A188=\"\",\"\",IF(D$183=45%,VLOOKUP(A188,__pay5,A$183+1),VLOOKUP(A188,__pay3,A$183+1)))","v":{"$error":"#N/A"}},{"$error":"#N/A"},{"$error":"#N/A"},null,null,null,{"$error":"#N/A"},{"$f":"IF(H188=\"\",\"\",IF(K$183=45%,VLOOKUP(H188,__pay5,H$183+1),VLOOKUP(H188,__pay3,H$183+1)))","v":{"$error":"#N/A"}},{"$error":"#N/A"},{"$error":"#N/A"},null,null,null,{"$error":"#N/A"},{"$f":"IF(O188=\"\",\"\",IF(R$183=45%,VLOOKUP(O188,__pay5,O$183+1),VLOOKUP(O188,__pay3,O$183+1)))","v":{"$error":"#N/A"}},{"$error":"#N/A"},{"$error":"#N/A"}]
[{"$error":"#N/A"},{"$error":"#N/A"},{"$error":"#N/A"},{"$error":"#N/A"},null,null,null,{"$error":"#N/A"},{"$error":"#N/A"},{"$error":"#N/A"},{"$error":"#N/A"},null,null,null,{"$error":"#N/A"},{"$error":"#N/A"},{"$error":"#N/A"},{"$error":"#N/A"}]
[{"$error":"#N/A"},{"$error":"#N/A"},{"$error":"#N/A"},{"$error":"#N/A"},null,null,null,{"$error":"#N/A"},{"$error":"#N/A"},{"$error":"#N/A"},{"$error":"#N/A"},null,null,null,{"$error":"#N/A"},{"$error":"#N/A"},{"$error":"#N/A"},{"$error":"#N/A"}]
[{"$error":"#N/A"},{"$error":"#N/A"},{"$error":"#N/A"},{"$error":"#N/A"},null,null,null,{"$error":"#N/A"},{"$error":"#N/A"},{"$error":"#N/A"},{"$error":"#N/A"},null,null,null,{"$error":"#N/A"},{"$error":"#N/A"},{"$error":"#N/A"},{"$error":"#N/A"}]
[{"$error":"#N/A"},{"$error":"#N/A"},{"$error":"#N/A"},{"$error":"#N/A"},null,null,null,{"$error":"#N/A"},{"$error":"#N/A"},{"$error":"#N/A"},{"$error":"#N/A"},null,null,null,{"$error":"#N/A"},{"$error":"#N/A"},{"$error":"#N/A"},{"$error":"#N/A"}]
[{"$error":"#N/A"},{"$error":"#N/A"},{"$error":"#N/A"},{"$error":"#N/A"},null,null,null,{"$error":"#N/A"},{"$error":"#N/A"},{"$error":"#N/A"},{"$error":"#N/A"},null,null,null,{"$error":"#N/A"},{"$error":"#N/A"},{"$error":"#N/A"},{"$error":"#N/A"}]
[{"$error":"#N/A"},{"$error":"#N/A"},{"$error":"#N/A"},{"$error":"#N/A"},null,null,null,{"$error":"#N/A"},{"$error":"#N/A"},{"$error":"#N/A"},{"$error":"#N/A"},null,null,null,{"$error":"#N/A"},{"$error":"#N/A"},{"$error":"#N/A"},{"$error":"#N/A"}]
[{"$error":"#N/A"},{"$error":"#N/A"},{"$error":"#N/A"},{"$error":"#N/A"},null,null,null,{"$error":"#N/A"},{"$error":"#N/A"},{"$error":"#N/A"},{"$error":"#N/A"},null,null,null,{"$error":"#N/A"},{"$error":"#N/A"},{"$error":"#N/A"},{"$error":"#N/A"}]
[{"$error":"#N/A"},{"$error":"#N/A"},{"$error":"#N/A"},{"$error":"#N/A"},null,null,null,{"$error":"#N/A"},{"$error":"#N/A"},{"$error":"#N/A"},{"$error":"#N/A"},null,null,null,{"$error":"#N/A"},{"$error":"#N/A"},{"$error":"#N/A"},{"$error":"#N/A"}]
[{"$error":"#N/A"},{"$error":"#N/A"},{"$error":"#N/A"},{"$error":"#N/A"},null,null,null,{"$error":"#N/A"},{"$error":"#N/A"},{"$error":"#N/A"},{"$error":"#N/A"},null,null,null,{"$error":"#N/A"},{"$error":"#N/A"},{"$error":"#N/A"},{"$error":"#N/A"}]
[null,{"$f":"SUM(B187:B197)","v":{"$error":"#N/A"}},{"$f":"SUM(C187:C197)","v":{"$error":"#N/A"}},{"$f":"SUM(D187:D197)","v":{"$error":"#N/A"}},{"$f":"SUM(E187:E197)","v":0},null,null,null,{"$f":"SUM(I187:I197)","v":{"$error":"#N/A"}},{"$f":"SUM(J187:J197)","v":{"$error":"#N/A"}},{"$f":"SUM(K187:K197)","v":{"$error":"#N/A"}},{"$f":"SUM(L187:L197)","v":0},null,null,null,{"$f":"SUM(P187:P197)","v":{"$error":"#N/A"}},{"$f":"SUM(Q187:Q197)","v":{"$error":"#N/A"}},{"$f":"SUM(R187:R197)","v":{"$error":"#N/A"}},{"$f":"SUM(S187:S197)","v":0}]

{"sheet":"Finance","index":7,"n_rows":78,"n_cols":20,"rows_kept":78,"cut":false,"hidden":false,"merged":[[77,8,77,13],[70,0,70,4],[69,0,69,4],[71,0,71,4],[76,8,76,13],[74,8,74,13],[73,8,73,13],[76,0,76,4],[74,0,74,4],[73,0,73,4],[70,8,70,13],[68,8,68,13],[66,8,66,13],[72,0,72,4],[69,8,69,13],[72,8,72,13],[71,8,71,13],[67,0,67,4],[66,0,66,4],[13,4,13,5],[14,4,14,5],[18,4,18,5],[20,0,20,2],[23,7,23,9],[29,0,29,2],[28,0,28,2],[24,11,24,13],[28,4,28,5],[25,4,25,5],[26,4,26,5],[26,7,26,9],[17,0,17,2],[18,0,18,2],[25,11,25,13],[67,8,67,13],[7,11,7,13],[8,11,8,13],[9,11,9,13],[22,4,22,5],[21,4,21,5],[19,7,19,9],[8,7,8,9],[8,4,8,5],[22,11,22,13],[21,7,21,9],[9,7,9,9],[11,4,11,5],[19,4,19,5],[21,11,21,13],[2,2,2,4],[4,0,4,2],[4,7,4,9],[4,11,4,14],[20,11,20,13],[6,4,6,5],[7,0,7,2],[7,4,7,5],[7,7,7,9],[8,0,8,2],[18,11,18,13],[18,7,18,9],[15,11,15,13],[15,7,15,9],[16,7,16,9],[19,0,19,2],[15,4,15,5],[16,4,16,5],[17,4,17,5],[15,0,15,2],[16,0,16,2],[9,4,9,5],[10,4,10,5],[12,4,12,5],[6,11,6,13],[32,11,32,13],[60,0,60,4],[57,0,57,4],[40,0,40,15],[26,11,26,13],[44,8,44,9],[49,0,49,4],[47,0,47,4],[34,0,34,2],[33,0,33,2],[17,7,17,9],[6,0,6,2],[6,7,6,9],[41,0,41,15],[28,11,28,13],[29,11,29,13],[9,0,9,2],[23,11,23,13],[19,11,19,13],[16,11,16,13],[17,11,17,13],[27,11,27,13],[25,7,25,9],[63,8,63,13],[60,8,60,13],[64,8,64,13],[65,8,65,13],[30,7,30,9],[29,4,29,5],[51,8,51,13],[49,8,49,13],[62,8,62,13],[58,8,58,13],[61,8,61,13],[56,8,56,13],[59,8,59,13],[52,8,52,13],[57,8,57,13],[65,0,65,4],[35,11,35,14],[33,11,33,13],[34,11,34,13],[35,7,35,9],[35,4,35,5],[33,7,33,9],[42,0,42,15],[47,8,47,13],[68,0,68,4],[53,0,53,4],[46,0,46,4],[52,0,52,4],[58,0,58,4],[59,0,59,4],[61,0,61,4],[54,0,54,4],[56,0,56,4],[64,0,64,4],[63,0,63,4],[27,4,27,5],[27,7,27,9],[22,7,22,9],[23,4,23,5],[24,4,24,5],[24,7,24,9],[20,4,20,5],[20,7,20,9],[28,7,28,9],[29,7,29,9],[31,7,31,9],[31,4,31,5],[48,8,48,13],[62,0,62,4],[55,0,55,4],[30,0,30,2],[32,0,32,2],[31,0,31,2],[33,4,33,5],[34,4,34,5],[48,0,48,4],[35,0,35,2],[46,8,46,13],[30,11,30,13],[31,11,31,13],[30,4,30,5],[32,4,32,5],[32,7,32,9],[34,7,34,9],[50,8,50,13]]}
[null,null,null,null,null,null,null,"PDGA Canada Tour Event: Financial Summary"]
[]
["Part 1:",null,"Sponsors",null,null,null,"Please list all sponsors and their contributions."]
[]
["Cash Sponsors",null,null,null,"Amount",null,null,"Non Cash Sponsors",null,null,null,"Description of Donation",null,null,null,"Value"]
[]
[]
[]
[]
[]
[]
[]
[]
[]
[]
[]
[]
[]
[]
[]
[]
[]
[]
[]
[]
[]
[]
[]
[]
[]
[]
[]
[]
[]
[]
["Total Cash Sponsors",null,null,null,{"$f":"SUM(E7:E35)","v":0},null,null,null,null,null,null,"Total Non-Cash Sponsors",null,null,null,{"$f":"SUM(P7:P35)","v":0}]
[]
[]
["Part 2:",null,"Statement of Income and Expenses"]
[]
["Instructions : Only Majors and National Tour events are required to complete this section. This sheet is provided to "]
["assist TDs with the financial management of their event. You will be asked to provide financial detail only if the PDGA "]
["receives complaints from players regarding the overall event payout (incl players packages, side games, amenities etc)."]
[]
["Income",null,null,null,null,null,"Cdn$",null,"Expenses",null,null,null,null,null,null,"Cdn$"]
[]
["Gross Pro Entry Fees",null,null,null,null,null,{"$f":"Cover!X7","v":0},null,"Total Pro Payout",null,null,null,null,null,null,{"$f":"Cover!T20","v":0}]
["Cash Sponsorships",null,null,null,null,null,{"$f":"+Finance!E36","v":0},null,"Pro Player Packs - Actual Cost"]
[null,null,null,null,null,null,null,null,"Amateur Prizes - Actual Cost"]
["Gross Amateur Entry Fees",null,null,null,null,null,{"$f":"Cover!X8","v":0},null,"Amateur Player Packs - Actual Cost"]
["Gross Junior Entry Fees",null,null,null,null,null,{"$f":"Cover!X9","v":0}]
["Non-Cash Sponsorships Value",null,null,null,null,null,{"$f":"+Finance!P36","v":0},null,"Sponsor Costs: Signs, Banners, Shirts"]
["Other Cash: Raffles, Contests, etc."]
[null,null,null,null,null,null,null,null,"Other Cash Prizes: Skins, etc."]
["Late Fees",null,null,null,null,null,null,null,"Other Prizes: CTPs, etc.- Actual Cost"]
[null,null,null,null,null,null,null,null,"Trophies"]
[null,null,null,null,null,null,null,null,"Player Fees to PDGA",null,null,null,null,null,null,{"$f":"Cover!T41+Cover!T42","v":0}]
["$10 Fees from Non-Current Players",null,null,null,null,null,{"$f":"Cover!T43","v":0},null,"$10 Non-current Fees to PDGA",null,null,null,null,null,null,{"$f":"G58","v":0}]
["Ace Pool Collected",null,null,null,null,null,null,null,"Ace Pool",null,null,null,null,null,null,{"$f":"G59","v":0}]
[null,null,null,null,null,null,null,null,"PDGA Sanctioning/Insurance"]
[null,null,null,null,null,null,null,null,"Park Permits",null,null,null,null,null,null,null,null,"# of players",null,"Fee each"]
[null,null,null,null,null,null,null,null,"Regional Series Fees",null,null,null,null,null,null,{"$f":"R62*T62","v":0},"=",null,"X"]
[null,null,null,null,null,null,null,null,"Local Club Fees",null,null,null,null,null,null,{"$f":"R63*T63","v":0},"=",null,"X"]
[null,null,null,null,null,null,null,null,"Equipment Rental"]
[null,null,null,null,null,null,null,null,"Printing & Advertising"]
[null,null,null,null,null,null,null,null,"Communication"]
[null,null,null,null,null,null,null,null,"Staff: Shirts, Plyr Packs - Actual Cost"]
[null,null,null,null,null,null,null,null,"Charitable Contribution"]
[]
["Merchandise Sales",null,null,null,null,null,null,null,"Cost of Merchandise"]
["Food & Beverage Sales",null,null,null,null,null,null,null,"Food & Beverage Costs"]
["Other Income : please specify",null,null,null,null,null,null,null,"Other Expense : please specify"]
[]
[]
[null,null,null,null,null,null,null,null,"TD Fee (if not donated)"]
[]
["Total Income",null,null,null,null,null,{"$f":"SUM(G47:G75)","v":0},null,"Total Expenses",null,null,null,null,null,null,{"$f":"SUM(P47:P75)","v":0}]
[null,null,null,null,null,null,null,null,"NET:  PROFIT or (LOSS)",null,null,null,null,null,null,{"$f":"G77-P77","v":0}]

{"sheet":"$10 Fees","index":8,"n_rows":12,"n_cols":10,"rows_kept":12,"cut":false,"hidden":false,"merged":[[6,0,9,9]]}
["List of Non-Current Players / Supporting Members Paying the $10 PDGA Fee"]
[]
["Instructions: PDGA current membership is required at all Majors, National Tour and SuperTour (A Tier) events. For all other events, non-current or non-member"]
["players may participate by paying a $10 fee to the PDGA in lieu of membership. This fee is required of ALL players who cannot prove current membership, except"]
["for players competing in a Junior division."]
[]
["New players who pay the $10 fee are eligible for a $10 discount when registering as a new member of the PDGA. The discount can only be applied to membership registration received during the same calendar year as the $10 fee.  Players should use the code NONMEMBER10 to receive this discount.  TDs are encouraged to provide PDGA membership forms to any player who is not current."]
[]
[]
[]
[]
["PDGA#","First Name","Last Name","Address","City","Prov","Postal","DOB","Phone","Email"]

{"sheet":"SupportData","index":9,"n_rows":44,"n_cols":7,"rows_kept":44,"cut":false,"hidden":false,"merged":[]}
["This worksheet contains data used by other worksheets and formulas in this file."]
["Please do not delete this worksheet or modify any data on it."]
[]
["divcode",null,"Tier","Code","Fee","Tier 1","Tier 2"]
["MPO",null,"NT",1,5,"NT"]
["MPM",null,"A or XA",2,4,"A or XA"]
["MPG",null,"B or XB",3,3,"B or XB"]
["MPS",null,"C or XC",4,2,"C or XC"]
["MPL",null,"A Pro / B Am",9,null,"Pro A","Am B"]
["MPE",null,"A Pro / C Am",10,null,"Pro A","Am C"]
["MPR",null,"B Pro / C Am",11,null,"Pro B","Am C"]
["FPO",null,"B Pro / A Am",12,null,"Pro B","Am A"]
["FPM",null,"C Pro / A Am ",13,null,"Pro C","Am A"]
["FPG",null,"C Pro / B Am ",14,null,"Pro C","Am B"]
["FPS"]
["FPL"]
["MA1"]
["MA2"]
["MA3",null,"Pro A",null,4]
["MA4",null,"Pro B",null,3]
["MM1",null,"Pro C",null,2]
["MG1",null,"Am A",null,4]
["MS1",null,"Am B",null,3]
["ML1",null,"Am C",null,2]
["FA1"]
["FA2",null,null,{"$f":"IF(Cover!$Q7=\"\",\"\",VLOOKUP(Cover!$Q7,tierDB,2,FALSE))","v":4},null,{"$f":"IF(Cover!$Q7=\"\",\"\",VLOOKUP(Cover!$Q7,tierDB,4,FALSE))","v":"C or XC"},{"$f":"IF(Cover!$Q7=\"\",\"\",VLOOKUP(Cover!$Q7,tierDB,5,FALSE))","v":0}]
["FA3"]
["FA4"]
["FM1"]
["FG1"]
["FS1"]
["FL1"]
["MJ1"]
["MJ2"]
["MJ3"]
["MJ4"]
["MJ5"]
["MJ6"]
["FJ1"]
["FJ2"]
["FJ3"]
["FJ4"]
["FJ5"]
["FJ6"]